Department,Entity,Transaction Date,Expense Type,Expense Area,Supplier,Transaction No.,Amount
"Department for Energy, Security and Net Zero",The Coal Authority,21/03/2024,Applications Consultancy,DIG - Technical Delivery,Cgi It Uk Ltd,177377,"93,934.51"
"Department for Energy, Security and Net Zero",The Coal Authority,31/03/2024,Applications Consultancy,Corporate Programme Office,Corporate Project Solutions Ltd,178274,"8,800.00"
"Department for Energy, Security and Net Zero",The Coal Authority,28/03/2024,Bank Charges,Finance,National Westminster Bank Plc,178245,61.69
"Department for Energy, Security and Net Zero",The Coal Authority,16/04/2024,BGS Royalty,Mining Reports,Nerc,178913,"3,002.05"
"Department for Energy, Security and Net Zero",The Coal Authority,28/03/2024,Business Meetings,Executive,CYMEN CYFYNGEDIG,177323,55
"Department for Energy, Security and Net Zero",The Coal Authority,21/03/2024,Business Meetings,ENV - Strategy & Sustainability Management,Natural Resources Wales,177569,"28,000.00"
"Department for Energy, Security and Net Zero",The Coal Authority,22/03/2024,Business Meetings,Board,CYMEN CYFYNGEDIG,177781,141.7
"Department for Energy, Security and Net Zero",The Coal Authority,31/03/2024,Business Meetings,Board,CYMEN CYFYNGEDIG,177784,35
"Department for Energy, Security and Net Zero",The Coal Authority,31/03/2024,Business Meetings,Board,CYMEN CYFYNGEDIG,177784,320
"Department for Energy, Security and Net Zero",The Coal Authority,31/03/2024,Business Meetings,Board,CYMEN CYFYNGEDIG,177784,35
"Department for Energy, Security and Net Zero",The Coal Authority,05/04/2024,Business Meetings,Board,Calder Conference Ltd,178005,"1,150.00"
"Department for Energy, Security and Net Zero",The Coal Authority,03/04/2024,Business Meetings,Engineering,Rocscience Inc.,178237,"9,075.12"
"Department for Energy, Security and Net Zero",The Coal Authority,17/04/2024,Business Meetings,Board,CYMEN CYFYNGEDIG,178636,35
"Department for Energy, Security and Net Zero",The Coal Authority,10/04/2024,Business Meetings,Board,Calder Conference Ltd,178888,"5,377.33"
"Department for Energy, Security and Net Zero",The Coal Authority,23/04/2024,Business Meetings,People & Organisational Development,Calder Conference Ltd,179040,207.08
"Department for Energy, Security and Net Zero",The Coal Authority,23/04/2024,Business Meetings,Tips Response,Calder Conference Ltd,179117,553.92
"Department for Energy, Security and Net Zero",The Coal Authority,25/04/2024,Business Meetings,Procurement,Ransomwood Estates Ltd,179266,479.5
"Department for Energy, Security and Net Zero",The Coal Authority,09/02/2024,Business Meetings,PS&S - Management,Government Procurement Card,179324,395
"Department for Energy, Security and Net Zero",The Coal Authority,04/03/2024,Business Meetings,Governance & Risk,Government Procurement Card,179325,96.98
"Department for Energy, Security and Net Zero",The Coal Authority,05/03/2024,Business Meetings,Community Response,Government Procurement Card,179325,193.21
"Department for Energy, Security and Net Zero",The Coal Authority,08/03/2024,Business Meetings,Governance & Risk,Government Procurement Card,179325,-96.98
"Department for Energy, Security and Net Zero",The Coal Authority,14/03/2024,Business Meetings,Engineering,Government Procurement Card,179325,4
"Department for Energy, Security and Net Zero",The Coal Authority,14/03/2024,Business Meetings,PS&S - General Claims,Government Procurement Card,179325,2
"Department for Energy, Security and Net Zero",The Coal Authority,15/03/2024,Business Meetings,Governance & Risk,Government Procurement Card,179325,239.96
"Department for Energy, Security and Net Zero",The Coal Authority,15/03/2024,Business Meetings,PS&S - General Claims,Government Procurement Card,179325,6.08
"Department for Energy, Security and Net Zero",The Coal Authority,18/03/2024,Business Meetings,People & Organisational Development,Government Procurement Card,179325,65
"Department for Energy, Security and Net Zero",The Coal Authority,19/03/2024,Business Meetings,Community Response,Government Procurement Card,179325,119.98
"Department for Energy, Security and Net Zero",The Coal Authority,19/03/2024,Business Meetings,Tips Response,Government Procurement Card,179325,139.98
"Department for Energy, Security and Net Zero",The Coal Authority,21/03/2024,Business Meetings,ENV - Projects & Delivery,Government Procurement Card,179325,60
"Department for Energy, Security and Net Zero",The Coal Authority,22/03/2024,Business Meetings,Community Response,Government Procurement Card,179325,-119.98
"Department for Energy, Security and Net Zero",The Coal Authority,25/03/2024,Business Meetings,PS&S - General Claims,Government Procurement Card,179325,16.67
"Department for Energy, Security and Net Zero",The Coal Authority,25/03/2024,Business Meetings,PS&S - General Claims,Government Procurement Card,179325,6.2
"Department for Energy, Security and Net Zero",The Coal Authority,26/03/2024,Business Meetings,NRW Metal Mine Programme,Government Procurement Card,179325,95
"Department for Energy, Security and Net Zero",The Coal Authority,02/04/2024,Business Meetings,PS&S - General Claims,Government Procurement Card,179325,2.67
"Department for Energy, Security and Net Zero",The Coal Authority,02/04/2024,Business Meetings,PS&S - General Claims,Government Procurement Card,179325,3.17
"Department for Energy, Security and Net Zero",The Coal Authority,12/04/2024,Business Publications,Innovation By-Product & Services Delivery,Ideasbynet,178443,0.03
"Department for Energy, Security and Net Zero",The Coal Authority,12/04/2024,Business Publications,Innovation By-Product & Services Delivery,Ideasbynet,178443,"6,435.62"
"Department for Energy, Security and Net Zero",The Coal Authority,01/04/2024,Canteen Equipment,Facilities,East Midlands Vending Ltd,178173,120
"Department for Energy, Security and Net Zero",The Coal Authority,28/03/2024,Central Training,People & Organisational Development,Inclusive Employers Limited,178671,"4,880.00"
"Department for Energy, Security and Net Zero",The Coal Authority,31/03/2024,Central Training,People & Organisational Development,Oe Cam Llp,178781,886.88
"Department for Energy, Security and Net Zero",The Coal Authority,31/03/2024,Central Training,People & Organisational Development,Oe Cam Llp,178783,"13,606.54"
"Department for Energy, Security and Net Zero",The Coal Authority,24/04/2024,Central Training,"Health, Safety & Wellbeing",MHFA England,179123,"3,600.00"
"Department for Energy, Security and Net Zero",The Coal Authority,04/03/2024,Central Training,Engineering,Government Procurement Card,179325,216
"Department for Energy, Security and Net Zero",The Coal Authority,06/03/2024,Central Training,Engineering,Government Procurement Card,179325,-216
"Department for Energy, Security and Net Zero",The Coal Authority,29/03/2024,Cleaning Materials,Facilities,Fidelis,178222,532.4
"Department for Energy, Security and Net Zero",The Coal Authority,12/03/2024,Consultancy - Town Planning,DEV - Planning & Local Authority Liaison,Jeremy Benn Associates Ltd,178712,613.69
"Department for Energy, Security and Net Zero",The Coal Authority,12/03/2024,Consultancy - Town Planning,DEV - Planning & Local Authority Liaison,Jeremy Benn Associates Ltd,178712,135
"Department for Energy, Security and Net Zero",The Coal Authority,12/03/2024,Consultancy - Town Planning,DEV - Planning & Local Authority Liaison,Jeremy Benn Associates Ltd,178712,56.58
"Department for Energy, Security and Net Zero",The Coal Authority,12/03/2024,Consultancy - Town Planning,DEV - Planning & Local Authority Liaison,Jeremy Benn Associates Ltd,178712,"5,334.72"
"Department for Energy, Security and Net Zero",The Coal Authority,05/04/2024,Consultancy - Town Planning,DEV - Planning & Local Authority Liaison,Jeremy Benn Associates Ltd,178715,"7,517.83"
"Department for Energy, Security and Net Zero",The Coal Authority,05/04/2024,Consultancy - Town Planning,DEV - Planning & Local Authority Liaison,Jeremy Benn Associates Ltd,178715,251.43
"Department for Energy, Security and Net Zero",The Coal Authority,27/03/2024,Consultancy-Legacy Mine Workings,DEV - Mine Heat Licensing,3V GEOMATICS INC.,177178,"4,000.00"
"Department for Energy, Security and Net Zero",The Coal Authority,15/04/2024,Consultancy-Legacy Mine Workings,DEV - Licensing,Wardell Armstrong LLP,178529,"6,302.25"
"Department for Energy, Security and Net Zero",The Coal Authority,29/03/2023,Contract Hire Vehicles,PS&S - General Claims,Kinto UK Limited,177215,66.77
"Department for Energy, Security and Net Zero",The Coal Authority,29/03/2023,Contract Hire Vehicles,PS&S - General Claims,Kinto UK Limited,177215,463.47
"Department for Energy, Security and Net Zero",The Coal Authority,29/03/2023,Contract Hire Vehicles,PS&S - General Claims,Kinto UK Limited,177215,43.35
"Department for Energy, Security and Net Zero",The Coal Authority,29/03/2023,Contract Hire Vehicles,PS&S - General Claims,Kinto UK Limited,177215,3
"Department for Energy, Security and Net Zero",The Coal Authority,16/10/2023,Contract Hire Vehicles,ENV - Mine Water Operations,Enterprise Rent A Car,177686,57.2
"Department for Energy, Security and Net Zero",The Coal Authority,01/04/2024,Contract Hire Vehicles,PS&S - General Claims,Days Fleet,177780,361
"Department for Energy, Security and Net Zero",The Coal Authority,01/04/2024,Contract Hire Vehicles,PS&S - General Claims,Days Fleet,177780,38.75
"Department for Energy, Security and Net Zero",The Coal Authority,01/04/2024,Contract Hire Vehicles,PS&S - General Claims,Days Fleet,177780,36.1
"Department for Energy, Security and Net Zero",The Coal Authority,27/03/2024,Contract Hire Vehicles,PS&S - Industry Claims,Kinto UK Limited,177783,"6,559.97"
"Department for Energy, Security and Net Zero",The Coal Authority,27/03/2024,Contract Hire Vehicles,PS&S - Industry Claims,Kinto UK Limited,177783,656
"Department for Energy, Security and Net Zero",The Coal Authority,27/03/2024,Contract Hire Vehicles,PS&S - Industry Claims,Kinto UK Limited,177783,964.99
"Department for Energy, Security and Net Zero",The Coal Authority,27/03/2024,Contract Hire Vehicles,PS&S - Industry Claims,Kinto UK Limited,177783,-0.01
"Department for Energy, Security and Net Zero",The Coal Authority,10/03/2024,Contract Hire Vehicles,PS&S - General Claims,Lex Autolease Ltd,177925,"5,819.04"
"Department for Energy, Security and Net Zero",The Coal Authority,10/03/2024,Contract Hire Vehicles,PS&S - General Claims,Lex Autolease Ltd,177925,663.48
"Department for Energy, Security and Net Zero",The Coal Authority,10/03/2024,Contract Hire Vehicles,PS&S - General Claims,Lex Autolease Ltd,177925,581.9
"Department for Energy, Security and Net Zero",The Coal Authority,31/03/2024,Contract Hire Vehicles,Facilities,Enterprise Rent A Car,178026,"2,855.79"
"Department for Energy, Security and Net Zero",The Coal Authority,31/03/2024,Contract Hire Vehicles,Facilities,Harveys Autocentre Ltd,178029,140
"Department for Energy, Security and Net Zero",The Coal Authority,07/04/2024,Contract Hire Vehicles,Facilities,Lex Autolease Ltd,178912,77.21
"Department for Energy, Security and Net Zero",The Coal Authority,07/04/2024,Contract Hire Vehicles,Facilities,Lex Autolease Ltd,178912,294.4
"Department for Energy, Security and Net Zero",The Coal Authority,07/04/2024,Contract Hire Vehicles,Facilities,Lex Autolease Ltd,178912,77.21
"Department for Energy, Security and Net Zero",The Coal Authority,07/04/2024,Contract Hire Vehicles,Facilities,Lex Autolease Ltd,178912,294.4
"Department for Energy, Security and Net Zero",The Coal Authority,16/04/2024,Contract Hire Vehicles,PS&S - General Claims,Lex Autolease Ltd,179251,"7,630.92"
"Department for Energy, Security and Net Zero",The Coal Authority,16/04/2024,Contract Hire Vehicles,PS&S - General Claims,Lex Autolease Ltd,179251,763.09
"Department for Energy, Security and Net Zero",The Coal Authority,16/04/2024,Contract Hire Vehicles,PS&S - General Claims,Lex Autolease Ltd,179251,483.48
"Department for Energy, Security and Net Zero",The Coal Authority,18/04/2024,Contract Hire Vehicles,ENV - Mine Water Operations,Lex Autolease Ltd,179252,"6,039.48"
"Department for Energy, Security and Net Zero",The Coal Authority,18/04/2024,Contract Hire Vehicles,ENV - Mine Water Operations,Lex Autolease Ltd,179252,603.95
"Department for Energy, Security and Net Zero",The Coal Authority,18/04/2024,Contract Hire Vehicles,ENV - Mine Water Operations,Lex Autolease Ltd,179252,"1,007.52"
"Department for Energy, Security and Net Zero",The Coal Authority,25/03/2024,CY - Minewater Scheme - Additions,ENV - Projects & Delivery,Dunelm Geotechnical and Environmental Ltd,177386,"15,734.49"
"Department for Energy, Security and Net Zero",The Coal Authority,25/03/2024,CY - Minewater Scheme - Additions,ENV - Projects & Delivery,Dunelm Geotechnical and Environmental Ltd,177386,"23,213.18"
"Department for Energy, Security and Net Zero",The Coal Authority,29/02/2024,CY - Minewater Scheme - Additions,ENV - Projects & Delivery,Turner and Townsend Project Management Ltd.,177443,"5,097.24"
"Department for Energy, Security and Net Zero",The Coal Authority,28/03/2024,CY - Minewater Scheme - Additions,ENV - Salinity Programme,Alliance Contracting Solutions Ltd,178035,"49,818.65"
"Department for Energy, Security and Net Zero",The Coal Authority,04/04/2024,CY - Minewater Scheme - Additions,DEFRA Metal Mine Programme,John F Hunt Regeneration Ltd,178099,"81,519.56"
"Department for Energy, Security and Net Zero",The Coal Authority,05/04/2024,CY - Minewater Scheme - Additions,ENV - Projects & Delivery,AECOM Ltd,178119,"35,000.00"
"Department for Energy, Security and Net Zero",The Coal Authority,05/04/2024,CY - Minewater Scheme - Additions,ENV - Projects & Delivery,AECOM Ltd,178119,"14,384.41"
"Department for Energy, Security and Net Zero",The Coal Authority,10/04/2024,CY - Minewater Scheme - Additions,ENV - Mine Water Operations,Severn Trent Serv Ops Uk Ltd,178193,"-8,039.50"
"Department for Energy, Security and Net Zero",The Coal Authority,31/03/2024,CY - Minewater Scheme - Additions,ENV - Projects & Delivery,Kier Integrated Services Limited,178316,"18,704.02"
"Department for Energy, Security and Net Zero",The Coal Authority,28/03/2024,CY - Minewater Scheme - Additions,ENV - Projects & Delivery,Detectronic Limited,178436,"13,328.51"
"Department for Energy, Security and Net Zero",The Coal Authority,08/04/2024,CY - Minewater Scheme - Additions,By-Products - Energy,Severn Trent Serv Ops Uk Ltd,179003,541.52
"Department for Energy, Security and Net Zero",The Coal Authority,08/04/2024,CY - Minewater Scheme - Additions,ENV - Mine Water Operations,Severn Trent Serv Ops Uk Ltd,179003,"12,585.26"
"Department for Energy, Security and Net Zero",The Coal Authority,08/04/2024,CY - Minewater Scheme - Additions,ENV - Mine Water Operations,Severn Trent Serv Ops Uk Ltd,179003,"143,166.42"
"Department for Energy, Security and Net Zero",The Coal Authority,08/04/2024,CY - Minewater Scheme - Additions,ENV - Mine Water Operations,Severn Trent Serv Ops Uk Ltd,179003,"2,761.92"
"Department for Energy, Security and Net Zero",The Coal Authority,08/04/2024,CY - Minewater Scheme - Additions,ENV - Mine Water Operations,Severn Trent Serv Ops Uk Ltd,179003,372.84
"Department for Energy, Security and Net Zero",The Coal Authority,08/04/2024,CY - Minewater Scheme - Additions,ENV - Mine Water Operations,Severn Trent Serv Ops Uk Ltd,179003,91.63
"Department for Energy, Security and Net Zero",The Coal Authority,08/04/2024,CY - Minewater Scheme - Additions,ENV - Mine Water Operations,Severn Trent Serv Ops Uk Ltd,179003,"1,294.29"
"Department for Energy, Security and Net Zero",The Coal Authority,08/04/2024,CY - Minewater Scheme - Additions,ENV - Mine Water Operations,Severn Trent Serv Ops Uk Ltd,179003,"11,784.85"
"Department for Energy, Security and Net Zero",The Coal Authority,08/04/2024,CY - Minewater Scheme - Additions,ENV - Mine Water Operations,Severn Trent Serv Ops Uk Ltd,179003,"1,203.30"
"Department for Energy, Security and Net Zero",The Coal Authority,08/04/2024,CY - Minewater Scheme - Additions,ENV - Mine Water Operations,Severn Trent Serv Ops Uk Ltd,179003,"5,973.94"
"Department for Energy, Security and Net Zero",The Coal Authority,08/04/2024,CY - Minewater Scheme - Additions,ENV - Mine Water Operations,Severn Trent Serv Ops Uk Ltd,179003,"9,951.72"
"Department for Energy, Security and Net Zero",The Coal Authority,08/04/2024,CY - Minewater Scheme - Additions,ENV - Mine Water Operations,Severn Trent Serv Ops Uk Ltd,179003,96.13
"Department for Energy, Security and Net Zero",The Coal Authority,08/04/2024,CY - Minewater Scheme - Additions,ENV - Mine Water Operations,Severn Trent Serv Ops Uk Ltd,179003,772.16
"Department for Energy, Security and Net Zero",The Coal Authority,08/04/2024,CY - Minewater Scheme - Additions,ENV - Mine Water Operations,Severn Trent Serv Ops Uk Ltd,179003,"5,306.07"
"Department for Energy, Security and Net Zero",The Coal Authority,08/04/2024,CY - Minewater Scheme - Additions,ENV - Mine Water Operations,Severn Trent Serv Ops Uk Ltd,179003,"5,741.35"
"Department for Energy, Security and Net Zero",The Coal Authority,08/04/2024,CY - Minewater Scheme - Additions,ENV - Mine Water Operations,Severn Trent Serv Ops Uk Ltd,179003,"13,878.06"
"Department for Energy, Security and Net Zero",The Coal Authority,08/04/2024,CY - Minewater Scheme - Additions,ENV - Mine Water Operations,Severn Trent Serv Ops Uk Ltd,179003,343.18
"Department for Energy, Security and Net Zero",The Coal Authority,08/04/2024,CY - Minewater Scheme - Additions,ENV - Mine Water Operations,Severn Trent Serv Ops Uk Ltd,179003,744.7
"Department for Energy, Security and Net Zero",The Coal Authority,08/04/2024,CY - Minewater Scheme - Additions,ENV - Mine Water Operations,Severn Trent Serv Ops Uk Ltd,179003,"27,967.80"
"Department for Energy, Security and Net Zero",The Coal Authority,08/04/2024,CY - Minewater Scheme - Additions,ENV - Mine Water Operations,Severn Trent Serv Ops Uk Ltd,179003,"91,133.21"
"Department for Energy, Security and Net Zero",The Coal Authority,08/04/2024,CY - Minewater Scheme - Additions,ENV - Mine Water Operations,Severn Trent Serv Ops Uk Ltd,179003,146.63
"Department for Energy, Security and Net Zero",The Coal Authority,08/04/2024,CY - Minewater Scheme - Additions,ENV - Mine Water Operations,Severn Trent Serv Ops Uk Ltd,179003,347.3
"Department for Energy, Security and Net Zero",The Coal Authority,08/04/2024,CY - Minewater Scheme - Additions,ENV - Mine Water Operations,Severn Trent Serv Ops Uk Ltd,179003,861.2
"Department for Energy, Security and Net Zero",The Coal Authority,08/04/2024,CY - Minewater Scheme - Additions,ENV - Mine Water Operations,Severn Trent Serv Ops Uk Ltd,179003,"39,435.62"
"Department for Energy, Security and Net Zero",The Coal Authority,08/04/2024,CY - Minewater Scheme - Additions,ENV - Mine Water Operations,Severn Trent Serv Ops Uk Ltd,179003,"6,213.32"
"Department for Energy, Security and Net Zero",The Coal Authority,08/04/2024,CY - Minewater Scheme - Additions,ENV - Mine Water Operations,Severn Trent Serv Ops Uk Ltd,179003,600.1
"Department for Energy, Security and Net Zero",The Coal Authority,08/04/2024,CY - Minewater Scheme - Additions,ENV - Mine Water Operations,Severn Trent Serv Ops Uk Ltd,179003,"1,045.15"
"Department for Energy, Security and Net Zero",The Coal Authority,08/04/2024,CY - Minewater Scheme - Additions,ENV - Mine Water Operations,Severn Trent Serv Ops Uk Ltd,179003,"9,415.71"
"Department for Energy, Security and Net Zero",The Coal Authority,08/04/2024,CY - Minewater Scheme - Additions,ENV - Mine Water Operations,Severn Trent Serv Ops Uk Ltd,179003,"8,549.83"
"Department for Energy, Security and Net Zero",The Coal Authority,08/04/2024,CY - Minewater Scheme - Additions,ENV - Mine Water Operations,Severn Trent Serv Ops Uk Ltd,179003,488.71
"Department for Energy, Security and Net Zero",The Coal Authority,08/04/2024,CY - Minewater Scheme - Additions,ENV - Mine Water Operations,Severn Trent Serv Ops Uk Ltd,179003,"204,081.71"
"Department for Energy, Security and Net Zero",The Coal Authority,08/04/2024,CY - Minewater Scheme - Additions,ENV - Mine Water Operations,Severn Trent Serv Ops Uk Ltd,179003,638.8
"Department for Energy, Security and Net Zero",The Coal Authority,08/04/2024,CY - Minewater Scheme - Additions,ENV - Mine Water Operations,Severn Trent Serv Ops Uk Ltd,179003,758.23
"Department for Energy, Security and Net Zero",The Coal Authority,08/04/2024,CY - Minewater Scheme - Additions,ENV - Mine Water Operations,Severn Trent Serv Ops Uk Ltd,179003,"2,714.47"
"Department for Energy, Security and Net Zero",The Coal Authority,08/04/2024,CY - Minewater Scheme - Additions,ENV - Mine Water Operations,Severn Trent Serv Ops Uk Ltd,179003,69.87
"Department for Energy, Security and Net Zero",The Coal Authority,08/04/2024,CY - Minewater Scheme - Additions,ENV - Projects & Delivery,Severn Trent Serv Ops Uk Ltd,179003,511.96
"Department for Energy, Security and Net Zero",The Coal Authority,08/04/2024,CY - Minewater Scheme - Additions,ENV - Projects & Delivery,Severn Trent Serv Ops Uk Ltd,179003,"26,645.20"
"Department for Energy, Security and Net Zero",The Coal Authority,08/04/2024,CY - Minewater Scheme - Additions,ENV - Projects & Delivery,Severn Trent Serv Ops Uk Ltd,179003,"5,310.07"
"Department for Energy, Security and Net Zero",The Coal Authority,08/04/2024,CY - Minewater Scheme - Additions,ENV - Salinity Programme,Severn Trent Serv Ops Uk Ltd,179003,"2,851.12"
"Department for Energy, Security and Net Zero",The Coal Authority,25/04/2024,CY - Minewater Scheme - Additions,ENV - Projects & Delivery,Browne Jacobson Llp Client Account,179150,"2,500.00"
"Department for Energy, Security and Net Zero",The Coal Authority,25/04/2024,CY - Minewater Scheme - Additions,ENV - Projects & Delivery,Browne Jacobson Llp Client Account,179304,500
"Department for Energy, Security and Net Zero",The Coal Authority,31/03/2024,CY - Non-coal Minewater - Additions,DEFRA Metal Mine Programme,Yorkshire Dales Rivers Trust,177681,"5,719.59"
"Department for Energy, Security and Net Zero",The Coal Authority,28/03/2024,CY - Non-coal Minewater - Additions,DEFRA Metal Mine Programme,AECOM Ltd,177749,"2,820.25"
"Department for Energy, Security and Net Zero",The Coal Authority,10/04/2024,CY - Non-coal Minewater - Additions,DEFRA Metal Mine Programme,Severn Trent Serv Ops Uk Ltd,178191,-909.28
"Department for Energy, Security and Net Zero",The Coal Authority,10/04/2024,CY - Non-coal Minewater - Additions,DEFRA LEP Funding,Compensation Payment,178259,"1,303.05"
"Department for Energy, Security and Net Zero",The Coal Authority,08/04/2024,CY - Non-coal Minewater - Additions,DEFRA Metal Mine Programme,Severn Trent Serv Ops Uk Ltd,178394,254.99
"Department for Energy, Security and Net Zero",The Coal Authority,08/04/2024,CY - Non-coal Minewater - Additions,DEFRA Metal Mine Programme,Severn Trent Serv Ops Uk Ltd,178394,0.01
"Department for Energy, Security and Net Zero",The Coal Authority,08/04/2024,CY - Non-coal Minewater - Additions,DEFRA Metal Mine Programme,Severn Trent Serv Ops Uk Ltd,178394,622.43
"Department for Energy, Security and Net Zero",The Coal Authority,09/04/2024,CY - Non-coal Minewater - Additions,DEFRA LEP Funding,Amenity Horticultural Services Ltd,178808,"2,474.22"
"Department for Energy, Security and Net Zero",The Coal Authority,09/04/2024,CY - Non-coal Minewater - Additions,DEFRA LEP Funding,Amenity Horticultural Services Ltd,178809,"2,472.57"
"Department for Energy, Security and Net Zero",The Coal Authority,10/04/2024,CY - Non-coal Minewater - Additions,DEFRA LEP Funding,Aecom Infrastructure & Env,178921,120.91
"Department for Energy, Security and Net Zero",The Coal Authority,10/04/2024,CY - Non-coal Minewater - Additions,DEFRA LEP Funding,Aecom Infrastructure & Env,178921,324.75
"Department for Energy, Security and Net Zero",The Coal Authority,10/04/2024,CY - Non-coal Minewater - Additions,DEFRA LEP Funding,Aecom Infrastructure & Env,178921,195.05
"Department for Energy, Security and Net Zero",The Coal Authority,10/04/2024,CY - Non-coal Minewater - Additions,DEFRA LEP Funding,Aecom Infrastructure & Env,178921,"2,867.00"
"Department for Energy, Security and Net Zero",The Coal Authority,10/04/2024,CY - Non-coal Minewater - Additions,DEFRA LEP Funding,Aecom Infrastructure & Env,178921,"8,756.56"
"Department for Energy, Security and Net Zero",The Coal Authority,10/04/2024,CY - Non-coal Minewater - Additions,DEFRA LEP Funding,Aecom Infrastructure & Env,178921,"3,975.18"
"Department for Energy, Security and Net Zero",The Coal Authority,10/04/2024,CY - Non-coal Minewater - Additions,DEFRA LEP Funding,Aecom Infrastructure & Env,178921,"3,193.98"
"Department for Energy, Security and Net Zero",The Coal Authority,10/04/2024,CY - Non-coal Minewater - Additions,DEFRA LEP Funding,Aecom Infrastructure & Env,178921,710.24
"Department for Energy, Security and Net Zero",The Coal Authority,10/04/2024,CY - Non-coal Minewater - Additions,DEFRA LEP Funding,Aecom Infrastructure & Env,178921,229.98
"Department for Energy, Security and Net Zero",The Coal Authority,10/04/2024,CY - Non-coal Minewater - Additions,DEFRA LEP Funding,Aecom Infrastructure & Env,178921,397.08
"Department for Energy, Security and Net Zero",The Coal Authority,10/04/2024,CY - Non-coal Minewater - Additions,DEFRA LEP Funding,Aecom Infrastructure & Env,178921,641.85
"Department for Energy, Security and Net Zero",The Coal Authority,10/04/2024,CY - Non-coal Minewater - Additions,DEFRA LEP Funding,Aecom Infrastructure & Env,178921,746.98
"Department for Energy, Security and Net Zero",The Coal Authority,10/04/2024,CY - Non-coal Minewater - Additions,DEFRA LEP Funding,Aecom Infrastructure & Env,178921,"2,491.84"
"Department for Energy, Security and Net Zero",The Coal Authority,10/04/2024,CY - Non-coal Minewater - Additions,DEFRA LEP Funding,Aecom Infrastructure & Env,178921,"1,206.67"
"Department for Energy, Security and Net Zero",The Coal Authority,10/04/2024,CY - Non-coal Minewater - Additions,DEFRA LEP Funding,Aecom Infrastructure & Env,178921,"4,892.77"
"Department for Energy, Security and Net Zero",The Coal Authority,10/04/2024,CY - Non-coal Minewater - Additions,DEFRA LEP Funding,Aecom Infrastructure & Env,178921,"1,717.20"
"Department for Energy, Security and Net Zero",The Coal Authority,10/04/2024,CY - Non-coal Minewater - Additions,DEFRA LEP Funding,Aecom Infrastructure & Env,178921,24.34
"Department for Energy, Security and Net Zero",The Coal Authority,10/04/2024,CY - Non-coal Minewater - Additions,DEFRA LEP Funding,Aecom Infrastructure & Env,178921,914.73
"Department for Energy, Security and Net Zero",The Coal Authority,10/04/2024,CY - Non-coal Minewater - Additions,DEFRA LEP Funding,Aecom Infrastructure & Env,178921,998.37
"Department for Energy, Security and Net Zero",The Coal Authority,10/04/2024,CY - Non-coal Minewater - Additions,DEFRA LEP Funding,Aecom Infrastructure & Env,178921,"1,969.16"
"Department for Energy, Security and Net Zero",The Coal Authority,10/04/2024,CY - Non-coal Minewater - Additions,DEFRA LEP Funding,Aecom Infrastructure & Env,178953,689.5
"Department for Energy, Security and Net Zero",The Coal Authority,10/04/2024,CY - Non-coal Minewater - Additions,DEFRA LEP Funding,Aecom Infrastructure & Env,178953,"2,867.00"
"Department for Energy, Security and Net Zero",The Coal Authority,10/04/2024,CY - Non-coal Minewater - Additions,DEFRA LEP Funding,Aecom Infrastructure & Env,178953,347.5
"Department for Energy, Security and Net Zero",The Coal Authority,10/04/2024,CY - Non-coal Minewater - Additions,DEFRA LEP Funding,Aecom Infrastructure & Env,178953,"5,720.88"
"Department for Energy, Security and Net Zero",The Coal Authority,10/04/2024,CY - Non-coal Minewater - Additions,DEFRA LEP Funding,Aecom Infrastructure & Env,178953,"1,372.10"
"Department for Energy, Security and Net Zero",The Coal Authority,10/04/2024,CY - Non-coal Minewater - Additions,DEFRA LEP Funding,Aecom Infrastructure & Env,178953,983.26
"Department for Energy, Security and Net Zero",The Coal Authority,10/04/2024,CY - Non-coal Minewater - Additions,DEFRA LEP Funding,Aecom Infrastructure & Env,178953,499.43
"Department for Energy, Security and Net Zero",The Coal Authority,10/04/2024,CY - Non-coal Minewater - Additions,DEFRA LEP Funding,Aecom Infrastructure & Env,178953,746.98
"Department for Energy, Security and Net Zero",The Coal Authority,10/04/2024,CY - Non-coal Minewater - Additions,DEFRA LEP Funding,Aecom Infrastructure & Env,178953,"1,947.86"
"Department for Energy, Security and Net Zero",The Coal Authority,10/04/2024,CY - Non-coal Minewater - Additions,DEFRA LEP Funding,Aecom Infrastructure & Env,178953,917.35
"Department for Energy, Security and Net Zero",The Coal Authority,10/04/2024,CY - Non-coal Minewater - Additions,DEFRA LEP Funding,Aecom Infrastructure & Env,178953,"6,761.70"
"Department for Energy, Security and Net Zero",The Coal Authority,10/04/2024,CY - Non-coal Minewater - Additions,DEFRA LEP Funding,Aecom Infrastructure & Env,178953,498.37
"Department for Energy, Security and Net Zero",The Coal Authority,10/04/2024,CY - Non-coal Minewater - Additions,DEFRA LEP Funding,Aecom Infrastructure & Env,178953,301.67
"Department for Energy, Security and Net Zero",The Coal Authority,10/04/2024,CY - Non-coal Minewater - Additions,DEFRA LEP Funding,Aecom Infrastructure & Env,178953,"2,096.90"
"Department for Energy, Security and Net Zero",The Coal Authority,08/04/2024,CY - Non-coal Minewater - Additions,ENV - Salinity Programme,Severn Trent Serv Ops Uk Ltd,179003,5.24
"Department for Energy, Security and Net Zero",The Coal Authority,08/04/2024,CY - Non-coal Minewater - Additions,ENV - Salinity Programme,Severn Trent Serv Ops Uk Ltd,179003,137.49
"Department for Energy, Security and Net Zero",The Coal Authority,23/04/2024,CY - Non-coal Minewater - Additions,DEFRA Metal Mine Programme,Hydro International Data Insight & Analysis Ltd,179041,"1,973.50"
"Department for Energy, Security and Net Zero",The Coal Authority,08/04/2024,CY - Plant & Machinery - Additions,ENV - Mine Water Operations,Severn Trent Serv Ops Uk Ltd,179003,370
"Department for Energy, Security and Net Zero",The Coal Authority,09/04/2024,CY - Subsidence Pumping - Additions,ENV - Projects & Delivery,AECOM Ltd,178234,"1,568.18"
"Department for Energy, Security and Net Zero",The Coal Authority,08/04/2024,CY - Subsidence Pumping - Additions,ENV - Mine Water Operations,Severn Trent Serv Ops Uk Ltd,179003,"5,720.49"
"Department for Energy, Security and Net Zero",The Coal Authority,29/03/2024,Desktop Computing,DIG - Technical Delivery,Specialist Computer Centres Pl,177528,"4,314.50"
"Department for Energy, Security and Net Zero",The Coal Authority,13/02/2024,Disaster Recovery & BCP,"Health, Safety & Wellbeing",Government Procurement Card,179324,100
"Department for Energy, Security and Net Zero",The Coal Authority,27/02/2024,Disaster Recovery & BCP,"Health, Safety & Wellbeing",Government Procurement Card,179324,100
"Department for Energy, Security and Net Zero",The Coal Authority,01/04/2024,eCommerce Commission Charges,Mining Reports,Worldpay Limited,177782,0.01
"Department for Energy, Security and Net Zero",The Coal Authority,01/04/2024,eCommerce Commission Charges,Mining Reports,Worldpay Limited,177782,230.12
"Department for Energy, Security and Net Zero",The Coal Authority,01/04/2024,eCommerce Commission Charges,DEV - Permissions,Worldpay Limited,179009,9.72
"Department for Energy, Security and Net Zero",The Coal Authority,01/10/2023,Electricity Usage,ENV - Mine Water Operations,G A Blagg,177374,"2,295.78"
"Department for Energy, Security and Net Zero",The Coal Authority,25/04/2023,Electricity Usage,Facilities,IMServ Europe Limited,178438,413.82
"Department for Energy, Security and Net Zero",The Coal Authority,25/03/2024,External Agency / Introduction Fees,People & Organisational Development,TurnerFox Recruitment Limited,177375,723.35
"Department for Energy, Security and Net Zero",The Coal Authority,01/04/2024,External Agency / Introduction Fees,People & Organisational Development,TurnerFox Recruitment Limited,177863,586.5
"Department for Energy, Security and Net Zero",The Coal Authority,15/04/2024,External Agency / Introduction Fees,People & Organisational Development,Cherry Professional Limited,178727,"4,967.25"
"Department for Energy, Security and Net Zero",The Coal Authority,08/04/2024,External Agency / Introduction Fees,People & Organisational Development,TurnerFox Recruitment Limited,178821,153.9
"Department for Energy, Security and Net Zero",The Coal Authority,07/03/2024,External Agency / Introduction Fees,DEV - Property Management,Government Procurement Card,179325,3.6
"Department for Energy, Security and Net Zero",The Coal Authority,14/03/2024,External Agency / Introduction Fees,NRW Metal Mine Programme,Government Procurement Card,179325,3
"Department for Energy, Security and Net Zero",The Coal Authority,22/03/2024,External Agency / Introduction Fees,NRW Metal Mine Programme,Government Procurement Card,179325,3
"Department for Energy, Security and Net Zero",The Coal Authority,25/03/2024,External Agency / Introduction Fees,DEV - Property Management,Government Procurement Card,179325,3
"Department for Energy, Security and Net Zero",The Coal Authority,21/02/2024,External Agency / Introduction Fees,Customer Services & Strategy,Government Procurement Card,179410,48
"Department for Energy, Security and Net Zero",The Coal Authority,21/02/2024,External Agency / Introduction Fees,Customer Services & Strategy,Government Procurement Card,179410,40.34
"Department for Energy, Security and Net Zero",The Coal Authority,20/03/2024,Fares - Public Transport,ENV - Sustainability & Environmental Compliance,Staff Expenses Control,177291,8.5
"Department for Energy, Security and Net Zero",The Coal Authority,31/03/2024,Fares - Public Transport,Customer Services & Strategy,Ace Of Mansfield Ltd,177624,409.64
"Department for Energy, Security and Net Zero",The Coal Authority,14/01/2024,Fares - Public Transport,Executive,Staff Expenses Control,178030,17.15
"Department for Energy, Security and Net Zero",The Coal Authority,18/01/2024,Fares - Public Transport,Executive,Staff Expenses Control,178030,24.14
"Department for Energy, Security and Net Zero",The Coal Authority,18/01/2024,Fares - Public Transport,Executive,Staff Expenses Control,178030,4.29
"Department for Energy, Security and Net Zero",The Coal Authority,12/03/2024,Fares - Public Transport,International,Staff Expenses Control,178451,1.75
"Department for Energy, Security and Net Zero",The Coal Authority,13/03/2024,Fares - Public Transport,International,Staff Expenses Control,178451,5.6
"Department for Energy, Security and Net Zero",The Coal Authority,15/03/2024,Fares - Public Transport,International,Staff Expenses Control,178451,5.4
"Department for Energy, Security and Net Zero",The Coal Authority,24/03/2024,Fares - Public Transport,International,Staff Expenses Control,178451,10.1
"Department for Energy, Security and Net Zero",The Coal Authority,27/03/2024,Fares - Public Transport,Corporate Programme Office,Staff Expenses Control,178451,5.3
"Department for Energy, Security and Net Zero",The Coal Authority,28/03/2024,Fares - Public Transport,International,Staff Expenses Control,178451,8.5
"Department for Energy, Security and Net Zero",The Coal Authority,05/04/2024,Fares - Public Transport,International,Staff Expenses Control,178451,7.15
"Department for Energy, Security and Net Zero",The Coal Authority,09/04/2024,Fares - Public Transport,Other Customers,Staff Expenses Control,178878,5.9
"Department for Energy, Security and Net Zero",The Coal Authority,09/04/2024,Fares - Public Transport,Other Customers,Staff Expenses Control,178878,2
"Department for Energy, Security and Net Zero",The Coal Authority,17/04/2024,Fares - Public Transport,Governance & Risk,Staff Expenses Control,179314,7.5
"Department for Energy, Security and Net Zero",The Coal Authority,04/03/2024,Fares - Public Transport,Customer Services & Strategy,Government Procurement Card,179325,7.92
"Department for Energy, Security and Net Zero",The Coal Authority,05/03/2024,Fares - Public Transport,Customer Services & Strategy,Government Procurement Card,179325,8.25
"Department for Energy, Security and Net Zero",The Coal Authority,05/03/2024,Fares - Public Transport,PS&S - General Claims,Government Procurement Card,179325,20
"Department for Energy, Security and Net Zero",The Coal Authority,06/03/2024,Fares - Rail,PS&S - General Claims,Staff Expenses Control,177291,7.58
"Department for Energy, Security and Net Zero",The Coal Authority,27/03/2024,Fares - Rail,Corporate Programme Office,Staff Expenses Control,177291,8.99
"Department for Energy, Security and Net Zero",The Coal Authority,27/03/2024,Fares - Rail,Corporate Programme Office,Staff Expenses Control,178451,11.89
"Department for Energy, Security and Net Zero",The Coal Authority,31/03/2024,Fares - Rail,Finance,Corporate Travel Management North,179032,"3,555.10"
"Department for Energy, Security and Net Zero",The Coal Authority,22/03/2024,Fares - Rail,Heat & By-Product Innovation,Staff Expenses Control,179314,3
"Department for Energy, Security and Net Zero",The Coal Authority,26/03/2024,Fares - Rail,Heat & By-Product Innovation,Staff Expenses Control,179314,9.25
"Department for Energy, Security and Net Zero",The Coal Authority,28/03/2024,Fares - Rail,Innovation By-Product & Services Delivery,Staff Expenses Control,179314,3.8
"Department for Energy, Security and Net Zero",The Coal Authority,27/03/2024,Fares - Rail,Heat & By-Product Innovation,Government Procurement Card,179325,4.8
"Department for Energy, Security and Net Zero",The Coal Authority,27/03/2024,Fuel (Vehicle),Facilities,Allstar Business Solutions Ltd,177185,88.6
"Department for Energy, Security and Net Zero",The Coal Authority,27/03/2024,Fuel (Vehicle),Facilities,Allstar Business Solutions Ltd,177185,38.73
"Department for Energy, Security and Net Zero",The Coal Authority,27/03/2024,Fuel (Vehicle),Facilities,Allstar Business Solutions Ltd,177185,7.6
"Department for Energy, Security and Net Zero",The Coal Authority,27/03/2024,Fuel (Vehicle),Facilities,Allstar Business Solutions Ltd,177185,68.2
"Department for Energy, Security and Net Zero",The Coal Authority,25/03/2024,Fuel (Vehicle),PS&S - General Claims,Staff Expenses Control,177291,16.68
"Department for Energy, Security and Net Zero",The Coal Authority,03/04/2024,Fuel (Vehicle),PS&S - General Claims,Allstar Business Solutions Ltd,177741,75.09
"Department for Energy, Security and Net Zero",The Coal Authority,03/04/2024,Fuel (Vehicle),PS&S - General Claims,Allstar Business Solutions Ltd,177741,32.58
"Department for Energy, Security and Net Zero",The Coal Authority,03/04/2024,Fuel (Vehicle),PS&S - General Claims,Allstar Business Solutions Ltd,177741,81.78
"Department for Energy, Security and Net Zero",The Coal Authority,03/04/2024,Fuel (Vehicle),PS&S - General Claims,Allstar Business Solutions Ltd,177741,50.53
"Department for Energy, Security and Net Zero",The Coal Authority,03/04/2024,Fuel (Vehicle),PS&S - General Claims,Allstar Business Solutions Ltd,177741,17.1
"Department for Energy, Security and Net Zero",The Coal Authority,03/04/2024,Fuel (Vehicle),PS&S - General Claims,Allstar Business Solutions Ltd,177741,37.5
"Department for Energy, Security and Net Zero",The Coal Authority,03/04/2024,Fuel (Vehicle),Tips Response,Allstar Business Solutions Ltd,177741,30.6
"Department for Energy, Security and Net Zero",The Coal Authority,03/04/2024,Fuel (Vehicle),ENV - Projects & Delivery,Allstar Business Solutions Ltd,177750,47.46
"Department for Energy, Security and Net Zero",The Coal Authority,03/04/2024,Fuel (Vehicle),ENV - Projects & Delivery,Allstar Business Solutions Ltd,177750,5.7
"Department for Energy, Security and Net Zero",The Coal Authority,03/04/2024,Fuel (Vehicle),ENV - Projects & Delivery,Allstar Business Solutions Ltd,177750,104.86
"Department for Energy, Security and Net Zero",The Coal Authority,03/04/2024,Fuel (Vehicle),Facilities,Allstar Business Solutions Ltd,177817,91.81
"Department for Energy, Security and Net Zero",The Coal Authority,03/04/2024,Fuel (Vehicle),Facilities,Allstar Business Solutions Ltd,177817,39.14
"Department for Energy, Security and Net Zero",The Coal Authority,03/04/2024,Fuel (Vehicle),Facilities,Allstar Business Solutions Ltd,177817,38.61
"Department for Energy, Security and Net Zero",The Coal Authority,03/04/2024,Fuel (Vehicle),Facilities,Allstar Business Solutions Ltd,177817,101.99
"Department for Energy, Security and Net Zero",The Coal Authority,03/04/2024,Fuel (Vehicle),Facilities,Allstar Business Solutions Ltd,177817,9.5
"Department for Energy, Security and Net Zero",The Coal Authority,15/03/2024,Fuel (Vehicle),ENV - Salinity Programme,Staff Expenses Control,178030,45.13
"Department for Energy, Security and Net Zero",The Coal Authority,26/03/2024,Fuel (Vehicle),ENV - Mine Water Operations,Staff Expenses Control,178030,23.58
"Department for Energy, Security and Net Zero",The Coal Authority,10/04/2024,Fuel (Vehicle),PS&S - General Claims,Allstar Business Solutions Ltd,178284,91.55
"Department for Energy, Security and Net Zero",The Coal Authority,10/04/2024,Fuel (Vehicle),PS&S - General Claims,Allstar Business Solutions Ltd,178284,16.66
"Department for Energy, Security and Net Zero",The Coal Authority,10/04/2024,Fuel (Vehicle),PS&S - General Claims,Allstar Business Solutions Ltd,178284,49.06
"Department for Energy, Security and Net Zero",The Coal Authority,10/04/2024,Fuel (Vehicle),PS&S - General Claims,Allstar Business Solutions Ltd,178284,24.7
"Department for Energy, Security and Net Zero",The Coal Authority,10/04/2024,Fuel (Vehicle),PS&S - General Claims,Allstar Business Solutions Ltd,178284,93.61
"Department for Energy, Security and Net Zero",The Coal Authority,10/04/2024,Fuel (Vehicle),PS&S - General Claims,Allstar Business Solutions Ltd,178284,48.31
"Department for Energy, Security and Net Zero",The Coal Authority,10/04/2024,Fuel (Vehicle),PS&S - General Claims,Allstar Business Solutions Ltd,178284,37.51
"Department for Energy, Security and Net Zero",The Coal Authority,10/04/2024,Fuel (Vehicle),PS&S - General Claims,Allstar Business Solutions Ltd,178284,48.54
"Department for Energy, Security and Net Zero",The Coal Authority,10/04/2024,Fuel (Vehicle),PS&S - General Claims,Allstar Business Solutions Ltd,178284,129.8
"Department for Energy, Security and Net Zero",The Coal Authority,10/04/2024,Fuel (Vehicle),Tips Response,Allstar Business Solutions Ltd,178284,70.7
"Department for Energy, Security and Net Zero",The Coal Authority,10/04/2024,Fuel (Vehicle),Tips Response,Allstar Business Solutions Ltd,178284,54.31
"Department for Energy, Security and Net Zero",The Coal Authority,10/04/2024,Fuel (Vehicle),Tips Response,Allstar Business Solutions Ltd,178284,42.75
"Department for Energy, Security and Net Zero",The Coal Authority,22/11/2023,Fuel (Vehicle),Other Customers,Staff Expenses Control,178451,28.43
"Department for Energy, Security and Net Zero",The Coal Authority,29/11/2023,Fuel (Vehicle),Other Customers,Staff Expenses Control,178451,34.37
"Department for Energy, Security and Net Zero",The Coal Authority,19/03/2024,Fuel (Vehicle),DEV - Property Management,Staff Expenses Control,178451,56.76
"Department for Energy, Security and Net Zero",The Coal Authority,19/03/2024,Fuel (Vehicle),DEV - Property Management,Staff Expenses Control,178451,13.96
"Department for Energy, Security and Net Zero",The Coal Authority,26/03/2024,Fuel (Vehicle),DEFRA Metal Mine Programme,Staff Expenses Control,178451,12.35
"Department for Energy, Security and Net Zero",The Coal Authority,26/03/2024,Fuel (Vehicle),DEFRA Metal Mine Programme,Staff Expenses Control,178451,5.59
"Department for Energy, Security and Net Zero",The Coal Authority,28/03/2024,Fuel (Vehicle),DEFRA Metal Mine Programme,Staff Expenses Control,178451,27.18
"Department for Energy, Security and Net Zero",The Coal Authority,05/04/2024,Fuel (Vehicle),DEFRA Metal Mine Programme,Staff Expenses Control,178451,30.06
"Department for Energy, Security and Net Zero",The Coal Authority,09/04/2024,Fuel (Vehicle),ENV - Projects & Delivery,Staff Expenses Control,178451,42.23
"Department for Energy, Security and Net Zero",The Coal Authority,10/04/2024,Fuel (Vehicle),Facilities,Allstar Business Solutions Ltd,178510,55.86
"Department for Energy, Security and Net Zero",The Coal Authority,10/04/2024,Fuel (Vehicle),Facilities,Allstar Business Solutions Ltd,178510,27.22
"Department for Energy, Security and Net Zero",The Coal Authority,10/04/2024,Fuel (Vehicle),Facilities,Allstar Business Solutions Ltd,178510,3.8
"Department for Energy, Security and Net Zero",The Coal Authority,17/04/2024,Fuel (Vehicle),Facilities,Allstar Business Solutions Ltd,178701,68.5
"Department for Energy, Security and Net Zero",The Coal Authority,17/04/2024,Fuel (Vehicle),Facilities,Allstar Business Solutions Ltd,178701,9.5
"Department for Energy, Security and Net Zero",The Coal Authority,17/04/2024,Fuel (Vehicle),Facilities,Allstar Business Solutions Ltd,178701,96.28
"Department for Energy, Security and Net Zero",The Coal Authority,17/04/2024,Fuel (Vehicle),Facilities,Allstar Business Solutions Ltd,178701,75.03
"Department for Energy, Security and Net Zero",The Coal Authority,17/04/2024,Fuel (Vehicle),PS&S - General Claims,Allstar Business Solutions Ltd,178709,47.23
"Department for Energy, Security and Net Zero",The Coal Authority,17/04/2024,Fuel (Vehicle),PS&S - General Claims,Allstar Business Solutions Ltd,178709,45.32
"Department for Energy, Security and Net Zero",The Coal Authority,17/04/2024,Fuel (Vehicle),PS&S - General Claims,Allstar Business Solutions Ltd,178709,52.43
"Department for Energy, Security and Net Zero",The Coal Authority,17/04/2024,Fuel (Vehicle),PS&S - General Claims,Allstar Business Solutions Ltd,178709,26.03
"Department for Energy, Security and Net Zero",The Coal Authority,17/04/2024,Fuel (Vehicle),PS&S - General Claims,Allstar Business Solutions Ltd,178709,72.22
"Department for Energy, Security and Net Zero",The Coal Authority,17/04/2024,Fuel (Vehicle),PS&S - General Claims,Allstar Business Solutions Ltd,178709,33.33
"Department for Energy, Security and Net Zero",The Coal Authority,17/04/2024,Fuel (Vehicle),PS&S - General Claims,Allstar Business Solutions Ltd,178709,44.56
"Department for Energy, Security and Net Zero",The Coal Authority,17/04/2024,Fuel (Vehicle),PS&S - General Claims,Allstar Business Solutions Ltd,178709,45.58
"Department for Energy, Security and Net Zero",The Coal Authority,17/04/2024,Fuel (Vehicle),PS&S - General Claims,Allstar Business Solutions Ltd,178709,93.99
"Department for Energy, Security and Net Zero",The Coal Authority,17/04/2024,Fuel (Vehicle),PS&S - General Claims,Allstar Business Solutions Ltd,178709,20.9
"Department for Energy, Security and Net Zero",The Coal Authority,17/04/2024,Fuel (Vehicle),Tips Response,Allstar Business Solutions Ltd,178709,38.78
"Department for Energy, Security and Net Zero",The Coal Authority,10/04/2024,Fuel (Vehicle),ENV - Projects & Delivery,Allstar Business Solutions Ltd,178786,47.71
"Department for Energy, Security and Net Zero",The Coal Authority,10/04/2024,Fuel (Vehicle),ENV - Projects & Delivery,Allstar Business Solutions Ltd,178786,146.03
"Department for Energy, Security and Net Zero",The Coal Authority,10/04/2024,Fuel (Vehicle),ENV - Projects & Delivery,Allstar Business Solutions Ltd,178786,7.6
"Department for Energy, Security and Net Zero",The Coal Authority,26/03/2024,Fuel (Vehicle),ENV - Projects & Delivery,Staff Expenses Control,178878,12.51
"Department for Energy, Security and Net Zero",The Coal Authority,24/04/2024,Fuel (Vehicle),Facilities,Allstar Business Solutions Ltd,179146,15.23
"Department for Energy, Security and Net Zero",The Coal Authority,24/04/2024,Fuel (Vehicle),Facilities,Allstar Business Solutions Ltd,179146,100.28
"Department for Energy, Security and Net Zero",The Coal Authority,24/04/2024,Fuel (Vehicle),Facilities,Allstar Business Solutions Ltd,179146,44.23
"Department for Energy, Security and Net Zero",The Coal Authority,24/04/2024,Fuel (Vehicle),Facilities,Allstar Business Solutions Ltd,179146,9.5
"Department for Energy, Security and Net Zero",The Coal Authority,24/04/2024,Fuel (Vehicle),PS&S - General Claims,Allstar Business Solutions Ltd,179221,55.49
"Department for Energy, Security and Net Zero",The Coal Authority,24/04/2024,Fuel (Vehicle),PS&S - General Claims,Allstar Business Solutions Ltd,179221,47.46
"Department for Energy, Security and Net Zero",The Coal Authority,24/04/2024,Fuel (Vehicle),PS&S - General Claims,Allstar Business Solutions Ltd,179221,76.73
"Department for Energy, Security and Net Zero",The Coal Authority,24/04/2024,Fuel (Vehicle),PS&S - General Claims,Allstar Business Solutions Ltd,179221,60.61
"Department for Energy, Security and Net Zero",The Coal Authority,24/04/2024,Fuel (Vehicle),PS&S - General Claims,Allstar Business Solutions Ltd,179221,42.08
"Department for Energy, Security and Net Zero",The Coal Authority,24/04/2024,Fuel (Vehicle),PS&S - General Claims,Allstar Business Solutions Ltd,179221,42.04
"Department for Energy, Security and Net Zero",The Coal Authority,24/04/2024,Fuel (Vehicle),PS&S - General Claims,Allstar Business Solutions Ltd,179221,96.54
"Department for Energy, Security and Net Zero",The Coal Authority,24/04/2024,Fuel (Vehicle),PS&S - General Claims,Allstar Business Solutions Ltd,179221,91.8
"Department for Energy, Security and Net Zero",The Coal Authority,24/04/2024,Fuel (Vehicle),PS&S - General Claims,Allstar Business Solutions Ltd,179221,41.67
"Department for Energy, Security and Net Zero",The Coal Authority,24/04/2024,Fuel (Vehicle),PS&S - General Claims,Allstar Business Solutions Ltd,179221,26.6
"Department for Energy, Security and Net Zero",The Coal Authority,24/04/2024,Fuel (Vehicle),PS&S - General Claims,Allstar Business Solutions Ltd,179221,45.45
"Department for Energy, Security and Net Zero",The Coal Authority,24/04/2024,Fuel (Vehicle),Tips Response,Allstar Business Solutions Ltd,179221,38.75
"Department for Energy, Security and Net Zero",The Coal Authority,24/04/2024,Fuel (Vehicle),Tips Response,Allstar Business Solutions Ltd,179221,77.27
"Department for Energy, Security and Net Zero",The Coal Authority,18/04/2024,Fuel (Vehicle),ENV - Salinity Programme,Staff Expenses Control,179314,42.72
"Department for Energy, Security and Net Zero",The Coal Authority,19/04/2024,Fuel (Vehicle),DEFRA Metal Mine Programme,Staff Expenses Control,179314,40.77
"Department for Energy, Security and Net Zero",The Coal Authority,19/04/2024,Fuel (Vehicle),DEFRA Metal Mine Programme,Staff Expenses Control,179314,14.73
"Department for Energy, Security and Net Zero",The Coal Authority,24/04/2024,Fuel (Vehicle),ENV - Technical,Staff Expenses Control,179314,37.08
"Department for Energy, Security and Net Zero",The Coal Authority,02/02/2024,Fuel (Vehicle),DEFRA LEP Funding,Government Procurement Card,179324,46.02
"Department for Energy, Security and Net Zero",The Coal Authority,08/02/2024,Fuel (Vehicle),DEFRA Metal Mine Programme,Government Procurement Card,179324,50.14
"Department for Energy, Security and Net Zero",The Coal Authority,13/02/2024,Fuel (Vehicle),Customer Services & Strategy,Government Procurement Card,179324,25
"Department for Energy, Security and Net Zero",The Coal Authority,21/02/2024,Fuel (Vehicle),ENV - Mine Water Operations,Government Procurement Card,179324,22.6
"Department for Energy, Security and Net Zero",The Coal Authority,01/03/2024,Fuel (Vehicle),ENV - Mine Water Operations,Government Procurement Card,179325,50
"Department for Energy, Security and Net Zero",The Coal Authority,05/03/2024,Fuel (Vehicle),ENV - Projects & Delivery,Government Procurement Card,179325,25.01
"Department for Energy, Security and Net Zero",The Coal Authority,05/03/2024,Fuel (Vehicle),PS&S - General Claims,Government Procurement Card,179325,33.33
"Department for Energy, Security and Net Zero",The Coal Authority,06/03/2024,Fuel (Vehicle),ENV - Technical,Government Procurement Card,179325,42.38
"Department for Energy, Security and Net Zero",The Coal Authority,07/03/2024,Fuel (Vehicle),Community Response,Government Procurement Card,179325,21.33
"Department for Energy, Security and Net Zero",The Coal Authority,07/03/2024,Fuel (Vehicle),"Health, Safety & Wellbeing",Government Procurement Card,179325,41.41
"Department for Energy, Security and Net Zero",The Coal Authority,07/03/2024,Fuel (Vehicle),PS&S - General Claims,Government Procurement Card,179325,36.19
"Department for Energy, Security and Net Zero",The Coal Authority,07/03/2024,Fuel (Vehicle),PS&S - General Claims,Government Procurement Card,179325,41
"Department for Energy, Security and Net Zero",The Coal Authority,07/03/2024,Fuel (Vehicle),PS&S - General Claims,Government Procurement Card,179325,63.33
"Department for Energy, Security and Net Zero",The Coal Authority,07/03/2024,Fuel (Vehicle),PS&S - General Claims,Government Procurement Card,179325,40.87
"Department for Energy, Security and Net Zero",The Coal Authority,08/03/2024,Fuel (Vehicle),ENV - Mine Water Operations,Government Procurement Card,179325,50
"Department for Energy, Security and Net Zero",The Coal Authority,08/03/2024,Fuel (Vehicle),ENV - Mine Water Operations,Government Procurement Card,179325,63.24
"Department for Energy, Security and Net Zero",The Coal Authority,08/03/2024,Fuel (Vehicle),ENV - Salinity Programme,Government Procurement Card,179325,52.16
"Department for Energy, Security and Net Zero",The Coal Authority,08/03/2024,Fuel (Vehicle),Facilities,Government Procurement Card,179325,63.87
"Department for Energy, Security and Net Zero",The Coal Authority,08/03/2024,Fuel (Vehicle),PS&S - General Claims,Government Procurement Card,179325,36.28
"Department for Energy, Security and Net Zero",The Coal Authority,11/03/2024,Fuel (Vehicle),ENV - Mine Water Operations,Government Procurement Card,179325,35
"Department for Energy, Security and Net Zero",The Coal Authority,11/03/2024,Fuel (Vehicle),PS&S - General Claims,Government Procurement Card,179325,43.83
"Department for Energy, Security and Net Zero",The Coal Authority,11/03/2024,Fuel (Vehicle),PS&S - General Claims,Government Procurement Card,179325,46.98
"Department for Energy, Security and Net Zero",The Coal Authority,12/03/2024,Fuel (Vehicle),ENV - Technical,Government Procurement Card,179325,44.46
"Department for Energy, Security and Net Zero",The Coal Authority,13/03/2024,Fuel (Vehicle),ENV - Technical,Government Procurement Card,179325,41.72
"Department for Energy, Security and Net Zero",The Coal Authority,13/03/2024,Fuel (Vehicle),NRW Metal Mine Programme,Government Procurement Card,179325,26.67
"Department for Energy, Security and Net Zero",The Coal Authority,13/03/2024,Fuel (Vehicle),PS&S - General Claims,Government Procurement Card,179325,37.52
"Department for Energy, Security and Net Zero",The Coal Authority,15/03/2024,Fuel (Vehicle),ENV - Mine Water Operations,Government Procurement Card,179325,58.33
"Department for Energy, Security and Net Zero",The Coal Authority,17/03/2024,Fuel (Vehicle),DEFRA LEP Funding,Government Procurement Card,179325,33.46
"Department for Energy, Security and Net Zero",The Coal Authority,18/03/2024,Fuel (Vehicle),DEFRA LEP Funding,Government Procurement Card,179325,27.08
"Department for Energy, Security and Net Zero",The Coal Authority,18/03/2024,Fuel (Vehicle),ENV - Technical,Government Procurement Card,179325,42.84
"Department for Energy, Security and Net Zero",The Coal Authority,19/03/2024,Fuel (Vehicle),DEFRA LEP Funding,Government Procurement Card,179325,33.15
"Department for Energy, Security and Net Zero",The Coal Authority,20/03/2024,Fuel (Vehicle),ENV - Technical,Government Procurement Card,179325,54.2
"Department for Energy, Security and Net Zero",The Coal Authority,21/03/2024,Fuel (Vehicle),NRW Metal Mine Programme,Government Procurement Card,179325,17.51
"Department for Energy, Security and Net Zero",The Coal Authority,22/03/2024,Fuel (Vehicle),ENV - Mine Water Operations,Government Procurement Card,179325,47.5
"Department for Energy, Security and Net Zero",The Coal Authority,22/03/2024,Fuel (Vehicle),ENV - Mine Water Operations,Government Procurement Card,179325,4.18
"Department for Energy, Security and Net Zero",The Coal Authority,23/03/2024,Fuel (Vehicle),ENV - Technical,Government Procurement Card,179325,15.27
"Department for Energy, Security and Net Zero",The Coal Authority,26/03/2024,Fuel (Vehicle),Board,Government Procurement Card,179325,43.34
"Department for Energy, Security and Net Zero",The Coal Authority,26/03/2024,Fuel (Vehicle),Innovation By-Product & Services Delivery,Government Procurement Card,179325,43.08
"Department for Energy, Security and Net Zero",The Coal Authority,28/03/2024,Fuel (Vehicle),Board,Government Procurement Card,179325,16.7
"Department for Energy, Security and Net Zero",The Coal Authority,28/03/2024,Fuel (Vehicle),Board,Government Procurement Card,179325,53.56
"Department for Energy, Security and Net Zero",The Coal Authority,28/03/2024,Fuel (Vehicle),ENV - Strategy & Sustainability Management,Government Procurement Card,179325,47.5
"Department for Energy, Security and Net Zero",The Coal Authority,28/03/2024,Fuel (Vehicle),Innovation By-Product & Services Delivery,Government Procurement Card,179325,52.29
"Department for Energy, Security and Net Zero",The Coal Authority,31/03/2024,Groundsure Royalty,Mining Reports,Groundsure Limited,178910,"28,474.00"
"Department for Energy, Security and Net Zero",The Coal Authority,01/04/2024,Hardware Equipment & Support,DIG - Technical Delivery,Softcat Limited,178318,"11,481.00"
"Department for Energy, Security and Net Zero",The Coal Authority,22/03/2024,Hardware Equipment & Support,DIG - Technical Delivery,Government Procurement Card,179325,270.32
"Department for Energy, Security and Net Zero",The Coal Authority,31/03/2024,Hotel & Accommodation,Finance,Corporate Travel Management North,178252,2.4
"Department for Energy, Security and Net Zero",The Coal Authority,31/03/2024,Hotel & Accommodation,Finance,Corporate Travel Management North,178252,"2,576.89"
"Department for Energy, Security and Net Zero",The Coal Authority,31/03/2024,Hotel & Accommodation,Finance,Corporate Travel Management North,179032,"1,966.59"
"Department for Energy, Security and Net Zero",The Coal Authority,31/03/2024,Hotel & Accommodation,Finance,Corporate Travel Management North,179032,"12,832.61"
"Department for Energy, Security and Net Zero",The Coal Authority,08/03/2024,Hotel & Accommodation,DEFRA LEP Funding,Government Procurement Card,179325,139
"Department for Energy, Security and Net Zero",The Coal Authority,28/03/2024,Hotel & Accommodation,DEFRA LEP Funding,Government Procurement Card,179325,42.5
"Department for Energy, Security and Net Zero",The Coal Authority,28/03/2024,Hotel & Accommodation,DEFRA Metal Mine Programme,Government Procurement Card,179325,42.5
"Department for Energy, Security and Net Zero",The Coal Authority,28/03/2024,Hotel & Accommodation,DEFRA Metal Mine Programme,Government Procurement Card,179325,42.5
"Department for Energy, Security and Net Zero",The Coal Authority,28/03/2024,Hotel & Accommodation,DEFRA Metal Mine Programme,Government Procurement Card,179325,42.5
"Department for Energy, Security and Net Zero",The Coal Authority,21/11/2023,Incidentals,DIG - GIS,Staff Expenses Control,177291,4.96
"Department for Energy, Security and Net Zero",The Coal Authority,27/11/2023,Incidentals,DIG - GIS,Staff Expenses Control,177291,11.67
"Department for Energy, Security and Net Zero",The Coal Authority,27/03/2024,Incidentals,Tips Response,Staff Expenses Control,177291,5.42
"Department for Energy, Security and Net Zero",The Coal Authority,28/03/2024,Incidentals,Tips Response,Staff Expenses Control,177291,22.47
"Department for Energy, Security and Net Zero",The Coal Authority,25/01/2024,Incidentals,Executive,Staff Expenses Control,178030,1.83
"Department for Energy, Security and Net Zero",The Coal Authority,08/04/2024,Incidentals,Engineering,Staff Expenses Control,178451,4.42
"Department for Energy, Security and Net Zero",The Coal Authority,09/04/2024,Incidentals,"Business Planning, Risk & Systems",Staff Expenses Control,178451,3.79
"Department for Energy, Security and Net Zero",The Coal Authority,01/04/2024,Incidentals,Finance,Security Plus Limited,179091,16.61
"Department for Energy, Security and Net Zero",The Coal Authority,08/04/2024,Incidentals,ENV - Mine Water Operations,Staff Expenses Control,179314,14.58
"Department for Energy, Security and Net Zero",The Coal Authority,11/04/2024,Incidentals,ENV - Technical,Staff Expenses Control,179314,7.7
"Department for Energy, Security and Net Zero",The Coal Authority,17/04/2024,Incidentals,ENV - Salinity Programme,Staff Expenses Control,179314,4.17
"Department for Energy, Security and Net Zero",The Coal Authority,19/04/2024,Incidentals,DEFRA Metal Mine Programme,Staff Expenses Control,179314,6.17
"Department for Energy, Security and Net Zero",The Coal Authority,19/04/2024,Incidentals,DEFRA Metal Mine Programme,Staff Expenses Control,179314,6.17
"Department for Energy, Security and Net Zero",The Coal Authority,23/04/2024,Incidentals,ENV - Technical,Staff Expenses Control,179314,12
"Department for Energy, Security and Net Zero",The Coal Authority,01/02/2024,Incidentals,ENV - Strategy & Sustainability Management,Government Procurement Card,179323,4.4
"Department for Energy, Security and Net Zero",The Coal Authority,02/02/2024,Incidentals,Executive Assistants,Government Procurement Card,179324,-14.8
"Department for Energy, Security and Net Zero",The Coal Authority,13/02/2024,Incidentals,Executive,Government Procurement Card,179324,12
"Department for Energy, Security and Net Zero",The Coal Authority,15/02/2024,Incidentals,Executive,Government Procurement Card,179324,15.5
"Department for Energy, Security and Net Zero",The Coal Authority,04/03/2024,Incidentals,Community Response,Government Procurement Card,179325,12
"Department for Energy, Security and Net Zero",The Coal Authority,04/03/2024,Incidentals,PS&S - General Claims,Government Procurement Card,179325,2.49
"Department for Energy, Security and Net Zero",The Coal Authority,04/03/2024,Incidentals,PS&S - General Claims,Government Procurement Card,179325,6
"Department for Energy, Security and Net Zero",The Coal Authority,05/03/2024,Incidentals,"Health, Safety & Wellbeing",Government Procurement Card,179325,16.5
"Department for Energy, Security and Net Zero",The Coal Authority,05/03/2024,Incidentals,PS&S - General Claims,Government Procurement Card,179325,20
"Department for Energy, Security and Net Zero",The Coal Authority,05/03/2024,Incidentals,PS&S - General Claims,Government Procurement Card,179325,20
"Department for Energy, Security and Net Zero",The Coal Authority,06/03/2024,Incidentals,DEV - Property Management,Government Procurement Card,179325,10.6
"Department for Energy, Security and Net Zero",The Coal Authority,06/03/2024,Incidentals,PS&S - General Claims,Government Procurement Card,179325,16.62
"Department for Energy, Security and Net Zero",The Coal Authority,06/03/2024,Incidentals,PS&S - General Claims,Government Procurement Card,179325,15.5
"Department for Energy, Security and Net Zero",The Coal Authority,06/03/2024,Incidentals,PS&S - General Claims,Government Procurement Card,179325,16.62
"Department for Energy, Security and Net Zero",The Coal Authority,06/03/2024,Incidentals,PS&S - General Claims,Government Procurement Card,179325,16.62
"Department for Energy, Security and Net Zero",The Coal Authority,06/03/2024,Incidentals,PS&S - General Claims,Government Procurement Card,179325,39
"Department for Energy, Security and Net Zero",The Coal Authority,06/03/2024,Incidentals,PS&S - General Claims,Government Procurement Card,179325,16.62
"Department for Energy, Security and Net Zero",The Coal Authority,06/03/2024,Incidentals,PS&S - Management,Government Procurement Card,179325,13.29
"Department for Energy, Security and Net Zero",The Coal Authority,07/03/2024,Incidentals,"Health, Safety & Wellbeing",Government Procurement Card,179325,17
"Department for Energy, Security and Net Zero",The Coal Authority,07/03/2024,Incidentals,Incident & Emergency Response,Government Procurement Card,179325,1.4
"Department for Energy, Security and Net Zero",The Coal Authority,07/03/2024,Incidentals,Incident & Emergency Response,Government Procurement Card,179325,1.4
"Department for Energy, Security and Net Zero",The Coal Authority,07/03/2024,Incidentals,Incident & Emergency Response,Government Procurement Card,179325,1.4
"Department for Energy, Security and Net Zero",The Coal Authority,07/03/2024,Incidentals,Incident & Emergency Response,Government Procurement Card,179325,1.4
"Department for Energy, Security and Net Zero",The Coal Authority,07/03/2024,Incidentals,Incident & Emergency Response,Government Procurement Card,179325,1.4
"Department for Energy, Security and Net Zero",The Coal Authority,07/03/2024,Incidentals,PS&S - General Claims,Government Procurement Card,179325,26.74
"Department for Energy, Security and Net Zero",The Coal Authority,08/03/2024,Incidentals,ENV - Mine Water Operations,Government Procurement Card,179325,4.4
"Department for Energy, Security and Net Zero",The Coal Authority,10/03/2024,Incidentals,ENV - Mine Water Operations,Government Procurement Card,179325,9.98
"Department for Energy, Security and Net Zero",The Coal Authority,11/03/2024,Incidentals,PS&S - General Claims,Government Procurement Card,179325,21.33
"Department for Energy, Security and Net Zero",The Coal Authority,12/03/2024,Incidentals,Customer Services & Strategy,Government Procurement Card,179325,14.5
"Department for Energy, Security and Net Zero",The Coal Authority,12/03/2024,Incidentals,Customer Services & Strategy,Government Procurement Card,179325,9.1
"Department for Energy, Security and Net Zero",The Coal Authority,12/03/2024,Incidentals,DEV - Property Management,Government Procurement Card,179325,17
"Department for Energy, Security and Net Zero",The Coal Authority,14/03/2024,Incidentals,Customer Services & Strategy,Government Procurement Card,179325,37.5
"Department for Energy, Security and Net Zero",The Coal Authority,20/03/2024,Incidentals,Executive,Government Procurement Card,179325,4.79
"Department for Energy, Security and Net Zero",The Coal Authority,20/03/2024,Incidentals,NRW Metal Mine Programme,Government Procurement Card,179325,8.9
"Department for Energy, Security and Net Zero",The Coal Authority,21/03/2024,Incidentals,ENV - Mine Water Operations,Government Procurement Card,179325,4.08
"Department for Energy, Security and Net Zero",The Coal Authority,22/03/2024,Incidentals,PS&S - General Claims,Government Procurement Card,179325,4.33
"Department for Energy, Security and Net Zero",The Coal Authority,24/03/2024,Incidentals,ENV - Technical,Government Procurement Card,179325,17.19
"Department for Energy, Security and Net Zero",The Coal Authority,25/03/2024,Incidentals,Innovation By-Product & Services Delivery,Government Procurement Card,179325,4
"Department for Energy, Security and Net Zero",The Coal Authority,26/03/2024,Incidentals,Board,Government Procurement Card,179325,20
"Department for Energy, Security and Net Zero",The Coal Authority,26/03/2024,Incidentals,Customer Services & Strategy,Government Procurement Card,179325,22
"Department for Energy, Security and Net Zero",The Coal Authority,26/03/2024,Incidentals,PS&S - General Claims,Government Procurement Card,179325,20
"Department for Energy, Security and Net Zero",The Coal Authority,26/03/2024,Incidentals,PS&S - General Claims,Government Procurement Card,179325,7
"Department for Energy, Security and Net Zero",The Coal Authority,27/03/2024,Incidentals,Corporate Programme Office,Government Procurement Card,179325,6
"Department for Energy, Security and Net Zero",The Coal Authority,27/03/2024,Incidentals,Tips Response,Government Procurement Card,179325,16.67
"Department for Energy, Security and Net Zero",The Coal Authority,28/03/2024,Incidentals,Board,Government Procurement Card,179325,-20
"Department for Energy, Security and Net Zero",The Coal Authority,28/03/2024,Incidentals,Board,Government Procurement Card,179325,53.92
"Department for Energy, Security and Net Zero",The Coal Authority,11/03/2024,Innovation Costs,Innovation By-Product & Services Delivery,Staff Expenses Control,177291,7.06
"Department for Energy, Security and Net Zero",The Coal Authority,19/03/2024,Innovation Costs,ENV - Salinity Programme,Staff Expenses Control,178030,7.98
"Department for Energy, Security and Net Zero",The Coal Authority,12/02/2024,Innovation Costs,Innovation By-Product & Services Delivery,Land Registry,178039,"8,078.00"
"Department for Energy, Security and Net Zero",The Coal Authority,08/04/2024,Innovation Costs,Innovation By-Product & Services Delivery,Severn Trent Serv Ops Uk Ltd,178394,"1,543.30"
"Department for Energy, Security and Net Zero",The Coal Authority,18/09/2023,Innovation Costs,Innovation By-Product & Services Delivery,University of Birmingham Enterprise Limited,178918,"7,500.00"
"Department for Energy, Security and Net Zero",The Coal Authority,13/03/2024,Innovation Costs,DEFRA LEP Funding,Government Procurement Card,179325,18.63
"Department for Energy, Security and Net Zero",The Coal Authority,18/04/2024,Internal Audit Fees,Finance,Gbs Re Treasury Votes Cash 1,179402,"15,492.00"
"Department for Energy, Security and Net Zero",The Coal Authority,17/02/2024,Internet Service Provider & Comms,DIG - Technical Delivery,Government Procurement Card,179324,15
"Department for Energy, Security and Net Zero",The Coal Authority,27/02/2024,Internet Service Provider & Comms,Executive,Government Procurement Card,179325,161
"Department for Energy, Security and Net Zero",The Coal Authority,12/03/2024,Internet Service Provider & Comms,DIG - Technical Delivery,Government Procurement Card,179325,6.43
"Department for Energy, Security and Net Zero",The Coal Authority,12/03/2024,Internet Service Provider & Comms,DIG - Technical Delivery,Government Procurement Card,179325,6.43
"Department for Energy, Security and Net Zero",The Coal Authority,17/03/2024,Internet Service Provider & Comms,DIG - Technical Delivery,Government Procurement Card,179325,49.95
"Department for Energy, Security and Net Zero",The Coal Authority,16/04/2024,Law Society Facilitation Fee,Mining Reports,The Law Society,178917,845.28
"Department for Energy, Security and Net Zero",The Coal Authority,11/04/2024,Legal - General,PS&S - General Claims,Registers Of Scotland,178344,60
"Department for Energy, Security and Net Zero",The Coal Authority,28/03/2024,Legal - General,Legal & Governance,Walker Morris,178946,225.6
"Department for Energy, Security and Net Zero",The Coal Authority,20/03/2024,Legal - General,ENV - Mine Water Operations,Browne Jacobson Llp Client Account,179026,"2,121.90"
"Department for Energy, Security and Net Zero",The Coal Authority,20/03/2024,Legal - General,ENV - Mine Water Operations,Browne Jacobson Llp Client Account,179026,"3,000.00"
"Department for Energy, Security and Net Zero",The Coal Authority,20/03/2024,Legal - General,ENV - Mine Water Operations,Browne Jacobson Llp Client Account,179026,84.3
"Department for Energy, Security and Net Zero",The Coal Authority,19/03/2024,Legal - General,Legal & Governance,Browne Jacobson Llp Client Account,179027,"1,635.40"
"Department for Energy, Security and Net Zero",The Coal Authority,25/03/2024,Legal - General,Legal & Governance,Browne Jacobson Llp Client Account,179028,"1,325.80"
"Department for Energy, Security and Net Zero",The Coal Authority,25/03/2024,Legal - General,Legal & Governance,Browne Jacobson Llp Client Account,179029,96
"Department for Energy, Security and Net Zero",The Coal Authority,19/03/2024,Legal - General,Legal & Governance,Browne Jacobson Llp Client Account,179133,"2,229.20"
"Department for Energy, Security and Net Zero",The Coal Authority,27/03/2024,Legal - General,Legal & Governance,Browne Jacobson Llp Client Account,179136,"4,024.80"
"Department for Energy, Security and Net Zero",The Coal Authority,26/03/2024,Legal - General,Legal & Governance,Browne Jacobson Llp Client Account,179177,"4,512.18"
"Department for Energy, Security and Net Zero",The Coal Authority,20/03/2024,Legal - General,Legal & Governance,Browne Jacobson Llp Client Account,179178,"4,304.00"
"Department for Energy, Security and Net Zero",The Coal Authority,27/03/2024,Legal - General,Legal & Governance,Browne Jacobson Llp Client Account,179200,"3,068.00"
"Department for Energy, Security and Net Zero",The Coal Authority,27/03/2024,Legal - General,Legal & Governance,Browne Jacobson Llp Client Account,179200,"3,450.00"
"Department for Energy, Security and Net Zero",The Coal Authority,19/03/2024,Legal - General,Legal & Governance,Browne Jacobson Llp Client Account,179201,669.2
"Department for Energy, Security and Net Zero",The Coal Authority,25/03/2024,Legal - General,Legal & Governance,Browne Jacobson Llp Client Account,179202,218.6
"Department for Energy, Security and Net Zero",The Coal Authority,25/03/2024,Legal - General,DEFRA Metal Mine Programme,Browne Jacobson Llp Client Account,179203,19.2
"Department for Energy, Security and Net Zero",The Coal Authority,27/03/2024,Legal - General,Legal & Governance,Browne Jacobson Llp Client Account,179204,159.5
"Department for Energy, Security and Net Zero",The Coal Authority,25/04/2024,Legal - General,Legal & Governance,Dla Piper Uk Llp,179320,"8,797.00"
"Department for Energy, Security and Net Zero",The Coal Authority,25/04/2024,Legal - General,Legal & Governance,Dla Piper Uk Llp,179320,"9,112.50"
"Department for Energy, Security and Net Zero",The Coal Authority,25/04/2024,Legal - General,Legal & Governance,Dla Piper Scotland Llp,179321,"2,576.00"
"Department for Energy, Security and Net Zero",The Coal Authority,25/04/2024,Legal - General,Legal & Governance,Dla Piper Scotland Llp,179321,623.7
"Department for Energy, Security and Net Zero",The Coal Authority,25/04/2024,Legal - General,Legal & Governance,Dla Piper Scotland Llp,179321,207.9
"Department for Energy, Security and Net Zero",The Coal Authority,25/04/2024,Legal - General,Legal & Governance,Dla Piper Scotland Llp,179321,237.6
"Department for Energy, Security and Net Zero",The Coal Authority,25/03/2024,Legal - Property Title Search,Legal & Governance,Land Registry,177376,65
"Department for Energy, Security and Net Zero",The Coal Authority,05/04/2024,Legal - Property Title Search,Legal & Governance,Land Registry,178463,30
"Department for Energy, Security and Net Zero",The Coal Authority,28/03/2024,Legal - Property Title Search,Legal & Governance,Mda Searchflow Ltd,179010,219.89
"Department for Energy, Security and Net Zero",The Coal Authority,28/03/2024,Legal - Property Title Search,Legal & Governance,Mda Searchflow Ltd,179010,15
"Department for Energy, Security and Net Zero",The Coal Authority,28/03/2024,Legal - Property Title Search,Legal & Governance,Land Registry,179076,21
"Department for Energy, Security and Net Zero",The Coal Authority,19/04/2024,Legal - Property Title Search,Legal & Governance,Land Registry,179092,27
"Department for Energy, Security and Net Zero",The Coal Authority,12/04/2024,Legal - Property Title Search,Legal & Governance,Land Registry,179299,42
"Department for Energy, Security and Net Zero",The Coal Authority,20/03/2024,Legal - Property Valuation Fees,DEV - Property Management,Lambert Smith Hampton,177397,950
"Department for Energy, Security and Net Zero",The Coal Authority,31/03/2024,Legal - Property Valuation Fees,DEV - Property Management,Savills (Uk) Ltd,177398,"2,950.00"
"Department for Energy, Security and Net Zero",The Coal Authority,08/04/2024,Membership Subscriptions,DEV - Property Management,Staff Expenses Control,178878,65
"Department for Energy, Security and Net Zero",The Coal Authority,29/04/2024,Membership Subscriptions,ENV - Technical,Staff Expenses Control,179314,90.83
"Department for Energy, Security and Net Zero",The Coal Authority,03/03/2024,Membership Subscriptions,Customer Services & Strategy,Government Procurement Card,179325,247.33
"Department for Energy, Security and Net Zero",The Coal Authority,04/03/2024,Membership Subscriptions,Community Response,Government Procurement Card,179325,9.17
"Department for Energy, Security and Net Zero",The Coal Authority,30/11/2023,Mileage Payments,DIG - GIS,Staff Expenses Control,177291,33.75
"Department for Energy, Security and Net Zero",The Coal Authority,12/01/2024,Mileage Payments,PS&S - General Claims,Staff Expenses Control,177291,5.79
"Department for Energy, Security and Net Zero",The Coal Authority,12/01/2024,Mileage Payments,PS&S - General Claims,Staff Expenses Control,177291,2.81
"Department for Energy, Security and Net Zero",The Coal Authority,12/01/2024,Mileage Payments,PS&S - General Claims,Staff Expenses Control,177291,5.79
"Department for Energy, Security and Net Zero",The Coal Authority,18/01/2024,Mileage Payments,PS&S - General Claims,Staff Expenses Control,177291,17.1
"Department for Energy, Security and Net Zero",The Coal Authority,25/01/2024,Mileage Payments,PS&S - General Claims,Staff Expenses Control,177291,11.7
"Department for Energy, Security and Net Zero",The Coal Authority,01/02/2024,Mileage Payments,PS&S - General Claims,Staff Expenses Control,177291,8.65
"Department for Energy, Security and Net Zero",The Coal Authority,01/02/2024,Mileage Payments,PS&S - General Claims,Staff Expenses Control,177291,6.25
"Department for Energy, Security and Net Zero",The Coal Authority,01/02/2024,Mileage Payments,PS&S - General Claims,Staff Expenses Control,177291,3.72
"Department for Energy, Security and Net Zero",The Coal Authority,01/02/2024,Mileage Payments,PS&S - General Claims,Staff Expenses Control,177291,7.9
"Department for Energy, Security and Net Zero",The Coal Authority,01/02/2024,Mileage Payments,PS&S - General Claims,Staff Expenses Control,177291,0.53
"Department for Energy, Security and Net Zero",The Coal Authority,01/02/2024,Mileage Payments,PS&S - General Claims,Staff Expenses Control,177291,19.02
"Department for Energy, Security and Net Zero",The Coal Authority,06/02/2024,Mileage Payments,PS&S - General Claims,Staff Expenses Control,177291,20.51
"Department for Energy, Security and Net Zero",The Coal Authority,06/02/2024,Mileage Payments,PS&S - General Claims,Staff Expenses Control,177291,2.52
"Department for Energy, Security and Net Zero",The Coal Authority,06/02/2024,Mileage Payments,PS&S - General Claims,Staff Expenses Control,177291,2.7
"Department for Energy, Security and Net Zero",The Coal Authority,06/02/2024,Mileage Payments,PS&S - General Claims,Staff Expenses Control,177291,10.4
"Department for Energy, Security and Net Zero",The Coal Authority,06/02/2024,Mileage Payments,PS&S - General Claims,Staff Expenses Control,177291,12.85
"Department for Energy, Security and Net Zero",The Coal Authority,08/02/2024,Mileage Payments,PS&S - General Claims,Staff Expenses Control,177291,5.7
"Department for Energy, Security and Net Zero",The Coal Authority,20/02/2024,Mileage Payments,PS&S - General Claims,Staff Expenses Control,177291,13.5
"Department for Energy, Security and Net Zero",The Coal Authority,23/02/2024,Mileage Payments,PS&S - General Claims,Staff Expenses Control,177291,11.7
"Department for Energy, Security and Net Zero",The Coal Authority,28/02/2024,Mileage Payments,PS&S - General Claims,Staff Expenses Control,177291,18.59
"Department for Energy, Security and Net Zero",The Coal Authority,28/02/2024,Mileage Payments,PS&S - General Claims,Staff Expenses Control,177291,18.59
"Department for Energy, Security and Net Zero",The Coal Authority,28/02/2024,Mileage Payments,PS&S - General Claims,Staff Expenses Control,177291,15.55
"Department for Energy, Security and Net Zero",The Coal Authority,28/02/2024,Mileage Payments,PS&S - General Claims,Staff Expenses Control,177291,15.46
"Department for Energy, Security and Net Zero",The Coal Authority,29/02/2024,Mileage Payments,PS&S - General Claims,Staff Expenses Control,177291,11.7
"Department for Energy, Security and Net Zero",The Coal Authority,07/03/2024,Mileage Payments,PS&S - General Claims,Staff Expenses Control,177291,6.87
"Department for Energy, Security and Net Zero",The Coal Authority,07/03/2024,Mileage Payments,PS&S - General Claims,Staff Expenses Control,177291,6.63
"Department for Energy, Security and Net Zero",The Coal Authority,07/03/2024,Mileage Payments,PS&S - General Claims,Staff Expenses Control,177291,11.7
"Department for Energy, Security and Net Zero",The Coal Authority,12/03/2024,Mileage Payments,PS&S - General Claims,Staff Expenses Control,177291,6.87
"Department for Energy, Security and Net Zero",The Coal Authority,12/03/2024,Mileage Payments,PS&S - General Claims,Staff Expenses Control,177291,6.63
"Department for Energy, Security and Net Zero",The Coal Authority,13/03/2024,Mileage Payments,Innovation By-Product & Services Delivery,Staff Expenses Control,177291,20.93
"Department for Energy, Security and Net Zero",The Coal Authority,13/03/2024,Mileage Payments,Innovation By-Product & Services Delivery,Staff Expenses Control,177291,17.1
"Department for Energy, Security and Net Zero",The Coal Authority,14/03/2024,Mileage Payments,PS&S - General Claims,Staff Expenses Control,177291,39.6
"Department for Energy, Security and Net Zero",The Coal Authority,15/03/2024,Mileage Payments,PS&S - General Claims,Staff Expenses Control,177291,6.87
"Department for Energy, Security and Net Zero",The Coal Authority,15/03/2024,Mileage Payments,PS&S - General Claims,Staff Expenses Control,177291,6.63
"Department for Energy, Security and Net Zero",The Coal Authority,19/03/2024,Mileage Payments,DEFRA Metal Mine Programme,Staff Expenses Control,177291,18.13
"Department for Energy, Security and Net Zero",The Coal Authority,19/03/2024,Mileage Payments,DEFRA Metal Mine Programme,Staff Expenses Control,177291,5.35
"Department for Energy, Security and Net Zero",The Coal Authority,19/03/2024,Mileage Payments,DEFRA Metal Mine Programme,Staff Expenses Control,177291,18.41
"Department for Energy, Security and Net Zero",The Coal Authority,19/03/2024,Mileage Payments,DEFRA Metal Mine Programme,Staff Expenses Control,177291,5.37
"Department for Energy, Security and Net Zero",The Coal Authority,19/03/2024,Mileage Payments,Innovation By-Product & Services Delivery,Staff Expenses Control,177291,38.25
"Department for Energy, Security and Net Zero",The Coal Authority,19/03/2024,Mileage Payments,Innovation By-Product & Services Delivery,Staff Expenses Control,177291,38.25
"Department for Energy, Security and Net Zero",The Coal Authority,20/03/2024,Mileage Payments,Innovation By-Product & Services Delivery,Staff Expenses Control,177291,2.69
"Department for Energy, Security and Net Zero",The Coal Authority,20/03/2024,Mileage Payments,Innovation By-Product & Services Delivery,Staff Expenses Control,177291,1
"Department for Energy, Security and Net Zero",The Coal Authority,20/03/2024,Mileage Payments,Innovation By-Product & Services Delivery,Staff Expenses Control,177291,19.01
"Department for Energy, Security and Net Zero",The Coal Authority,20/03/2024,Mileage Payments,Innovation By-Product & Services Delivery,Staff Expenses Control,177291,20
"Department for Energy, Security and Net Zero",The Coal Authority,20/03/2024,Mileage Payments,Innovation By-Product & Services Delivery,Staff Expenses Control,177291,2.71
"Department for Energy, Security and Net Zero",The Coal Authority,21/03/2024,Mileage Payments,PS&S - General Claims,Staff Expenses Control,177291,21.72
"Department for Energy, Security and Net Zero",The Coal Authority,21/03/2024,Mileage Payments,PS&S - General Claims,Staff Expenses Control,177291,21.56
"Department for Energy, Security and Net Zero",The Coal Authority,22/03/2024,Mileage Payments,Innovation By-Product & Services Delivery,Staff Expenses Control,177291,65.43
"Department for Energy, Security and Net Zero",The Coal Authority,22/03/2024,Mileage Payments,Innovation By-Product & Services Delivery,Staff Expenses Control,177291,63.14
"Department for Energy, Security and Net Zero",The Coal Authority,26/03/2024,Mileage Payments,PS&S - General Claims,Staff Expenses Control,177291,6.87
"Department for Energy, Security and Net Zero",The Coal Authority,26/03/2024,Mileage Payments,PS&S - General Claims,Staff Expenses Control,177291,6.63
"Department for Energy, Security and Net Zero",The Coal Authority,27/03/2024,Mileage Payments,PS&S - General Claims,Staff Expenses Control,177291,6.87
"Department for Energy, Security and Net Zero",The Coal Authority,27/03/2024,Mileage Payments,PS&S - General Claims,Staff Expenses Control,177291,6.63
"Department for Energy, Security and Net Zero",The Coal Authority,27/03/2024,Mileage Payments,PS&S - General Claims,Staff Expenses Control,177291,16.2
"Department for Energy, Security and Net Zero",The Coal Authority,08/11/2023,Mileage Payments,ENV - Salinity Programme,Staff Expenses Control,178030,27
"Department for Energy, Security and Net Zero",The Coal Authority,14/01/2024,Mileage Payments,Executive,Staff Expenses Control,178030,5.85
"Department for Energy, Security and Net Zero",The Coal Authority,25/01/2024,Mileage Payments,ENV - Salinity Programme,Staff Expenses Control,178030,99
"Department for Energy, Security and Net Zero",The Coal Authority,26/03/2024,Mileage Payments,Customer Services & Strategy,Staff Expenses Control,178030,3.65
"Department for Energy, Security and Net Zero",The Coal Authority,26/03/2024,Mileage Payments,Customer Services & Strategy,Staff Expenses Control,178030,3.66
"Department for Energy, Security and Net Zero",The Coal Authority,24/02/2024,Mileage Payments,ENV - Technical,Staff Expenses Control,178451,5.4
"Department for Energy, Security and Net Zero",The Coal Authority,24/02/2024,Mileage Payments,ENV - Technical,Staff Expenses Control,178451,9.21
"Department for Energy, Security and Net Zero",The Coal Authority,24/02/2024,Mileage Payments,ENV - Technical,Staff Expenses Control,178451,3.06
"Department for Energy, Security and Net Zero",The Coal Authority,24/02/2024,Mileage Payments,ENV - Technical,Staff Expenses Control,178451,4.11
"Department for Energy, Security and Net Zero",The Coal Authority,24/02/2024,Mileage Payments,ENV - Technical,Staff Expenses Control,178451,5.85
"Department for Energy, Security and Net Zero",The Coal Authority,06/03/2024,Mileage Payments,Innovation By-Product & Services Delivery,Staff Expenses Control,178451,22.3
"Department for Energy, Security and Net Zero",The Coal Authority,06/03/2024,Mileage Payments,Innovation By-Product & Services Delivery,Staff Expenses Control,178451,22.15
"Department for Energy, Security and Net Zero",The Coal Authority,07/03/2024,Mileage Payments,Tip Management Services,Staff Expenses Control,178451,6.96
"Department for Energy, Security and Net Zero",The Coal Authority,07/03/2024,Mileage Payments,Tip Management Services,Staff Expenses Control,178451,6.93
"Department for Energy, Security and Net Zero",The Coal Authority,19/03/2024,Mileage Payments,Tip Management Services,Staff Expenses Control,178451,5.45
"Department for Energy, Security and Net Zero",The Coal Authority,19/03/2024,Mileage Payments,Tip Management Services,Staff Expenses Control,178451,5.35
"Department for Energy, Security and Net Zero",The Coal Authority,27/03/2024,Mileage Payments,Corporate Programme Office,Staff Expenses Control,178451,6.75
"Department for Energy, Security and Net Zero",The Coal Authority,27/03/2024,Mileage Payments,Corporate Programme Office,Staff Expenses Control,178451,6.7
"Department for Energy, Security and Net Zero",The Coal Authority,02/04/2024,Mileage Payments,DEFRA Metal Mine Programme,Staff Expenses Control,178451,5.19
"Department for Energy, Security and Net Zero",The Coal Authority,02/04/2024,Mileage Payments,DEFRA Metal Mine Programme,Staff Expenses Control,178451,5.03
"Department for Energy, Security and Net Zero",The Coal Authority,02/04/2024,Mileage Payments,Innovation By-Product & Services Delivery,Staff Expenses Control,178451,8.29
"Department for Energy, Security and Net Zero",The Coal Authority,02/04/2024,Mileage Payments,Innovation By-Product & Services Delivery,Staff Expenses Control,178451,30.18
"Department for Energy, Security and Net Zero",The Coal Authority,02/04/2024,Mileage Payments,Innovation By-Product & Services Delivery,Staff Expenses Control,178451,31.01
"Department for Energy, Security and Net Zero",The Coal Authority,08/04/2024,Mileage Payments,Engineering,Staff Expenses Control,178451,10.35
"Department for Energy, Security and Net Zero",The Coal Authority,08/04/2024,Mileage Payments,Engineering,Staff Expenses Control,178451,10.35
"Department for Energy, Security and Net Zero",The Coal Authority,09/04/2024,Mileage Payments,Innovation By-Product & Services Delivery,Staff Expenses Control,178451,4.16
"Department for Energy, Security and Net Zero",The Coal Authority,09/04/2024,Mileage Payments,Innovation By-Product & Services Delivery,Staff Expenses Control,178451,22.77
"Department for Energy, Security and Net Zero",The Coal Authority,09/04/2024,Mileage Payments,Innovation By-Product & Services Delivery,Staff Expenses Control,178451,20.21
"Department for Energy, Security and Net Zero",The Coal Authority,10/04/2024,Mileage Payments,Innovation By-Product & Services Delivery,Staff Expenses Control,178451,63.63
"Department for Energy, Security and Net Zero",The Coal Authority,10/04/2024,Mileage Payments,Innovation By-Product & Services Delivery,Staff Expenses Control,178451,63.14
"Department for Energy, Security and Net Zero",The Coal Authority,10/04/2024,Mileage Payments,Tip Management Services,Staff Expenses Control,178451,10.26
"Department for Energy, Security and Net Zero",The Coal Authority,10/04/2024,Mileage Payments,Tip Management Services,Staff Expenses Control,178451,10.72
"Department for Energy, Security and Net Zero",The Coal Authority,12/04/2024,Mileage Payments,Tip Management Services,Staff Expenses Control,178451,12.6
"Department for Energy, Security and Net Zero",The Coal Authority,12/04/2024,Mileage Payments,Tip Management Services,Staff Expenses Control,178451,12.6
"Department for Energy, Security and Net Zero",The Coal Authority,13/11/2023,Mileage Payments,ENV - Salinity Programme,Staff Expenses Control,178878,94.5
"Department for Energy, Security and Net Zero",The Coal Authority,20/03/2024,Mileage Payments,ENV - Technical,Staff Expenses Control,178878,13.72
"Department for Energy, Security and Net Zero",The Coal Authority,20/03/2024,Mileage Payments,ENV - Technical,Staff Expenses Control,178878,9
"Department for Energy, Security and Net Zero",The Coal Authority,11/04/2024,Mileage Payments,ENV - Projects & Delivery,Staff Expenses Control,178878,49.5
"Department for Energy, Security and Net Zero",The Coal Authority,12/04/2024,Mileage Payments,ENV - Projects & Delivery,Staff Expenses Control,178878,49.29
"Department for Energy, Security and Net Zero",The Coal Authority,15/04/2024,Mileage Payments,Engineering,Staff Expenses Control,178878,10.35
"Department for Energy, Security and Net Zero",The Coal Authority,15/04/2024,Mileage Payments,Engineering,Staff Expenses Control,178878,10.35
"Department for Energy, Security and Net Zero",The Coal Authority,17/04/2024,Mileage Payments,Innovation By-Product & Services Delivery,Staff Expenses Control,178878,63.14
"Department for Energy, Security and Net Zero",The Coal Authority,17/04/2024,Mileage Payments,Innovation By-Product & Services Delivery,Staff Expenses Control,178878,63.63
"Department for Energy, Security and Net Zero",The Coal Authority,02/04/2024,Mileage Payments,PS&S - General Claims,Staff Expenses Control,179314,39.15
"Department for Energy, Security and Net Zero",The Coal Authority,08/04/2024,Mileage Payments,PS&S - General Claims,Staff Expenses Control,179314,12.6
"Department for Energy, Security and Net Zero",The Coal Authority,09/04/2024,Mileage Payments,NRW Metal Mine Programme,Staff Expenses Control,179314,2.44
"Department for Energy, Security and Net Zero",The Coal Authority,09/04/2024,Mileage Payments,NRW Metal Mine Programme,Staff Expenses Control,179314,2.43
"Department for Energy, Security and Net Zero",The Coal Authority,11/04/2024,Mileage Payments,ENV - Technical,Staff Expenses Control,179314,6.38
"Department for Energy, Security and Net Zero",The Coal Authority,11/04/2024,Mileage Payments,ENV - Technical,Staff Expenses Control,179314,5.78
"Department for Energy, Security and Net Zero",The Coal Authority,17/04/2024,Mileage Payments,PS&S - General Claims,Staff Expenses Control,179314,5.4
"Department for Energy, Security and Net Zero",The Coal Authority,22/04/2024,Mileage Payments,Engineering,Staff Expenses Control,179314,10.35
"Department for Energy, Security and Net Zero",The Coal Authority,22/04/2024,Mileage Payments,Engineering,Staff Expenses Control,179314,10.35
"Department for Energy, Security and Net Zero",The Coal Authority,24/04/2024,Mileage Payments,PS&S - General Claims,Staff Expenses Control,179314,27
"Department for Energy, Security and Net Zero",The Coal Authority,24/04/2024,Mileage Payments,PS&S - General Claims,Staff Expenses Control,179314,3
"Department for Energy, Security and Net Zero",The Coal Authority,27/03/2024,Mine Entry Inspection - Contractor Costs,PS&S - General Claims,GeoAccess Ltd,177348,"8,359.05"
"Department for Energy, Security and Net Zero",The Coal Authority,27/03/2024,Mine Entry Inspection - Contractor Costs,PS&S - General Claims,Global Mine Design Ltd,177378,"6,319.68"
"Department for Energy, Security and Net Zero",The Coal Authority,25/03/2024,Mine Entry Inspection - Contractor Costs,PS&S - General Claims,Global Mine Design Ltd,177379,"3,196.16"
"Department for Energy, Security and Net Zero",The Coal Authority,20/03/2024,Mine Entry Inspection - Contractor Costs,PS&S - General Claims,Socotec UK Limited,178253,"12,443.49"
"Department for Energy, Security and Net Zero",The Coal Authority,04/04/2024,Minewater Chemicals - Operational Sites,DEFRA Metal Mine Programme,John F Hunt Regeneration Ltd,178099,"58,424.96"
"Department for Energy, Security and Net Zero",The Coal Authority,08/04/2024,Minewater Chemicals - Operational Sites,ENV - Mine Water Operations,Severn Trent Serv Ops Uk Ltd,179003,"4,355.35"
"Department for Energy, Security and Net Zero",The Coal Authority,08/04/2024,Minewater Chemicals - Operational Sites,ENV - Mine Water Operations,Severn Trent Serv Ops Uk Ltd,179003,601.78
"Department for Energy, Security and Net Zero",The Coal Authority,08/04/2024,Minewater Chemicals - Operational Sites,ENV - Mine Water Operations,Severn Trent Serv Ops Uk Ltd,179003,"1,966.10"
"Department for Energy, Security and Net Zero",The Coal Authority,04/04/2024,Minewater Contractor Add. Task Order - Ops Site,DEFRA Metal Mine Programme,John F Hunt Regeneration Ltd,178099,"24,172.80"
"Department for Energy, Security and Net Zero",The Coal Authority,10/04/2024,Minewater Contractor Add. Task Order - Ops Site,DEFRA Metal Mine Programme,Severn Trent Serv Ops Uk Ltd,178191,"-1,781.71"
"Department for Energy, Security and Net Zero",The Coal Authority,12/04/2024,Minewater Contractor Add. Task Order - Ops Site,ENV - Mine Water Operations,Environment Agency,178835,"40,000.00"
"Department for Energy, Security and Net Zero",The Coal Authority,08/04/2024,Minewater Contractor Add. Task Order - Ops Site,ENV - Mine Water Operations,Severn Trent Serv Ops Uk Ltd,179003,218.41
"Department for Energy, Security and Net Zero",The Coal Authority,08/04/2024,Minewater Contractor Add. Task Order - Ops Site,ENV - Mine Water Operations,Severn Trent Serv Ops Uk Ltd,179003,"1,105.53"
"Department for Energy, Security and Net Zero",The Coal Authority,08/04/2024,Minewater Contractor Add. Task Order - Ops Site,ENV - Mine Water Operations,Severn Trent Serv Ops Uk Ltd,179003,"2,696.44"
"Department for Energy, Security and Net Zero",The Coal Authority,08/04/2024,Minewater Contractor Add. Task Order - Ops Site,ENV - Mine Water Operations,Severn Trent Serv Ops Uk Ltd,179003,"3,843.59"
"Department for Energy, Security and Net Zero",The Coal Authority,08/04/2024,Minewater Contractor Add. Task Order - Ops Site,ENV - Mine Water Operations,Severn Trent Serv Ops Uk Ltd,179003,"3,459.75"
"Department for Energy, Security and Net Zero",The Coal Authority,27/03/2024,Minewater Contractor Maint. Visits - Ops Site,ENV - Mine Water Operations,National Coal Mining Museum,177619,"7,867.14"
"Department for Energy, Security and Net Zero",The Coal Authority,27/03/2024,Minewater Contractor Maint. Visits - Ops Site,ENV - Mine Water Operations,National Coal Mining Museum,177622,"2,000.00"
"Department for Energy, Security and Net Zero",The Coal Authority,04/04/2024,Minewater Contractor Maint. Visits - Ops Site,DEFRA Metal Mine Programme,John F Hunt Regeneration Ltd,178099,"23,239.17"
"Department for Energy, Security and Net Zero",The Coal Authority,08/04/2024,Minewater Contractor Maint. Visits - Ops Site,ENV - Mine Water Operations,Severn Trent Serv Ops Uk Ltd,178183,"434,028.80"
"Department for Energy, Security and Net Zero",The Coal Authority,08/04/2024,Minewater Contractor Maint. Visits - Ops Site,ENV - Mine Water Operations,Severn Trent Serv Ops Uk Ltd,178184,"10,375.94"
"Department for Energy, Security and Net Zero",The Coal Authority,26/04/2024,Minewater Cost Benefit Analysis,DEFRA LEP Funding,AECOM Ltd,179168,"-2,233.13"
"Department for Energy, Security and Net Zero",The Coal Authority,26/04/2024,Minewater Cost Benefit Analysis,DEFRA LEP Funding,AECOM Ltd,179171,"2,233.13"
"Department for Energy, Security and Net Zero",The Coal Authority,27/03/2024,Minewater Discharge Consents,ENV - Mine Water Operations,Natural Resources Wales,178203,563.16
"Department for Energy, Security and Net Zero",The Coal Authority,02/04/2024,Minewater Discharge Consents,ENV - Mine Water Operations,Environment Agency,178429,"3,002.95"
"Department for Energy, Security and Net Zero",The Coal Authority,02/04/2024,Minewater Discharge Consents,DEFRA Metal Mine Programme,Wheal Jane Ltd,178875,"7,422.35"
"Department for Energy, Security and Net Zero",The Coal Authority,16/04/2024,Minewater Discharge Consents,ENV - Mine Water Operations,Sepa,179334,"2,097.79"
"Department for Energy, Security and Net Zero",The Coal Authority,16/04/2024,Minewater Discharge Consents,ENV - Mine Water Operations,Sepa,179335,"2,097.79"
"Department for Energy, Security and Net Zero",The Coal Authority,16/04/2024,Minewater Discharge Consents,ENV - Mine Water Operations,Sepa,179336,"2,097.79"
"Department for Energy, Security and Net Zero",The Coal Authority,16/04/2024,Minewater Discharge Consents,ENV - Mine Water Operations,Sepa,179352,"2,077.26"
"Department for Energy, Security and Net Zero",The Coal Authority,16/04/2024,Minewater Discharge Consents,ENV - Mine Water Operations,Sepa,179353,"4,496.49"
"Department for Energy, Security and Net Zero",The Coal Authority,16/04/2024,Minewater Discharge Consents,ENV - Mine Water Operations,Sepa,179354,"5,646.98"
"Department for Energy, Security and Net Zero",The Coal Authority,17/04/2024,Minewater Discharge Consents,ENV - Mine Water Operations,Sepa,179355,"3,319.25"
"Department for Energy, Security and Net Zero",The Coal Authority,16/04/2024,Minewater Discharge Consents,ENV - Mine Water Operations,Sepa,179356,"3,319.25"
"Department for Energy, Security and Net Zero",The Coal Authority,17/04/2024,Minewater Discharge Consents,ENV - Mine Water Operations,Sepa,179358,"4,546.68"
"Department for Energy, Security and Net Zero",The Coal Authority,17/04/2024,Minewater Discharge Consents,ENV - Mine Water Operations,Sepa,179359,"3,319.25"
"Department for Energy, Security and Net Zero",The Coal Authority,22/03/2024,Minewater Feasibility / Scoping,ENV - Mine Water Operations,AECOM Ltd,177618,"4,024.80"
"Department for Energy, Security and Net Zero",The Coal Authority,12/02/2024,Minewater Feasibility / Scoping,NRW Metal Mine Programme,AECOM Ltd,177785,"53,294.41"
"Department for Energy, Security and Net Zero",The Coal Authority,04/04/2024,Minewater Feasibility / Scoping,NRW Metal Mine Programme,AECOM Ltd,177786,"-53,294.41"
"Department for Energy, Security and Net Zero",The Coal Authority,15/03/2024,Minewater Feasibility / Scoping,ENV - Projects & Delivery,WSP UK Ltd,177996,"4,457.88"
"Department for Energy, Security and Net Zero",The Coal Authority,19/04/2024,Minewater Feasibility / Scoping,ENV - Projects & Delivery,AECOM Ltd,178818,"5,299.47"
"Department for Energy, Security and Net Zero",The Coal Authority,19/04/2024,Minewater Feasibility / Scoping,ENV - Projects & Delivery,AECOM Ltd,178818,"3,075.33"
"Department for Energy, Security and Net Zero",The Coal Authority,19/04/2024,Minewater Feasibility / Scoping,ENV - Projects & Delivery,AECOM Ltd,178818,"1,177.20"
"Department for Energy, Security and Net Zero",The Coal Authority,23/04/2024,Minewater Feasibility / Scoping,NRW Metal Mine Programme,Hydro International Data Insight & Analysis Ltd,179287,83.64
"Department for Energy, Security and Net Zero",The Coal Authority,23/04/2024,Minewater Feasibility / Scoping,NRW Metal Mine Programme,Hydro International Data Insight & Analysis Ltd,179287,"1,615.36"
"Department for Energy, Security and Net Zero",The Coal Authority,26/03/2024,Minewater Investigation Studies,ENV - Salinity Programme,Robertson Geologging Ltd,177387,"1,840.00"
"Department for Energy, Security and Net Zero",The Coal Authority,26/03/2024,Minewater Investigation Studies,ENV - Salinity Programme,Robertson Geologging Ltd,177388,"2,815.00"
"Department for Energy, Security and Net Zero",The Coal Authority,27/03/2024,Minewater Investigation Studies,ENV - Salinity Programme,Robertson Geologging Ltd,177389,"4,430.00"
"Department for Energy, Security and Net Zero",The Coal Authority,27/03/2024,Minewater Investigation Studies,ENV - Salinity Programme,Drilcorp Limited,178036,"6,541.10"
"Department for Energy, Security and Net Zero",The Coal Authority,08/04/2024,Minewater Investigation Studies,ENV - Salinity Programme,Drilcorp Limited,178124,"9,259.10"
"Department for Energy, Security and Net Zero",The Coal Authority,29/03/2024,Minewater Investigation Studies,ENV - Salinity Programme,Byteback Creative LLP,178393,"1,440.00"
"Department for Energy, Security and Net Zero",The Coal Authority,12/04/2024,Minewater Investigation Studies,ENV - Salinity Programme,European Geophysical Services,178551,"2,336.20"
"Department for Energy, Security and Net Zero",The Coal Authority,28/03/2024,Minewater Investigation Studies,ENV - Salinity Programme,WB & AD Morgan t/a Igne,178555,"4,809.60"
"Department for Energy, Security and Net Zero",The Coal Authority,28/03/2024,Minewater Investigation Studies,ENV - Salinity Programme,WB & AD Morgan t/a Igne,178556,"1,300.00"
"Department for Energy, Security and Net Zero",The Coal Authority,28/03/2024,Minewater Investigation Studies,ENV - Salinity Programme,WB & AD Morgan t/a Igne,178556,"6,590.80"
"Department for Energy, Security and Net Zero",The Coal Authority,12/04/2024,Minewater Investigation Studies,ENV - Salinity Programme,European Geophysical Services,178823,"2,499.00"
"Department for Energy, Security and Net Zero",The Coal Authority,16/04/2024,Minewater Investigation Studies,ENV - Salinity Programme,AECOM Ltd,179013,"69,599.57"
"Department for Energy, Security and Net Zero",The Coal Authority,23/04/2024,Minewater Investigation Studies,ENV - Salinity Programme,Calder Conference Ltd,179053,291.67
"Department for Energy, Security and Net Zero",The Coal Authority,08/04/2024,Minewater Jetting & Pigging,ENV - Mine Water Operations,Severn Trent Serv Ops Uk Ltd,179003,"7,396.34"
"Department for Energy, Security and Net Zero",The Coal Authority,26/03/2024,Minewater Land Agents (Acquisitions),DEV - Property Management,Government Procurement Card,179325,150
"Department for Energy, Security and Net Zero",The Coal Authority,27/03/2024,Minewater Land Agents (Acquisitions),DEFRA LEP Funding,Government Procurement Card,179325,346.33
"Department for Energy, Security and Net Zero",The Coal Authority,14/03/2024,Minewater Land Option / Access Payments,ENV - Salinity Programme,Wigan Council,178292,700
"Department for Energy, Security and Net Zero",The Coal Authority,17/04/2024,Minewater Land Option / Access Payments,DEFRA Metal Mine Programme,A J Stone - Woodlands Account,178887,500
"Department for Energy, Security and Net Zero",The Coal Authority,03/04/2024,Minewater Landscaping,ENV - Mine Water Operations,just bee eco hives,178075,595
"Department for Energy, Security and Net Zero",The Coal Authority,05/04/2024,Minewater Landscaping,DEFRA LEP Funding,Scottish Woodlands Ltd,178723,"19,380.56"
"Department for Energy, Security and Net Zero",The Coal Authority,05/04/2024,Minewater Landscaping,DEFRA LEP Funding,Scottish Woodlands Ltd,178723,"2,394.44"
"Department for Energy, Security and Net Zero",The Coal Authority,08/04/2024,Minewater Landscaping,ENV - Mine Water Operations,Severn Trent Serv Ops Uk Ltd,179003,289.72
"Department for Energy, Security and Net Zero",The Coal Authority,04/04/2024,Minewater Management Fees,DEFRA Metal Mine Programme,John F Hunt Regeneration Ltd,178099,"53,052.19"
"Department for Energy, Security and Net Zero",The Coal Authority,04/04/2024,Minewater Management Fees,DEFRA Metal Mine Programme,John F Hunt Regeneration Ltd,178099,0.01
"Department for Energy, Security and Net Zero",The Coal Authority,08/04/2024,Minewater Management Fees,ENV - Mine Water Operations,Severn Trent Serv Ops Uk Ltd,179003,233.13
"Department for Energy, Security and Net Zero",The Coal Authority,28/03/2024,Minewater Monitoring & Flow Measurement,NRW Metal Mine Programme,Socotec UK Limited,177726,91.53
"Department for Energy, Security and Net Zero",The Coal Authority,29/02/2024,Minewater Monitoring & Flow Measurement,DEFRA LEP Funding,Element Materials Technology Environmental UK Ltd,178004,"1,159.94"
"Department for Energy, Security and Net Zero",The Coal Authority,08/04/2024,Minewater Monitoring & Flow Measurement,ENV - Mine Water Operations,Severn Trent Serv Ops Uk Ltd,179003,641.79
"Department for Energy, Security and Net Zero",The Coal Authority,08/04/2024,Minewater Monitoring & Flow Measurement,ENV - Mine Water Operations,Severn Trent Serv Ops Uk Ltd,179003,"1,868.11"
"Department for Energy, Security and Net Zero",The Coal Authority,08/04/2024,Minewater Monitoring & Flow Measurement,ENV - Mine Water Operations,Severn Trent Serv Ops Uk Ltd,179003,"19,208.14"
"Department for Energy, Security and Net Zero",The Coal Authority,08/04/2024,Minewater Monitoring & Flow Measurement,ENV - Salinity Programme,Severn Trent Serv Ops Uk Ltd,179003,708.62
"Department for Energy, Security and Net Zero",The Coal Authority,19/04/2024,Minewater Monitoring & Flow Measurement,ENV - Mine Water Operations,Socotec UK Limited,179084,87.72
"Department for Energy, Security and Net Zero",The Coal Authority,18/04/2024,Minewater Monitoring & Flow Measurement,DEFRA Metal Mine Programme,Hydro International Data Insight & Analysis Ltd,179217,984
"Department for Energy, Security and Net Zero",The Coal Authority,08/04/2024,Minewater Monitoring & Flow Measurement,DEFRA Metal Mine Programme,Hydro International Data Insight & Analysis Ltd,179218,984
"Department for Energy, Security and Net Zero",The Coal Authority,23/04/2024,Minewater Monitoring & Flow Measurement,NRW Metal Mine Programme,Hydro International Data Insight & Analysis Ltd,179285,"1,193.00"
"Department for Energy, Security and Net Zero",The Coal Authority,15/03/2024,Minewater Monitoring & Flow Measurement,DEFRA LEP Funding,Government Procurement Card,179325,41.58
"Department for Energy, Security and Net Zero",The Coal Authority,21/03/2024,Minewater Monitoring & Flow Measurement,ENV - Salinity Programme,Government Procurement Card,179325,226.5
"Department for Energy, Security and Net Zero",The Coal Authority,04/03/2024,Minewater Power Costs,ENV - Mine Water Operations,Edf Energy,178003,"8,096.94"
"Department for Energy, Security and Net Zero",The Coal Authority,31/03/2024,Minewater Power Costs,DEFRA Metal Mine Programme,Wheal Jane Ltd,178560,"4,546.45"
"Department for Energy, Security and Net Zero",The Coal Authority,08/04/2024,Minewater Power Costs,ENV - Mine Water Operations,National Coal Mining Museum,178837,"48,284.51"
"Department for Energy, Security and Net Zero",The Coal Authority,08/04/2024,Minewater Pump Overhauls,ENV - Mine Water Operations,Severn Trent Serv Ops Uk Ltd,179003,"12,180.70"
"Department for Energy, Security and Net Zero",The Coal Authority,08/04/2024,Minewater Pump Overhauls,ENV - Mine Water Operations,Severn Trent Serv Ops Uk Ltd,179003,"8,710.22"
"Department for Energy, Security and Net Zero",The Coal Authority,08/04/2024,Minewater Pump Overhauls,ENV - Mine Water Operations,Severn Trent Serv Ops Uk Ltd,179003,"57,445.72"
"Department for Energy, Security and Net Zero",The Coal Authority,10/04/2024,Minewater Pumping Tests,ENV - Projects & Delivery,Severn Trent Serv Ops Uk Ltd,178193,"-6,949.00"
"Department for Energy, Security and Net Zero",The Coal Authority,08/04/2024,Minewater Pumping Tests,ENV - Projects & Delivery,Severn Trent Serv Ops Uk Ltd,179003,"22,836.20"
"Department for Energy, Security and Net Zero",The Coal Authority,08/04/2024,Minewater Pumping Tests,ENV - Projects & Delivery,Severn Trent Serv Ops Uk Ltd,179003,416.68
"Department for Energy, Security and Net Zero",The Coal Authority,08/04/2024,Minewater Pumping Tests,ENV - Projects & Delivery,Severn Trent Serv Ops Uk Ltd,179003,303.32
"Department for Energy, Security and Net Zero",The Coal Authority,08/04/2024,Minewater Pumping Tests,ENV - Projects & Delivery,Severn Trent Serv Ops Uk Ltd,179003,552.16
"Department for Energy, Security and Net Zero",The Coal Authority,08/04/2024,Minewater Pumping Tests,ENV - Projects & Delivery,Severn Trent Serv Ops Uk Ltd,179003,"24,642.76"
"Department for Energy, Security and Net Zero",The Coal Authority,08/04/2024,Minewater Pumping Tests,ENV - Projects & Delivery,Severn Trent Serv Ops Uk Ltd,179003,"1,771.59"
"Department for Energy, Security and Net Zero",The Coal Authority,08/04/2024,Minewater Pumping Tests,ENV - Projects & Delivery,Severn Trent Serv Ops Uk Ltd,179003,"41,270.35"
"Department for Energy, Security and Net Zero",The Coal Authority,08/04/2024,Minewater Pumping Tests,ENV - Projects & Delivery,Severn Trent Serv Ops Uk Ltd,179003,"2,632.46"
"Department for Energy, Security and Net Zero",The Coal Authority,08/04/2024,Minewater Pumping Tests,ENV - Salinity Programme,Severn Trent Serv Ops Uk Ltd,179003,"6,984.60"
"Department for Energy, Security and Net Zero",The Coal Authority,08/04/2024,Minewater Pumping Tests,ENV - Salinity Programme,Severn Trent Serv Ops Uk Ltd,179003,167.15
"Department for Energy, Security and Net Zero",The Coal Authority,08/04/2024,Minewater Pumping Tests,ENV - Salinity Programme,Severn Trent Serv Ops Uk Ltd,179003,"5,655.20"
"Department for Energy, Security and Net Zero",The Coal Authority,08/04/2024,Minewater Pumping Tests,ENV - Salinity Programme,Severn Trent Serv Ops Uk Ltd,179003,"6,077.66"
"Department for Energy, Security and Net Zero",The Coal Authority,04/03/2024,Minewater Rates,ENV - Mine Water Operations,Northumberland County Council,177464,"6,611.75"
"Department for Energy, Security and Net Zero",The Coal Authority,06/03/2024,Minewater Rates,ENV - Mine Water Operations,Sheffield City council,177465,"2,881.73"
"Department for Energy, Security and Net Zero",The Coal Authority,05/03/2024,Minewater Rates,ENV - Mine Water Operations,Stoke On Trent City Council,177466,"4,590.80"
"Department for Energy, Security and Net Zero",The Coal Authority,06/03/2024,Minewater Rates,ENV - Mine Water Operations,Carmarthenshire County Cl,177467,"7,785.20"
"Department for Energy, Security and Net Zero",The Coal Authority,06/03/2024,Minewater Rates,ENV - Mine Water Operations,Carmarthenshire County Cl,177468,"42,075.35"
"Department for Energy, Security and Net Zero",The Coal Authority,15/03/2024,Minewater Rates,ENV - Mine Water Operations,Torfaen County Borough Council,177469,"5,114.20"
"Department for Energy, Security and Net Zero",The Coal Authority,04/03/2024,Minewater Rates,ENV - Mine Water Operations,Northumberland County Council,177470,"57,876.00"
"Department for Energy, Security and Net Zero",The Coal Authority,04/03/2024,Minewater Rates,ENV - Mine Water Operations,Northumberland County Council,177471,"3,143.70"
"Department for Energy, Security and Net Zero",The Coal Authority,04/03/2024,Minewater Rates,ENV - Mine Water Operations,Northumberland County Council,177472,"3,892.20"
"Department for Energy, Security and Net Zero",The Coal Authority,04/03/2024,Minewater Rates,ENV - Mine Water Operations,Northumberland County Council,177473,"4,610.76"
"Department for Energy, Security and Net Zero",The Coal Authority,04/03/2024,Minewater Rates,ENV - Mine Water Operations,Northumberland County Council,177477,"50,778.00"
"Department for Energy, Security and Net Zero",The Coal Authority,04/03/2024,Minewater Rates,ENV - Mine Water Operations,Northumberland County Council,177478,"18,587.75"
"Department for Energy, Security and Net Zero",The Coal Authority,13/03/2024,Minewater Rates,ENV - Mine Water Operations,Wigan Council,177492,"5,613.75"
"Department for Energy, Security and Net Zero",The Coal Authority,13/03/2024,Minewater Rates,ENV - Mine Water Operations,Wigan Council,177493,"4,034.42"
"Department for Energy, Security and Net Zero",The Coal Authority,13/03/2024,Minewater Rates,ENV - Mine Water Operations,Wigan Council,177494,"6,487.00"
"Department for Energy, Security and Net Zero",The Coal Authority,13/03/2024,Minewater Rates,ENV - Mine Water Operations,Wigan Council,177495,"5,239.50"
"Department for Energy, Security and Net Zero",The Coal Authority,13/03/2024,Minewater Rates,ENV - Mine Water Operations,Wigan Council,177496,"5,738.50"
"Department for Energy, Security and Net Zero",The Coal Authority,05/03/2024,Minewater Rates,ENV - Mine Water Operations,Barnsley Metropolitan Bor. Cou,177497,"10,728.50"
"Department for Energy, Security and Net Zero",The Coal Authority,05/03/2024,Minewater Rates,ENV - Mine Water Operations,Barnsley Metropolitan Bor. Cou,177502,"2,881.72"
"Department for Energy, Security and Net Zero",The Coal Authority,11/03/2024,Minewater Rates,ENV - Mine Water Operations,North East Derbyshire District Council,177503,"1,276.37"
"Department for Energy, Security and Net Zero",The Coal Authority,08/03/2024,Minewater Rates,ENV - Mine Water Operations,Merthyr Tydfil Cbc,177504,"21,848.90"
"Department for Energy, Security and Net Zero",The Coal Authority,11/03/2024,Minewater Rates,ENV - Mine Water Operations,Durham County Council,177620,"2,944.10"
"Department for Energy, Security and Net Zero",The Coal Authority,11/03/2024,Minewater Rates,ENV - Mine Water Operations,Durham County Council,177621,"5,364.25"
"Department for Energy, Security and Net Zero",The Coal Authority,11/03/2024,Minewater Rates,ENV - Mine Water Operations,Durham County Council,177673,"11,102.75"
"Department for Energy, Security and Net Zero",The Coal Authority,07/03/2024,Minewater Rates,ENV - Mine Water Operations,South Tyneside Council,177674,"1,584.95"
"Department for Energy, Security and Net Zero",The Coal Authority,11/03/2024,Minewater Rates,ENV - Mine Water Operations,Durham County Council,177675,"3,043.90"
"Department for Energy, Security and Net Zero",The Coal Authority,11/03/2024,Minewater Rates,ENV - Mine Water Operations,Durham County Council,177676,"3,573.34"
"Department for Energy, Security and Net Zero",The Coal Authority,11/03/2024,Minewater Rates,ENV - Mine Water Operations,Durham County Council,177677,"2,744.50"
"Department for Energy, Security and Net Zero",The Coal Authority,11/03/2024,Minewater Rates,ENV - Mine Water Operations,Durham County Council,177678,"1,440.87"
"Department for Energy, Security and Net Zero",The Coal Authority,08/03/2024,Minewater Rates,ENV - Mine Water Operations,Newcastle Under Lyme Bor Counc,177680,"8,357.00"
"Department for Energy, Security and Net Zero",The Coal Authority,26/03/2024,Minewater Rates,ENV - Mine Water Operations,City And County Of Swansea,177717,"2,366.10"
"Department for Energy, Security and Net Zero",The Coal Authority,18/03/2024,Minewater Rates,ENV - Mine Water Operations,West Lothian Council,178424,"51,393.50"
"Department for Energy, Security and Net Zero",The Coal Authority,18/03/2024,Minewater Rates,ENV - Mine Water Operations,West Lothian Council,178425,"39,185.50"
"Department for Energy, Security and Net Zero",The Coal Authority,01/04/2024,Minewater Rates,ENV - Mine Water Operations,Midlothian Council,178426,"34,498.50"
"Department for Energy, Security and Net Zero",The Coal Authority,03/04/2024,Minewater Rates,ENV - Mine Water Operations,Burnley Borough Council,178574,536.43
"Department for Energy, Security and Net Zero",The Coal Authority,28/03/2024,Minewater Rates,ENV - Mine Water Operations,East Ayrshire Council,178839,"47,006.25"
"Department for Energy, Security and Net Zero",The Coal Authority,01/04/2024,Minewater Rates,ENV - Mine Water Operations,Fife Council,178848,"15,786.60"
"Department for Energy, Security and Net Zero",The Coal Authority,01/04/2024,Minewater Rates,ENV - Mine Water Operations,Fife Council,178849,"9,462.00"
"Department for Energy, Security and Net Zero",The Coal Authority,01/04/2024,Minewater Rates,ENV - Mine Water Operations,Fife Council,178850,"2,689.20"
"Department for Energy, Security and Net Zero",The Coal Authority,15/03/2024,Minewater Rates,ENV - Mine Water Operations,Blaenau Gwent County B C,178851,"11,945.92"
"Department for Energy, Security and Net Zero",The Coal Authority,10/03/2024,Minewater Rates,DEFRA Metal Mine Programme,Cornwall Council,179357,"22,330.25"
"Department for Energy, Security and Net Zero",The Coal Authority,10/04/2024,Minewater Remediation,ENV - Mine Water Operations,Severn Trent Serv Ops Uk Ltd,178193,-978.9
"Department for Energy, Security and Net Zero",The Coal Authority,08/04/2024,Minewater Remediation,ENV - Mine Water Operations,Severn Trent Serv Ops Uk Ltd,179003,"1,895.14"
"Department for Energy, Security and Net Zero",The Coal Authority,08/04/2024,Minewater Remediation,ENV - Mine Water Operations,Severn Trent Serv Ops Uk Ltd,179003,"3,413.39"
"Department for Energy, Security and Net Zero",The Coal Authority,08/04/2024,Minewater Remediation,ENV - Mine Water Operations,Severn Trent Serv Ops Uk Ltd,179003,830.33
"Department for Energy, Security and Net Zero",The Coal Authority,08/04/2024,Minewater Remediation,ENV - Mine Water Operations,Severn Trent Serv Ops Uk Ltd,179003,898.48
"Department for Energy, Security and Net Zero",The Coal Authority,08/04/2024,Minewater Remediation,ENV - Mine Water Operations,Severn Trent Serv Ops Uk Ltd,179003,119.64
"Department for Energy, Security and Net Zero",The Coal Authority,08/04/2024,Minewater Remediation,ENV - Mine Water Operations,Severn Trent Serv Ops Uk Ltd,179003,89.5
"Department for Energy, Security and Net Zero",The Coal Authority,08/04/2024,Minewater Remediation,ENV - Mine Water Operations,Severn Trent Serv Ops Uk Ltd,179003,170.27
"Department for Energy, Security and Net Zero",The Coal Authority,08/04/2024,Minewater Remediation,ENV - Mine Water Operations,Severn Trent Serv Ops Uk Ltd,179003,"7,230.73"
"Department for Energy, Security and Net Zero",The Coal Authority,08/04/2024,Minewater Remediation,ENV - Mine Water Operations,Severn Trent Serv Ops Uk Ltd,179003,111.29
"Department for Energy, Security and Net Zero",The Coal Authority,08/04/2024,Minewater Remediation,ENV - Mine Water Operations,Severn Trent Serv Ops Uk Ltd,179003,673.02
"Department for Energy, Security and Net Zero",The Coal Authority,02/04/2024,Minewater Rent,ENV - Mine Water Operations,Forestry Commission,177373,130
"Department for Energy, Security and Net Zero",The Coal Authority,05/04/2024,Minewater Rent,ENV - Mine Water Operations,Edwin Thompson Llp Brancepeth,177425,200
"Department for Energy, Security and Net Zero",The Coal Authority,12/04/2024,Minewater Rent,ENV - Mine Water Operations,Forest Enterprise Scotland,178046,"3,101.20"
"Department for Energy, Security and Net Zero",The Coal Authority,12/04/2024,Minewater Rent,ENV - Mine Water Operations,F M Lockie Pension Scheme Drummohr House,178444,"1,568.56"
"Department for Energy, Security and Net Zero",The Coal Authority,18/03/2024,Minewater Rent,ENV - Mine Water Operations,James Donaldson & Sons Ltd,178655,"11,074.00"
"Department for Energy, Security and Net Zero",The Coal Authority,22/02/2024,Minewater Rent,ENV - Mine Water Operations,Natural Resources Wales,178896,487.17
"Department for Energy, Security and Net Zero",The Coal Authority,01/04/2024,Minewater Rent,ENV - Mine Water Operations,National Coal Mining Museum,179011,"3,000.00"
"Department for Energy, Security and Net Zero",The Coal Authority,01/04/2024,Minewater Rent,ENV - Mine Water Operations,Rhondda Cynon Taff County B  C,179069,"1,000.00"
"Department for Energy, Security and Net Zero",The Coal Authority,27/03/2024,Minewater Rent,ENV - Mine Water Operations,Douglas & Angus Estates,179157,"3,113.00"
"Department for Energy, Security and Net Zero",The Coal Authority,27/03/2024,Minewater Rent,ENV - Mine Water Operations,Wentworth Joint Estates,179159,350
"Department for Energy, Security and Net Zero",The Coal Authority,27/03/2024,Minewater Rent,ENV - Mine Water Operations,Wentworth Joint Estates,179160,350
"Department for Energy, Security and Net Zero",The Coal Authority,08/01/2024,Minewater Rent,ENV - Mine Water Operations,Staffordshire County Council,179262,450
"Department for Energy, Security and Net Zero",The Coal Authority,30/04/2024,Minewater Rent,ENV - Mine Water Operations,The Buccleuch Estates Ltd,179405,-118
"Department for Energy, Security and Net Zero",The Coal Authority,05/02/2024,Minewater Rent,ENV - Mine Water Operations,The Buccleuch Estates Ltd,179408,205
"Department for Energy, Security and Net Zero",The Coal Authority,28/03/2024,Minewater Sampling - 'Non-operational' Sites,DEFRA Metal Mine Programme,Enitial Limited,177657,675
"Department for Energy, Security and Net Zero",The Coal Authority,29/02/2024,Minewater Sampling - 'Non-operational' Sites,ENV - Projects & Delivery,Element Materials Technology Environmental UK Ltd,178004,359.91
"Department for Energy, Security and Net Zero",The Coal Authority,28/03/2024,Minewater Sampling - 'Non-operational' Sites,ENV - Salinity Programme,Socotec UK Limited,178102,"1,006.91"
"Department for Energy, Security and Net Zero",The Coal Authority,28/03/2024,Minewater Sampling - 'Non-operational' Sites,ENV - Salinity Programme,Socotec UK Limited,178103,288.03
"Department for Energy, Security and Net Zero",The Coal Authority,04/04/2024,Minewater Sampling - 'Non-operational' Sites,DEFRA Metal Mine Programme,Socotec UK Limited,178341,177.86
"Department for Energy, Security and Net Zero",The Coal Authority,28/03/2024,Minewater Sampling - 'Non-operational' Sites,ENV - Salinity Programme,Socotec UK Limited,178450,"2,005.01"
"Department for Energy, Security and Net Zero",The Coal Authority,12/04/2024,Minewater Sampling - 'Non-operational' Sites,DEFRA Metal Mine Programme,Socotec UK Limited,178680,177.86
"Department for Energy, Security and Net Zero",The Coal Authority,22/12/2023,Minewater Sampling - 'Non-operational' Sites,ENV - Salinity Programme,Socotec UK Limited,178947,"1,864.19"
"Department for Energy, Security and Net Zero",The Coal Authority,22/04/2024,Minewater Sampling - 'Non-operational' Sites,DEFRA Metal Mine Programme,Socotec UK Limited,179296,177.86
"Department for Energy, Security and Net Zero",The Coal Authority,04/04/2024,Minewater Sampling - Operational Sites,DEFRA Metal Mine Programme,John F Hunt Regeneration Ltd,178099,14.23
"Department for Energy, Security and Net Zero",The Coal Authority,14/02/2024,Minewater Sampling - Operational Sites,ENV - Projects & Delivery,Forestry Commission England,178377,250
"Department for Energy, Security and Net Zero",The Coal Authority,08/04/2024,Minewater Sampling - Operational Sites,ENV - Mine Water Operations,Severn Trent Serv Ops Uk Ltd,179003,"1,020.09"
"Department for Energy, Security and Net Zero",The Coal Authority,08/04/2024,Minewater Sampling - Operational Sites,ENV - Mine Water Operations,Severn Trent Serv Ops Uk Ltd,179003,291.31
"Department for Energy, Security and Net Zero",The Coal Authority,25/03/2024,Minewater Site Surveys,ENV - Projects & Delivery,AECOM Ltd,177452,670
"Department for Energy, Security and Net Zero",The Coal Authority,21/02/2024,Minewater Site Surveys,NRW Metal Mine Programme,Hydro International Data Insight & Analysis Ltd,177659,545
"Department for Energy, Security and Net Zero",The Coal Authority,21/02/2024,Minewater Site Surveys,NRW Metal Mine Programme,Hydro International Data Insight & Analysis Ltd,177659,429.5
"Department for Energy, Security and Net Zero",The Coal Authority,22/03/2024,Minewater Site Surveys,DEFRA Metal Mine Programme,AECOM Ltd,177748,"3,176.00"
"Department for Energy, Security and Net Zero",The Coal Authority,31/03/2024,Minewater Site Surveys,NRW Metal Mine Programme,Interlocks Surveys,177852,"3,729.50"
"Department for Energy, Security and Net Zero",The Coal Authority,31/03/2024,Minewater Site Surveys,NRW Metal Mine Programme,Interlocks Surveys,177853,"5,292.50"
"Department for Energy, Security and Net Zero",The Coal Authority,31/03/2024,Minewater Site Surveys,NRW Metal Mine Programme,Interlocks Surveys,178076,"2,455.50"
"Department for Energy, Security and Net Zero",The Coal Authority,10/04/2024,Minewater Site Surveys,NRW Metal Mine Programme,Cornerstone  Projects Ltd,178257,217.69
"Department for Energy, Security and Net Zero",The Coal Authority,20/03/2024,Minewater Site Surveys,NRW Metal Mine Programme,Wardell Armstrong LLP,178347,"3,000.00"
"Department for Energy, Security and Net Zero",The Coal Authority,23/04/2024,Minewater Site Surveys,NRW Metal Mine Programme,Interlocks Surveys,179063,"4,807.50"
"Department for Energy, Security and Net Zero",The Coal Authority,22/04/2024,Minewater Site Surveys,NRW Metal Mine Programme,Hydro International Data Insight & Analysis Ltd,179077,"1,229.00"
"Department for Energy, Security and Net Zero",The Coal Authority,21/04/2024,Minewater Site Surveys,ENV - Mine Water Operations,Cornerstone  Projects Ltd,179102,284.77
"Department for Energy, Security and Net Zero",The Coal Authority,08/03/2024,Minewater Site Surveys,DEFRA LEP Funding,Jeremy Benn Associates Ltd,179118,404.25
"Department for Energy, Security and Net Zero",The Coal Authority,23/04/2024,Minewater Site Surveys,NRW Metal Mine Programme,Hydro International Data Insight & Analysis Ltd,179286,"3,633.60"
"Department for Energy, Security and Net Zero",The Coal Authority,31/03/2024,Minewater Sludge Disposal,DEFRA Metal Mine Programme,Wheal Jane Ltd,178559,"44,538.66"
"Department for Energy, Security and Net Zero",The Coal Authority,08/04/2024,Minewater Sludge Disposal,ENV - Mine Water Operations,Severn Trent Serv Ops Uk Ltd,179003,"2,570.84"
"Department for Energy, Security and Net Zero",The Coal Authority,08/04/2024,Minewater Sludge Disposal,ENV - Mine Water Operations,Severn Trent Serv Ops Uk Ltd,179003,"21,276.65"
"Department for Energy, Security and Net Zero",The Coal Authority,08/04/2024,Minewater Sludge Disposal,ENV - Mine Water Operations,Severn Trent Serv Ops Uk Ltd,179003,999.21
"Department for Energy, Security and Net Zero",The Coal Authority,08/04/2024,Minewater Sludge Disposal,ENV - Mine Water Operations,Severn Trent Serv Ops Uk Ltd,179003,"55,826.83"
"Department for Energy, Security and Net Zero",The Coal Authority,08/04/2024,Minewater Sludge Disposal,ENV - Mine Water Operations,Severn Trent Serv Ops Uk Ltd,179003,"34,358.59"
"Department for Energy, Security and Net Zero",The Coal Authority,08/04/2024,Minewater Sludge Disposal,ENV - Mine Water Operations,Severn Trent Serv Ops Uk Ltd,179003,"175,652.22"
"Department for Energy, Security and Net Zero",The Coal Authority,08/04/2024,Minewater Sludge Disposal,ENV - Mine Water Operations,Severn Trent Serv Ops Uk Ltd,179003,0.02
"Department for Energy, Security and Net Zero",The Coal Authority,08/04/2024,Minewater Sludge Disposal,ENV - Mine Water Operations,Severn Trent Serv Ops Uk Ltd,179003,"1,722.75"
"Department for Energy, Security and Net Zero",The Coal Authority,08/04/2024,Minewater Sludge Disposal,ENV - Mine Water Operations,Severn Trent Serv Ops Uk Ltd,179003,"2,097.26"
"Department for Energy, Security and Net Zero",The Coal Authority,08/04/2024,Minewater Sludge Disposal,ENV - Mine Water Operations,Severn Trent Serv Ops Uk Ltd,179003,554.73
"Department for Energy, Security and Net Zero",The Coal Authority,08/04/2024,Minewater Sludge Disposal,ENV - Mine Water Operations,Severn Trent Serv Ops Uk Ltd,179003,711.45
"Department for Energy, Security and Net Zero",The Coal Authority,08/04/2024,Minewater Sludge Disposal,ENV - Mine Water Operations,Severn Trent Serv Ops Uk Ltd,179003,363.46
"Department for Energy, Security and Net Zero",The Coal Authority,28/03/2024,Minewater Telecoms & Telemetry,ENV - Mine Water Operations,KORE Wireless UK PLC,177679,15
"Department for Energy, Security and Net Zero",The Coal Authority,01/04/2024,Minewater Telecoms & Telemetry,ENV - Mine Water Operations,KORE Wireless UK PLC,178430,35
"Department for Energy, Security and Net Zero",The Coal Authority,08/04/2024,Minewater Telecoms & Telemetry,ENV - Mine Water Operations,Severn Trent Serv Ops Uk Ltd,179003,91.34
"Department for Energy, Security and Net Zero",The Coal Authority,10/04/2024,Minewater Water Charges,ENV - Mine Water Operations,National Coal Mining Museum,178428,"1,736.68"
"Department for Energy, Security and Net Zero",The Coal Authority,28/03/2024,Minewater Water Charges,ENV - Mine Water Operations,Water Plus Limited,178836,"4,073.72"
"Department for Energy, Security and Net Zero",The Coal Authority,23/03/2024,Minewater Water Charges,ENV - Mine Water Operations,Dwr Cymru Welsh Water,178838,"1,237.86"
"Department for Energy, Security and Net Zero",The Coal Authority,16/04/2024,Mining Reports Insurance Premium,Mining Reports,LEGAL AND INSUR,178914,"22,896.90"
"Department for Energy, Security and Net Zero",The Coal Authority,10/03/2024,Mobile Equipment,ENV - Mine Water Operations,Government Procurement Card,179325,12.99
"Department for Energy, Security and Net Zero",The Coal Authority,12/03/2024,Mobiles Phones - Call Charges,DIG - Service & Assurance,Government Procurement Card,179325,2.99
"Department for Energy, Security and Net Zero",The Coal Authority,01/04/2024,Mobiles Phones - Line Rent,DIG - Service & Assurance,Daisy Corporate Services Trading Services Ltd,178858,"1,161.00"
"Department for Energy, Security and Net Zero",The Coal Authority,01/04/2024,Mobiles Phones - Line Rent,DIG - Service & Assurance,Daisy Corporate Services Trading Services Ltd,178858,12.51
"Department for Energy, Security and Net Zero",The Coal Authority,01/04/2024,Mobiles Phones - Line Rent,DIG - Service & Assurance,Daisy Corporate Services Trading Services Ltd,178858,"1,050.00"
"Department for Energy, Security and Net Zero",The Coal Authority,01/04/2024,Mobiles Phones - Line Rent,DIG - Service & Assurance,Daisy Corporate Services Trading Services Ltd,178858,39.72
"Department for Energy, Security and Net Zero",The Coal Authority,01/04/2024,Mobiles Phones - Line Rent,DIG - Service & Assurance,Daisy Corporate Services Trading Services Ltd,178858,75.58
"Department for Energy, Security and Net Zero",The Coal Authority,01/03/2024,Mobiles Phones - Line Rent,DIG - Service & Assurance,Daisy Corporate Services Trading Services Ltd,179025,69.53
"Department for Energy, Security and Net Zero",The Coal Authority,01/03/2024,Mobiles Phones - Line Rent,DIG - Service & Assurance,Daisy Corporate Services Trading Services Ltd,179025,"1,050.00"
"Department for Energy, Security and Net Zero",The Coal Authority,01/03/2024,Mobiles Phones - Line Rent,DIG - Service & Assurance,Daisy Corporate Services Trading Services Ltd,179025,12.51
"Department for Energy, Security and Net Zero",The Coal Authority,01/03/2024,Mobiles Phones - Line Rent,DIG - Service & Assurance,Daisy Corporate Services Trading Services Ltd,179025,"1,161.00"
"Department for Energy, Security and Net Zero",The Coal Authority,01/03/2024,Mobiles Phones - Line Rent,DIG - Service & Assurance,Daisy Corporate Services Trading Services Ltd,179025,27
"Department for Energy, Security and Net Zero",The Coal Authority,05/03/2024,Mobiles Phones - Line Rent,PS&S - General Claims,Government Procurement Card,179325,0.83
"Department for Energy, Security and Net Zero",The Coal Authority,02/01/2024,Mobiles Phones - Line Rent,ENV - Mine Water Operations,Government Procurement Card,179326,0.99
"Department for Energy, Security and Net Zero",The Coal Authority,18/04/2024,Networking / Cabling,DIG - Technical Delivery,WCL UK Ltd (trading as Everything ICT),178738,"92,454.00"
"Department for Energy, Security and Net Zero",The Coal Authority,18/04/2024,Networking / Cabling,DIG - Technical Delivery,WCL UK Ltd (trading as Everything ICT),178738,"47,280.00"
"Department for Energy, Security and Net Zero",The Coal Authority,18/04/2024,Networking / Cabling,DIG - Technical Delivery,WCL UK Ltd (trading as Everything ICT),178738,"55,400.00"
"Department for Energy, Security and Net Zero",The Coal Authority,21/03/2024,Office Furniture,ENV - Projects & Delivery,Government Procurement Card,179325,133.32
"Department for Energy, Security and Net Zero",The Coal Authority,26/03/2024,Office Furniture,Staff Network and Groups,Government Procurement Card,179325,67.05
"Department for Energy, Security and Net Zero",The Coal Authority,26/03/2024,Office Furniture,Staff Network and Groups,Government Procurement Card,179325,22.35
"Department for Energy, Security and Net Zero",The Coal Authority,26/03/2024,Office Furniture,Staff Network and Groups,Government Procurement Card,179325,166.67
"Department for Energy, Security and Net Zero",The Coal Authority,26/03/2024,Office Furniture,Staff Network and Groups,Government Procurement Card,179325,17.22
"Department for Energy, Security and Net Zero",The Coal Authority,28/03/2024,Office Furniture,Community Response,Government Procurement Card,179325,180.14
"Department for Energy, Security and Net Zero",The Coal Authority,07/04/2024,Office Printing Services,DIG - Service & Assurance,De Lage Landen Leasing Ltd,178236,"1,362.98"
"Department for Energy, Security and Net Zero",The Coal Authority,17/04/2024,Office Printing Services,DIG - Service & Assurance,Canon (Uk) Ltd,178604,70.5
"Department for Energy, Security and Net Zero",The Coal Authority,23/08/2022,Office Printing Services,DIG - Service & Assurance,Canon (Uk) Ltd,178605,70.5
"Department for Energy, Security and Net Zero",The Coal Authority,22/11/2022,Office Printing Services,DIG - Service & Assurance,Canon (Uk) Ltd,178606,70.5
"Department for Energy, Security and Net Zero",The Coal Authority,22/02/2023,Office Printing Services,DIG - Service & Assurance,Canon (Uk) Ltd,178607,70.5
"Department for Energy, Security and Net Zero",The Coal Authority,23/05/2023,Office Printing Services,DIG - Service & Assurance,Canon (Uk) Ltd,178608,70.5
"Department for Energy, Security and Net Zero",The Coal Authority,22/08/2023,Office Printing Services,DIG - Service & Assurance,Canon (Uk) Ltd,178609,70.5
"Department for Energy, Security and Net Zero",The Coal Authority,22/11/2023,Office Printing Services,DIG - Service & Assurance,Canon (Uk) Ltd,178610,70.5
"Department for Energy, Security and Net Zero",The Coal Authority,21/02/2024,Office Printing Services,DIG - Service & Assurance,Canon (Uk) Ltd,178614,70.5
"Department for Energy, Security and Net Zero",The Coal Authority,23/02/2023,Office Printing Services,DIG - Service & Assurance,Canon (Uk) Ltd,178615,117
"Department for Energy, Security and Net Zero",The Coal Authority,23/02/2023,Office Printing Services,DIG - Service & Assurance,Canon (Uk) Ltd,178615,162.5
"Department for Energy, Security and Net Zero",The Coal Authority,04/05/2023,Office Printing Services,DIG - Service & Assurance,Canon (Uk) Ltd,178616,162.5
"Department for Energy, Security and Net Zero",The Coal Authority,04/05/2023,Office Printing Services,DIG - Service & Assurance,Canon (Uk) Ltd,178616,117
"Department for Energy, Security and Net Zero",The Coal Authority,09/11/2023,Office Printing Services,DIG - Service & Assurance,Canon (Uk) Ltd,178620,162.5
"Department for Energy, Security and Net Zero",The Coal Authority,09/11/2023,Office Printing Services,DIG - Service & Assurance,Canon (Uk) Ltd,178620,117
"Department for Energy, Security and Net Zero",The Coal Authority,03/08/2023,Office Printing Services,DIG - Service & Assurance,Canon (Uk) Ltd,178621,117
"Department for Energy, Security and Net Zero",The Coal Authority,03/08/2023,Office Printing Services,DIG - Service & Assurance,Canon (Uk) Ltd,178621,162.5
"Department for Energy, Security and Net Zero",The Coal Authority,31/01/2024,Office Printing Services,DIG - Service & Assurance,Canon (Uk) Ltd,178622,117
"Department for Energy, Security and Net Zero",The Coal Authority,31/01/2024,Office Printing Services,DIG - Service & Assurance,Canon (Uk) Ltd,178622,162.5
"Department for Energy, Security and Net Zero",The Coal Authority,14/09/2023,Office Telephony - Call Charges,DIG - Service & Assurance,British Telecommunications Plc,178535,4.13
"Department for Energy, Security and Net Zero",The Coal Authority,14/10/2023,Office Telephony - Call Charges,DIG - Service & Assurance,British Telecommunications Plc,178536,5.26
"Department for Energy, Security and Net Zero",The Coal Authority,14/11/2023,Office Telephony - Call Charges,DIG - Service & Assurance,British Telecommunications Plc,178537,4.26
"Department for Energy, Security and Net Zero",The Coal Authority,14/12/2023,Office Telephony - Call Charges,DIG - Service & Assurance,British Telecommunications Plc,178543,9.57
"Department for Energy, Security and Net Zero",The Coal Authority,14/01/2024,Office Telephony - Call Charges,DIG - Service & Assurance,British Telecommunications Plc,178544,2.73
"Department for Energy, Security and Net Zero",The Coal Authority,14/02/2024,Office Telephony - Call Charges,DIG - Service & Assurance,British Telecommunications Plc,178545,5.34
"Department for Energy, Security and Net Zero",The Coal Authority,16/04/2024,Office Telephony - Call Charges,DIG - Service & Assurance,British Telecommunications Plc,178546,29.15
"Department for Energy, Security and Net Zero",The Coal Authority,16/04/2024,Office Telephony - Call Charges,DIG - Service & Assurance,British Telecommunications Plc,178547,15.7
"Department for Energy, Security and Net Zero",The Coal Authority,01/04/2024,Office Telephony - Call Charges,DIG - Service & Assurance,Daisy Corporate Services Trading Services Ltd,178859,11.83
"Department for Energy, Security and Net Zero",The Coal Authority,14/09/2023,Office Telephony - Line Rent,DIG - Service & Assurance,British Telecommunications Plc,178535,765.81
"Department for Energy, Security and Net Zero",The Coal Authority,14/10/2023,Office Telephony - Line Rent,DIG - Service & Assurance,British Telecommunications Plc,178536,765.81
"Department for Energy, Security and Net Zero",The Coal Authority,14/11/2023,Office Telephony - Line Rent,DIG - Service & Assurance,British Telecommunications Plc,178537,765.81
"Department for Energy, Security and Net Zero",The Coal Authority,14/11/2023,Office Telephony - Line Rent,DIG - Service & Assurance,British Telecommunications Plc,178537,80
"Department for Energy, Security and Net Zero",The Coal Authority,14/12/2023,Office Telephony - Line Rent,DIG - Service & Assurance,British Telecommunications Plc,178543,765.81
"Department for Energy, Security and Net Zero",The Coal Authority,14/01/2024,Office Telephony - Line Rent,DIG - Service & Assurance,British Telecommunications Plc,178544,765.81
"Department for Energy, Security and Net Zero",The Coal Authority,14/01/2024,Office Telephony - Line Rent,DIG - Service & Assurance,British Telecommunications Plc,178544,110
"Department for Energy, Security and Net Zero",The Coal Authority,14/02/2024,Office Telephony - Line Rent,DIG - Service & Assurance,British Telecommunications Plc,178545,765.81
"Department for Energy, Security and Net Zero",The Coal Authority,14/02/2024,Office Telephony - Line Rent,DIG - Service & Assurance,British Telecommunications Plc,178545,70
"Department for Energy, Security and Net Zero",The Coal Authority,16/04/2024,Office Telephony - Line Rent,DIG - Service & Assurance,British Telecommunications Plc,178546,747.1
"Department for Energy, Security and Net Zero",The Coal Authority,16/04/2024,Office Telephony - Line Rent,DIG - Service & Assurance,British Telecommunications Plc,178546,70
"Department for Energy, Security and Net Zero",The Coal Authority,16/04/2024,Office Telephony - Line Rent,DIG - Service & Assurance,British Telecommunications Plc,178547,709.1
"Department for Energy, Security and Net Zero",The Coal Authority,16/04/2024,Office Telephony - Line Rent,DIG - Service & Assurance,British Telecommunications Plc,178547,110
"Department for Energy, Security and Net Zero",The Coal Authority,01/04/2024,Office Telephony - Line Rent,DIG - Service & Assurance,Daisy Corporate Services Trading Services Ltd,178859,264.29
"Department for Energy, Security and Net Zero",The Coal Authority,27/02/2024,Office Telephony - Line Rent,DIG - Service & Assurance,Government Procurement Card,179324,121.4
"Department for Energy, Security and Net Zero",The Coal Authority,07/03/2024,Office Telephony - Line Rent,DIG - Service & Assurance,Government Procurement Card,179325,121.4
"Department for Energy, Security and Net Zero",The Coal Authority,09/04/2024,Ordance Survey Map Charges,DIG - Data Licensing,Ordnance Survey,178127,"12,971.70"
"Department for Energy, Security and Net Zero",The Coal Authority,09/04/2024,Ordance Survey Map Charges,DIG - Data Licensing,Ordnance Survey,178128,617.7
"Department for Energy, Security and Net Zero",The Coal Authority,22/04/2024,Ordance Survey Map Charges,Mining Reports,Ordnance Survey,178874,"-8,831.45"
"Department for Energy, Security and Net Zero",The Coal Authority,18/04/2024,Ordance Survey Map Charges,Mining Reports,Ordnance Survey,178979,"6,509.55"
"Department for Energy, Security and Net Zero",The Coal Authority,02/04/2024,Other Hosting / IaaS,DIG - Service & Assurance,Amazon Web Services EMEA SARL,177605,"19,296.99"
"Department for Energy, Security and Net Zero",The Coal Authority,12/04/2024,Other Hosting / IaaS,DIG - Service & Assurance,Amazon Web Services EMEA SARL,178356,-486.35
"Department for Energy, Security and Net Zero",The Coal Authority,12/04/2024,Other Hosting / IaaS,DIG - Service & Assurance,Amazon Web Services EMEA SARL,178357,-3.8
"Department for Energy, Security and Net Zero",The Coal Authority,27/02/2024,Outsourced Security Staff,Facilities,Total Integrated Solutions,178200,416
"Department for Energy, Security and Net Zero",The Coal Authority,31/03/2024,Outsourced Security Staff,Facilities,Regent Office Care Ltd T/A Regent Samsic,178201,"8,793.47"
"Department for Energy, Security and Net Zero",The Coal Authority,10/04/2024,Outsourced Security Staff,Facilities,Regent Office Care Ltd T/A Regent Samsic,178202,-416
"Department for Energy, Security and Net Zero",The Coal Authority,31/03/2024,Outsourced Security Staff,Facilities,Regent Office Care Ltd T/A Regent Samsic,178465,"1,005.44"
"Department for Energy, Security and Net Zero",The Coal Authority,31/03/2024,Outsourced Security Staff,Facilities,Regent Office Care Ltd T/A Regent Samsic,178465,793.36
"Department for Energy, Security and Net Zero",The Coal Authority,26/04/2024,Payroll Processing Fees,Finance,Cgi It Uk Ltd,179280,"1,014.97"
"Department for Energy, Security and Net Zero",The Coal Authority,13/11/2023,Peripherals / Consumables (MEP),ENV - Salinity Programme,Staff Expenses Control,178878,2.5
"Department for Energy, Security and Net Zero",The Coal Authority,19/04/2024,Peripherals / Consumables (MEP),Finance,Staff Expenses Control,178878,37.23
"Department for Energy, Security and Net Zero",The Coal Authority,04/03/2024,Peripherals / Consumables (MEP),DIG - Service & Assurance,Government Procurement Card,179325,15.82
"Department for Energy, Security and Net Zero",The Coal Authority,04/03/2024,Peripherals / Consumables (MEP),DIG - Service & Assurance,Government Procurement Card,179325,92.8
"Department for Energy, Security and Net Zero",The Coal Authority,04/03/2024,Peripherals / Consumables (MEP),DIG - Service & Assurance,Government Procurement Card,179325,16.31
"Department for Energy, Security and Net Zero",The Coal Authority,05/03/2024,Peripherals / Consumables (MEP),DIG - Service & Assurance,Government Procurement Card,179325,470
"Department for Energy, Security and Net Zero",The Coal Authority,06/03/2024,Peripherals / Consumables (MEP),DIG - Service & Assurance,Government Procurement Card,179325,151.4
"Department for Energy, Security and Net Zero",The Coal Authority,06/03/2024,Peripherals / Consumables (MEP),DIG - Service & Assurance,Government Procurement Card,179325,152.29
"Department for Energy, Security and Net Zero",The Coal Authority,07/03/2024,Peripherals / Consumables (MEP),DIG - Service & Assurance,Government Procurement Card,179325,35.79
"Department for Energy, Security and Net Zero",The Coal Authority,14/03/2024,Peripherals / Consumables (MEP),DIG - Service & Assurance,Government Procurement Card,179325,890.13
"Department for Energy, Security and Net Zero",The Coal Authority,16/03/2024,Peripherals / Consumables (MEP),DIG - Service & Assurance,Government Procurement Card,179325,101.31
"Department for Energy, Security and Net Zero",The Coal Authority,16/03/2024,Peripherals / Consumables (MEP),DIG - Service & Assurance,Government Procurement Card,179325,101.29
"Department for Energy, Security and Net Zero",The Coal Authority,16/03/2024,Peripherals / Consumables (MEP),DIG - Service & Assurance,Government Procurement Card,179325,103.3
"Department for Energy, Security and Net Zero",The Coal Authority,18/03/2024,Peripherals / Consumables (MEP),DIG - Service & Assurance,Government Procurement Card,179325,187.09
"Department for Energy, Security and Net Zero",The Coal Authority,18/03/2024,Peripherals / Consumables (MEP),DIG - Service & Assurance,Government Procurement Card,179325,16.23
"Department for Energy, Security and Net Zero",The Coal Authority,19/03/2024,Peripherals / Consumables (MEP),DIG - Service & Assurance,Government Procurement Card,179325,-7.68
"Department for Energy, Security and Net Zero",The Coal Authority,19/03/2024,Peripherals / Consumables (MEP),DIG - Service & Assurance,Government Procurement Card,179325,20.82
"Department for Energy, Security and Net Zero",The Coal Authority,22/03/2024,Peripherals / Consumables (MEP),DIG - Service & Assurance,Government Procurement Card,179325,24.71
"Department for Energy, Security and Net Zero",The Coal Authority,25/03/2024,Peripherals / Consumables (MEP),DIG - Service & Assurance,Government Procurement Card,179325,77.57
"Department for Energy, Security and Net Zero",The Coal Authority,25/03/2024,Peripherals / Consumables (MEP),DIG - Service & Assurance,Government Procurement Card,179325,117.64
"Department for Energy, Security and Net Zero",The Coal Authority,25/03/2024,Peripherals / Consumables (MEP),DIG - Service & Assurance,Government Procurement Card,179325,100.64
"Department for Energy, Security and Net Zero",The Coal Authority,25/03/2024,Peripherals / Consumables (MEP),DIG - Service & Assurance,Government Procurement Card,179325,84.18
"Department for Energy, Security and Net Zero",The Coal Authority,25/03/2024,Peripherals / Consumables (MEP),Staff Network and Groups,Government Procurement Card,179325,5.83
"Department for Energy, Security and Net Zero",The Coal Authority,26/03/2024,Peripherals / Consumables (MEP),Staff Network and Groups,Government Procurement Card,179325,9.99
"Department for Energy, Security and Net Zero",The Coal Authority,28/03/2024,Peripherals / Consumables (MEP),DIG - Service & Assurance,Government Procurement Card,179325,25.97
"Department for Energy, Security and Net Zero",The Coal Authority,28/03/2024,Peripherals / Consumables (MEP),DIG - Service & Assurance,Government Procurement Card,179325,4.16
"Department for Energy, Security and Net Zero",The Coal Authority,28/03/2024,Peripherals / Consumables (MEP),DIG - Technical Delivery,Government Procurement Card,179325,133.29
"Department for Energy, Security and Net Zero",The Coal Authority,29/03/2024,Peripherals / Consumables (MEP),DIG - Service & Assurance,Government Procurement Card,179325,149.6
"Department for Energy, Security and Net Zero",The Coal Authority,30/03/2024,Peripherals / Consumables (MEP),DIG - Service & Assurance,Government Procurement Card,179325,-0.9
"Department for Energy, Security and Net Zero",The Coal Authority,05/04/2024,Personal Protective Equipment,"Health, Safety & Wellbeing",Arco Limited,178123,4.45
"Department for Energy, Security and Net Zero",The Coal Authority,05/04/2024,Personal Protective Equipment,"Health, Safety & Wellbeing",Arco Limited,178123,9.37
"Department for Energy, Security and Net Zero",The Coal Authority,05/04/2024,Personal Protective Equipment,"Health, Safety & Wellbeing",Arco Limited,178123,49.36
"Department for Energy, Security and Net Zero",The Coal Authority,27/03/2024,Personal Protective Equipment,"Health, Safety & Wellbeing",Arco Limited,178251,39.66
"Department for Energy, Security and Net Zero",The Coal Authority,27/03/2024,Personal Protective Equipment,"Health, Safety & Wellbeing",Arco Limited,178251,2.91
"Department for Energy, Security and Net Zero",The Coal Authority,07/03/2024,Personal Protective Equipment,"Health, Safety & Wellbeing",Arco Limited,178297,10.06
"Department for Energy, Security and Net Zero",The Coal Authority,07/03/2024,Personal Protective Equipment,"Health, Safety & Wellbeing",Arco Limited,178297,-2.07
"Department for Energy, Security and Net Zero",The Coal Authority,29/02/2024,Personal Protective Equipment,"Health, Safety & Wellbeing",Arco Limited,178298,42.11
"Department for Energy, Security and Net Zero",The Coal Authority,29/02/2024,Personal Protective Equipment,"Health, Safety & Wellbeing",Arco Limited,178298,2
"Department for Energy, Security and Net Zero",The Coal Authority,05/03/2024,Personal Protective Equipment,"Health, Safety & Wellbeing",Arco Limited,178299,12.44
"Department for Energy, Security and Net Zero",The Coal Authority,05/03/2024,Personal Protective Equipment,"Health, Safety & Wellbeing",Arco Limited,178299,6.76
"Department for Energy, Security and Net Zero",The Coal Authority,19/03/2024,Personal Protective Equipment,"Health, Safety & Wellbeing",Arco Limited,178300,112.05
"Department for Energy, Security and Net Zero",The Coal Authority,19/03/2024,Personal Protective Equipment,"Health, Safety & Wellbeing",Arco Limited,178300,12.44
"Department for Energy, Security and Net Zero",The Coal Authority,19/03/2024,Personal Protective Equipment,"Health, Safety & Wellbeing",Arco Limited,178300,12.44
"Department for Energy, Security and Net Zero",The Coal Authority,19/03/2024,Personal Protective Equipment,"Health, Safety & Wellbeing",Arco Limited,178300,50.02
"Department for Energy, Security and Net Zero",The Coal Authority,19/03/2024,Personal Protective Equipment,"Health, Safety & Wellbeing",Arco Limited,178300,15.93
"Department for Energy, Security and Net Zero",The Coal Authority,19/03/2024,Personal Protective Equipment,"Health, Safety & Wellbeing",Arco Limited,178300,111.14
"Department for Energy, Security and Net Zero",The Coal Authority,19/03/2024,Personal Protective Equipment,"Health, Safety & Wellbeing",Arco Limited,178300,10.85
"Department for Energy, Security and Net Zero",The Coal Authority,19/03/2024,Personal Protective Equipment,"Health, Safety & Wellbeing",Arco Limited,178305,1.95
"Department for Energy, Security and Net Zero",The Coal Authority,19/03/2024,Personal Protective Equipment,"Health, Safety & Wellbeing",Arco Limited,178305,64.26
"Department for Energy, Security and Net Zero",The Coal Authority,12/03/2024,Personal Protective Equipment,"Health, Safety & Wellbeing",Arco Limited,178306,12.44
"Department for Energy, Security and Net Zero",The Coal Authority,12/03/2024,Personal Protective Equipment,"Health, Safety & Wellbeing",Arco Limited,178306,12.44
"Department for Energy, Security and Net Zero",The Coal Authority,12/03/2024,Personal Protective Equipment,"Health, Safety & Wellbeing",Arco Limited,178306,112.05
"Department for Energy, Security and Net Zero",The Coal Authority,12/03/2024,Personal Protective Equipment,"Health, Safety & Wellbeing",Arco Limited,178306,12.44
"Department for Energy, Security and Net Zero",The Coal Authority,12/03/2024,Personal Protective Equipment,"Health, Safety & Wellbeing",Arco Limited,178306,18.82
"Department for Energy, Security and Net Zero",The Coal Authority,12/03/2024,Personal Protective Equipment,"Health, Safety & Wellbeing",Arco Limited,178306,12.44
"Department for Energy, Security and Net Zero",The Coal Authority,12/03/2024,Personal Protective Equipment,"Health, Safety & Wellbeing",Arco Limited,178306,12.44
"Department for Energy, Security and Net Zero",The Coal Authority,12/03/2024,Personal Protective Equipment,"Health, Safety & Wellbeing",Arco Limited,178306,12.44
"Department for Energy, Security and Net Zero",The Coal Authority,12/03/2024,Personal Protective Equipment,"Health, Safety & Wellbeing",Arco Limited,178306,12.44
"Department for Energy, Security and Net Zero",The Coal Authority,20/02/2024,Personal Protective Equipment,"Health, Safety & Wellbeing",Arco Limited,178307,64.26
"Department for Energy, Security and Net Zero",The Coal Authority,20/02/2024,Personal Protective Equipment,"Health, Safety & Wellbeing",Arco Limited,178307,1.95
"Department for Energy, Security and Net Zero",The Coal Authority,02/04/2024,Personal Protective Equipment,"Health, Safety & Wellbeing",Arco Limited,178308,0.44
"Department for Energy, Security and Net Zero",The Coal Authority,02/04/2024,Personal Protective Equipment,"Health, Safety & Wellbeing",Arco Limited,178308,64.26
"Department for Energy, Security and Net Zero",The Coal Authority,02/04/2024,Personal Protective Equipment,"Health, Safety & Wellbeing",Arco Limited,178308,11.2
"Department for Energy, Security and Net Zero",The Coal Authority,02/04/2024,Personal Protective Equipment,"Health, Safety & Wellbeing",Arco Limited,178308,98.72
"Department for Energy, Security and Net Zero",The Coal Authority,02/04/2024,Personal Protective Equipment,"Health, Safety & Wellbeing",Arco Limited,178308,49.36
"Department for Energy, Security and Net Zero",The Coal Authority,02/04/2024,Personal Protective Equipment,"Health, Safety & Wellbeing",Arco Limited,178308,64.26
"Department for Energy, Security and Net Zero",The Coal Authority,28/03/2024,Personal Protective Equipment,"Health, Safety & Wellbeing",Arco Limited,178314,53.99
"Department for Energy, Security and Net Zero",The Coal Authority,28/03/2024,Personal Protective Equipment,"Health, Safety & Wellbeing",Arco Limited,178314,2
"Department for Energy, Security and Net Zero",The Coal Authority,28/03/2024,Personal Protective Equipment,"Health, Safety & Wellbeing",Arco Limited,178315,127.2
"Department for Energy, Security and Net Zero",The Coal Authority,28/03/2024,Personal Protective Equipment,"Health, Safety & Wellbeing",Arco Limited,178315,-31.8
"Department for Energy, Security and Net Zero",The Coal Authority,22/03/2024,Personal Protective Equipment,"Health, Safety & Wellbeing",Arco Limited,178966,50.2
"Department for Energy, Security and Net Zero",The Coal Authority,22/03/2024,Personal Protective Equipment,"Health, Safety & Wellbeing",Arco Limited,178966,10.06
"Department for Energy, Security and Net Zero",The Coal Authority,22/03/2024,Personal Protective Equipment,"Health, Safety & Wellbeing",Arco Limited,178966,15.93
"Department for Energy, Security and Net Zero",The Coal Authority,22/03/2024,Personal Protective Equipment,"Health, Safety & Wellbeing",Arco Limited,178966,36.6
"Department for Energy, Security and Net Zero",The Coal Authority,22/03/2024,Personal Protective Equipment,"Health, Safety & Wellbeing",Arco Limited,178966,10.06
"Department for Energy, Security and Net Zero",The Coal Authority,22/03/2024,Personal Protective Equipment,"Health, Safety & Wellbeing",Arco Limited,178966,36.6
"Department for Energy, Security and Net Zero",The Coal Authority,22/03/2024,Personal Protective Equipment,"Health, Safety & Wellbeing",Arco Limited,178966,10.06
"Department for Energy, Security and Net Zero",The Coal Authority,22/03/2024,Personal Protective Equipment,"Health, Safety & Wellbeing",Arco Limited,178967,15.93
"Department for Energy, Security and Net Zero",The Coal Authority,22/03/2024,Personal Protective Equipment,"Health, Safety & Wellbeing",Arco Limited,178967,-3.92
"Department for Energy, Security and Net Zero",The Coal Authority,10/04/2024,Personal Protective Equipment,"Health, Safety & Wellbeing",Arco Limited,178968,22.4
"Department for Energy, Security and Net Zero",The Coal Authority,10/04/2024,Personal Protective Equipment,"Health, Safety & Wellbeing",Arco Limited,178968,1.74
"Department for Energy, Security and Net Zero",The Coal Authority,10/04/2024,Personal Protective Equipment,"Health, Safety & Wellbeing",Arco Limited,178969,0.87
"Department for Energy, Security and Net Zero",The Coal Authority,10/04/2024,Personal Protective Equipment,"Health, Safety & Wellbeing",Arco Limited,178969,11.2
"Department for Energy, Security and Net Zero",The Coal Authority,10/04/2024,Personal Protective Equipment,"Health, Safety & Wellbeing",Arco Limited,178970,1.74
"Department for Energy, Security and Net Zero",The Coal Authority,10/04/2024,Personal Protective Equipment,"Health, Safety & Wellbeing",Arco Limited,178970,22.4
"Department for Energy, Security and Net Zero",The Coal Authority,29/02/2024,Personal Protective Equipment,"Health, Safety & Wellbeing",Arco Limited,178971,64.26
"Department for Energy, Security and Net Zero",The Coal Authority,29/02/2024,Personal Protective Equipment,"Health, Safety & Wellbeing",Arco Limited,178971,64.26
"Department for Energy, Security and Net Zero",The Coal Authority,29/02/2024,Personal Protective Equipment,"Health, Safety & Wellbeing",Arco Limited,178971,9.37
"Department for Energy, Security and Net Zero",The Coal Authority,29/02/2024,Personal Protective Equipment,"Health, Safety & Wellbeing",Arco Limited,178971,5.22
"Department for Energy, Security and Net Zero",The Coal Authority,07/02/2024,Personal Protective Equipment,"Health, Safety & Wellbeing",Arco Limited,179089,49.36
"Department for Energy, Security and Net Zero",The Coal Authority,07/02/2024,Personal Protective Equipment,"Health, Safety & Wellbeing",Arco Limited,179089,3.13
"Department for Energy, Security and Net Zero",The Coal Authority,31/01/2024,Personal Protective Equipment,"Health, Safety & Wellbeing",Arco Limited,179108,119.98
"Department for Energy, Security and Net Zero",The Coal Authority,31/01/2024,Personal Protective Equipment,"Health, Safety & Wellbeing",Arco Limited,179108,59.99
"Department for Energy, Security and Net Zero",The Coal Authority,31/01/2024,Personal Protective Equipment,"Health, Safety & Wellbeing",Arco Limited,179108,11.95
"Department for Energy, Security and Net Zero",The Coal Authority,31/01/2024,Personal Protective Equipment,"Health, Safety & Wellbeing",Arco Limited,179108,59.99
"Department for Energy, Security and Net Zero",The Coal Authority,31/01/2024,Personal Protective Equipment,"Health, Safety & Wellbeing",Arco Limited,179108,17
"Department for Energy, Security and Net Zero",The Coal Authority,08/02/2024,Personal Protective Equipment,"Health, Safety & Wellbeing",Arco Limited,179109,30.94
"Department for Energy, Security and Net Zero",The Coal Authority,08/02/2024,Personal Protective Equipment,"Health, Safety & Wellbeing",Arco Limited,179109,54.8
"Department for Energy, Security and Net Zero",The Coal Authority,08/02/2024,Personal Protective Equipment,"Health, Safety & Wellbeing",Arco Limited,179109,21.88
"Department for Energy, Security and Net Zero",The Coal Authority,08/02/2024,Personal Protective Equipment,"Health, Safety & Wellbeing",Arco Limited,179109,18.78
"Department for Energy, Security and Net Zero",The Coal Authority,08/02/2024,Personal Protective Equipment,"Health, Safety & Wellbeing",Arco Limited,179109,58.2
"Department for Energy, Security and Net Zero",The Coal Authority,08/02/2024,Personal Protective Equipment,"Health, Safety & Wellbeing",Arco Limited,179109,32.71
"Department for Energy, Security and Net Zero",The Coal Authority,08/02/2024,Personal Protective Equipment,"Health, Safety & Wellbeing",Arco Limited,179109,30.94
"Department for Energy, Security and Net Zero",The Coal Authority,08/02/2024,Personal Protective Equipment,"Health, Safety & Wellbeing",Arco Limited,179109,21.88
"Department for Energy, Security and Net Zero",The Coal Authority,08/02/2024,Personal Protective Equipment,"Health, Safety & Wellbeing",Arco Limited,179109,21.88
"Department for Energy, Security and Net Zero",The Coal Authority,08/02/2024,Personal Protective Equipment,"Health, Safety & Wellbeing",Arco Limited,179109,18.78
"Department for Energy, Security and Net Zero",The Coal Authority,08/02/2024,Personal Protective Equipment,"Health, Safety & Wellbeing",Arco Limited,179109,39.49
"Department for Energy, Security and Net Zero",The Coal Authority,24/04/2024,Personal Protective Equipment,"Health, Safety & Wellbeing",Arco Limited,179110,-32.71
"Department for Energy, Security and Net Zero",The Coal Authority,24/04/2024,Personal Protective Equipment,"Health, Safety & Wellbeing",Arco Limited,179110,-2.27
"Department for Energy, Security and Net Zero",The Coal Authority,22/02/2024,Personal Protective Equipment,"Health, Safety & Wellbeing",Government Procurement Card,179324,29.51
"Department for Energy, Security and Net Zero",The Coal Authority,14/03/2024,Personal Protective Equipment,ENV - Projects & Delivery,Government Procurement Card,179325,49.96
"Department for Energy, Security and Net Zero",The Coal Authority,14/03/2024,Personal Protective Equipment,"Health, Safety & Wellbeing",Government Procurement Card,179325,22.95
"Department for Energy, Security and Net Zero",The Coal Authority,14/03/2024,Personal Protective Equipment,"Health, Safety & Wellbeing",Government Procurement Card,179325,273.33
"Department for Energy, Security and Net Zero",The Coal Authority,19/03/2024,Personal Protective Equipment,"Health, Safety & Wellbeing",Government Procurement Card,179325,116.33
"Department for Energy, Security and Net Zero",The Coal Authority,26/03/2024,Personal Protective Equipment,"Health, Safety & Wellbeing",Government Procurement Card,179325,17.49
"Department for Energy, Security and Net Zero",The Coal Authority,27/03/2024,Personal Protective Equipment,"Health, Safety & Wellbeing",Government Procurement Card,179325,29.95
"Department for Energy, Security and Net Zero",The Coal Authority,27/03/2024,Personal Protective Equipment,"Health, Safety & Wellbeing",Government Procurement Card,179325,83.33
"Department for Energy, Security and Net Zero",The Coal Authority,28/03/2024,Plant Maintenance,Facilities,Briggs & Forrester Building Services Maintenance L,178215,"2,010.94"
"Department for Energy, Security and Net Zero",The Coal Authority,09/04/2024,Plant Maintenance,Facilities,Briggs & Forrester Building Services Maintenance L,178223,800.98
"Department for Energy, Security and Net Zero",The Coal Authority,09/04/2024,Plant Maintenance,Facilities,Power Electrics (Bristol) Ltd,178231,573
"Department for Energy, Security and Net Zero",The Coal Authority,19/04/2024,Plant Maintenance,Facilities,Briggs & Forrester Building Services Maintenance L,178778,179.5
"Department for Energy, Security and Net Zero",The Coal Authority,18/04/2024,Plant Maintenance,Facilities,Dakro Air & Water Limited,179045,680
"Department for Energy, Security and Net Zero",The Coal Authority,16/04/2024,Plant Maintenance,Facilities,Stannah Lift Services Limited,179051,300.54
"Department for Energy, Security and Net Zero",The Coal Authority,29/03/2024,Postage & Couriers,Customer Services & Strategy,FedEx Express UK Transportaion Limited,177640,22.74
"Department for Energy, Security and Net Zero",The Coal Authority,02/04/2024,Postage & Couriers,Customer Services & Strategy,Postage By Phone -Pitney Bowes,178074,11.11
"Department for Energy, Security and Net Zero",The Coal Authority,02/04/2024,Postage & Couriers,Customer Services & Strategy,Postage By Phone -Pitney Bowes,178074,500
"Department for Energy, Security and Net Zero",The Coal Authority,03/04/2024,Postage & Couriers,Customer Services & Strategy,THE MAILING ROOM LTD,178081,296.9
"Department for Energy, Security and Net Zero",The Coal Authority,05/04/2024,Postage & Couriers,Customer Services & Strategy,FedEx Express UK Transportaion Limited,178286,96.73
"Department for Energy, Security and Net Zero",The Coal Authority,02/04/2024,Postage & Couriers,Customer Services & Strategy,Royal Mail Group Plc,178290,100
"Department for Energy, Security and Net Zero",The Coal Authority,21/03/2024,Postage & Couriers,Innovation By-Product & Services Delivery,Staff Expenses Control,178451,12.18
"Department for Energy, Security and Net Zero",The Coal Authority,12/04/2024,Postage & Couriers,Customer Services & Strategy,FedEx Express UK Transportaion Limited,178908,58.74
"Department for Energy, Security and Net Zero",The Coal Authority,19/04/2024,Postage & Couriers,Customer Services & Strategy,FedEx Express UK Transportaion Limited,179093,35.11
"Department for Energy, Security and Net Zero",The Coal Authority,01/04/2024,Postage & Couriers,Customer Services & Strategy,THE MAILING ROOM LTD,179101,227.8
"Department for Energy, Security and Net Zero",The Coal Authority,12/02/2024,Postage & Couriers,ENV - Technical,Government Procurement Card,179324,7.74
"Department for Energy, Security and Net Zero",The Coal Authority,13/03/2024,Postage & Couriers,DEFRA LEP Funding,Government Procurement Card,179325,4.16
"Department for Energy, Security and Net Zero",The Coal Authority,16/04/2024,Professional Subscriptions,DEV - Property Management,Staff Expenses Control,178878,539
"Department for Energy, Security and Net Zero",The Coal Authority,19/04/2024,Professional Subscriptions,Mining Information,Staff Expenses Control,178878,61
"Department for Energy, Security and Net Zero",The Coal Authority,27/02/2024,Professional Subscriptions,Heat & By-Product Innovation,Government Procurement Card,179324,240
"Department for Energy, Security and Net Zero",The Coal Authority,04/03/2024,Professional Subscriptions,Tips Response,Government Procurement Card,179325,461.71
"Department for Energy, Security and Net Zero",The Coal Authority,04/03/2024,Professional Subscriptions,Tips Response,Government Procurement Card,179325,166
"Department for Energy, Security and Net Zero",The Coal Authority,06/03/2024,Professional Subscriptions,ENV - Mine Water Operations,Government Procurement Card,179325,140
"Department for Energy, Security and Net Zero",The Coal Authority,12/03/2024,Professional Subscriptions,ENV - Projects & Delivery,Government Procurement Card,179325,199
"Department for Energy, Security and Net Zero",The Coal Authority,13/03/2024,Professional Subscriptions,Procurement,Government Procurement Card,179325,223
"Department for Energy, Security and Net Zero",The Coal Authority,25/03/2024,Professional Subscriptions,ENV - Projects & Delivery,Government Procurement Card,179325,153
"Department for Energy, Security and Net Zero",The Coal Authority,27/03/2024,Professional Subscriptions,PS&S - General Claims,Government Procurement Card,179325,219
"Department for Energy, Security and Net Zero",The Coal Authority,23/03/2024,Property Rates Payable,DEV - Historic Property Liabilities,Business Stream,178332,205.87
"Department for Energy, Security and Net Zero",The Coal Authority,29/02/2024,Property Site Maintenance,DEV - Property Management,City Group Security Ltd,177385,"3,627.52"
"Department for Energy, Security and Net Zero",The Coal Authority,05/04/2024,Property Site Maintenance,DEV - Property Management,PVF Scaffolding Ltd,177915,"1,600.00"
"Department for Energy, Security and Net Zero",The Coal Authority,26/03/2024,Property Site Maintenance,DEV - Historic Property Liabilities,A R Thompson Landscapes,178564,340
"Department for Energy, Security and Net Zero",The Coal Authority,25/03/2024,Property Site Maintenance,PS&S - General Claims,Sweeting Bros (Land Drainage) Ltd,178565,"66,441.77"
"Department for Energy, Security and Net Zero",The Coal Authority,29/04/2024,Property Site Maintenance,PS&S - General Claims,Cornerstone  Projects Ltd,179300,274.31
"Department for Energy, Security and Net Zero",The Coal Authority,31/03/2024,Public Relations,NRW Metal Mine Programme,Grasshopper Communications Ltd,178568,75
"Department for Energy, Security and Net Zero",The Coal Authority,31/03/2024,Public Relations,NRW Metal Mine Programme,Grasshopper Communications Ltd,178568,75
"Department for Energy, Security and Net Zero",The Coal Authority,29/02/2024,Public Relations,NRW Metal Mine Programme,Grasshopper Communications Ltd,179305,150
"Department for Energy, Security and Net Zero",The Coal Authority,29/02/2024,Public Relations,NRW Metal Mine Programme,Grasshopper Communications Ltd,179305,75
"Department for Energy, Security and Net Zero",The Coal Authority,12/03/2024,Public Relations,Community Response,Government Procurement Card,179325,456
"Department for Energy, Security and Net Zero",The Coal Authority,22/03/2024,Public Relations,Staff Network and Groups,Government Procurement Card,179325,8.12
"Department for Energy, Security and Net Zero",The Coal Authority,26/03/2024,Public Relations,Community Response,Government Procurement Card,179325,13.85
"Department for Energy, Security and Net Zero",The Coal Authority,01/04/2024,Public Relations,Community Response,Government Procurement Card,179325,73.26
"Department for Energy, Security and Net Zero",The Coal Authority,03/04/2024,Research & Development (BEIS Funded),Heat & By-Product Innovation,Cornerstone  Projects Ltd,178111,313.11
"Department for Energy, Security and Net Zero",The Coal Authority,16/01/2024,Research & Development (Non BEIS Funded),DEFRA Metal Mine Programme,Newcastle University,177658,"16,858.10"
"Department for Energy, Security and Net Zero",The Coal Authority,31/03/2024,Research & Development (Non BEIS Funded),DEFRA Metal Mine Programme,Braithwaite Engineers Limited,178339,"1,560.00"
"Department for Energy, Security and Net Zero",The Coal Authority,08/04/2024,Research & Development (Non BEIS Funded),DEFRA Metal Mine Programme,In-Situ Europe Ltd,178340,165
"Department for Energy, Security and Net Zero",The Coal Authority,10/04/2024,Research & Development (Non BEIS Funded),DEFRA Metal Mine Programme,TerrAffix Soil Solutions Ltd,178679,"10,250.00"
"Department for Energy, Security and Net Zero",The Coal Authority,01/04/2024,Short Term Vehicle Hire,Facilities,Enterprise Rent A Car,177639,"7,749.19"
"Department for Energy, Security and Net Zero",The Coal Authority,13/12/2023,Short Term Vehicle Hire,Executive,Enterprise Rent A Car,177642,85
"Department for Energy, Security and Net Zero",The Coal Authority,06/12/2023,Short Term Vehicle Hire,Engineering,Enterprise Rent A Car,178027,25
"Department for Energy, Security and Net Zero",The Coal Authority,23/01/2024,Short Term Vehicle Hire,PS&S - General Claims,Enterprise Rent A Car,178028,75
"Department for Energy, Security and Net Zero",The Coal Authority,06/03/2024,Short Term Vehicle Hire,ENV - Mine Water Operations,Enterprise Rent A Car,178380,25
"Department for Energy, Security and Net Zero",The Coal Authority,02/10/2023,Short Term Vehicle Hire,Heat & By-Product Innovation,Enterprise Rent A Car,178911,60
"Department for Energy, Security and Net Zero",The Coal Authority,15/04/2024,Short Term Vehicle Hire,Engineering,Enterprise Rent A Car,179060,991.14
"Department for Energy, Security and Net Zero",The Coal Authority,15/04/2024,Short Term Vehicle Hire,ENV - Strategy & Sustainability Management,Enterprise Rent A Car,179279,60
"Department for Energy, Security and Net Zero",The Coal Authority,05/03/2024,Short Term Vehicle Hire,Facilities,Government Procurement Card,179325,694.01
"Department for Energy, Security and Net Zero",The Coal Authority,11/03/2024,Short Term Vehicle Hire,Facilities,Government Procurement Card,179325,-200
"Department for Energy, Security and Net Zero",The Coal Authority,28/03/2024,Site Repairs & Maintenance,Facilities,Total Integrated Solutions,178206,"1,760.00"
"Department for Energy, Security and Net Zero",The Coal Authority,08/04/2024,Site Repairs & Maintenance,Facilities,Garry Dalton Window Cleaning Service Ltd,178233,850
"Department for Energy, Security and Net Zero",The Coal Authority,28/03/2024,Site Repairs & Maintenance,Facilities,Total Integrated Solutions,178464,"3,440.00"
"Department for Energy, Security and Net Zero",The Coal Authority,18/04/2024,Site Repairs & Maintenance,Facilities,Wagstaff,179046,595
"Department for Energy, Security and Net Zero",The Coal Authority,21/03/2024,Site Repairs & Maintenance,ENV - Salinity Programme,Government Procurement Card,179325,256.05
"Department for Energy, Security and Net Zero",The Coal Authority,21/03/2024,Site Repairs & Maintenance,ENV - Salinity Programme,Government Procurement Card,179325,224.92
"Department for Energy, Security and Net Zero",The Coal Authority,31/03/2024,Site Services,Facilities,Restore Datashred,178176,246.65
"Department for Energy, Security and Net Zero",The Coal Authority,29/03/2024,Site Services,Facilities,Biffa Waste Services Ltd,178232,208.1
"Department for Energy, Security and Net Zero",The Coal Authority,29/03/2024,Site Services,Facilities,Biffa Waste Services Ltd,178232,189.45
"Department for Energy, Security and Net Zero",The Coal Authority,01/04/2024,Site Services,Facilities,Spacecare Ltd,178260,736.97
"Department for Energy, Security and Net Zero",The Coal Authority,12/04/2024,Site Services,Facilities,Personnel Hygiene Services Ltd,178351,-238.43
"Department for Energy, Security and Net Zero",The Coal Authority,31/03/2024,Site Services,Facilities,Spacecare Ltd,178478,60
"Department for Energy, Security and Net Zero",The Coal Authority,02/04/2024,Software Licenses - SaaS,"Health, Safety & Wellbeing",Peoplesafe,177641,"2,115.00"
"Department for Energy, Security and Net Zero",The Coal Authority,03/04/2024,Software Licenses - SaaS,ENV - Mine Water Operations,Hyde Park Solutions Limited,177940,"7,374.50"
"Department for Energy, Security and Net Zero",The Coal Authority,07/12/2023,Software Licenses - SaaS,Procurement,Medius Software Limited,178627,"3,250.00"
"Department for Energy, Security and Net Zero",The Coal Authority,04/02/2024,Software Licenses - SaaS,DIG - Service & Assurance,Government Procurement Card,179324,360
"Department for Energy, Security and Net Zero",The Coal Authority,10/02/2024,Software Licenses - SaaS,DIG - Service & Assurance,Government Procurement Card,179324,255.01
"Department for Energy, Security and Net Zero",The Coal Authority,19/02/2024,Software Licenses - SaaS,DIG - Service & Assurance,Government Procurement Card,179324,238.9
"Department for Energy, Security and Net Zero",The Coal Authority,06/03/2024,Software Licenses - SaaS,DIG - Service & Assurance,Government Procurement Card,179325,400
"Department for Energy, Security and Net Zero",The Coal Authority,10/03/2024,Software Licenses - SaaS,DIG - Service & Assurance,Government Procurement Card,179325,251.31
"Department for Energy, Security and Net Zero",The Coal Authority,15/03/2024,Software Licenses - SaaS,Colleague & Corporate Engagement,Government Procurement Card,179325,15.79
"Department for Energy, Security and Net Zero",The Coal Authority,19/03/2024,Software Licenses - SaaS,DIG - Service & Assurance,Government Procurement Card,179325,238.9
"Department for Energy, Security and Net Zero",The Coal Authority,27/03/2024,Software Licenses - SaaS,Community Response,Government Procurement Card,179325,167
"Department for Energy, Security and Net Zero",The Coal Authority,28/03/2024,Software Support & Maintenance - On Premise,DIG - Data Licensing,Europa Technologies Ltd.,177561,0.02
"Department for Energy, Security and Net Zero",The Coal Authority,28/03/2024,Software Support & Maintenance - On Premise,DIG - Data Licensing,Europa Technologies Ltd.,177561,"1,987.48"
"Department for Energy, Security and Net Zero",The Coal Authority,28/03/2024,Software Support & Maintenance - On Premise,DIG - Data Licensing,Europa Technologies Ltd.,177561,"1,987.48"
"Department for Energy, Security and Net Zero",The Coal Authority,28/03/2024,Software Support & Maintenance - On Premise,DIG - Data Licensing,Europa Technologies Ltd.,177561,0.02
"Department for Energy, Security and Net Zero",The Coal Authority,28/03/2024,Software Support & Maintenance - On Premise,Mining Reports,Europa Technologies Ltd.,177561,0.04
"Department for Energy, Security and Net Zero",The Coal Authority,28/03/2024,Software Support & Maintenance - On Premise,Mining Reports,Europa Technologies Ltd.,177561,"3,974.96"
"Department for Energy, Security and Net Zero",The Coal Authority,28/03/2024,Software Support & Maintenance - On Premise,DIG - Technical Delivery,Oracle corporation UK Limited,178096,"5,186.45"
"Department for Energy, Security and Net Zero",The Coal Authority,28/03/2024,Software Support & Maintenance - On Premise,DIG - Technical Delivery,Oracle corporation UK Limited,178097,"5,782.50"
"Department for Energy, Security and Net Zero",The Coal Authority,28/03/2024,Software Support & Maintenance - On Premise,DIG - Technical Delivery,Oracle corporation UK Limited,178097,"1,108.19"
"Department for Energy, Security and Net Zero",The Coal Authority,28/03/2024,Software Support & Maintenance - On Premise,DIG - Technical Delivery,Oracle corporation UK Limited,178097,381.8
"Department for Energy, Security and Net Zero",The Coal Authority,28/03/2024,Software Support & Maintenance - On Premise,DIG - Technical Delivery,Oracle corporation UK Limited,178097,722.73
"Department for Energy, Security and Net Zero",The Coal Authority,28/03/2024,Software Support & Maintenance - On Premise,DIG - Technical Delivery,Oracle corporation UK Limited,178097,"2,216.54"
"Department for Energy, Security and Net Zero",The Coal Authority,28/03/2024,Software Support & Maintenance - On Premise,DIG - Technical Delivery,Oracle corporation UK Limited,178098,"5,170.15"
"Department for Energy, Security and Net Zero",The Coal Authority,28/03/2024,Software Support & Maintenance - On Premise,DIG - Technical Delivery,Oracle corporation UK Limited,178098,"2,247.74"
"Department for Energy, Security and Net Zero",The Coal Authority,28/03/2024,Software Support & Maintenance - On Premise,DIG - Technical Delivery,Oracle corporation UK Limited,178098,"20,953.68"
"Department for Energy, Security and Net Zero",The Coal Authority,28/03/2024,Software Support & Maintenance - On Premise,DIG - Technical Delivery,Oracle corporation UK Limited,178098,"2,207.49"
"Department for Energy, Security and Net Zero",The Coal Authority,28/03/2024,Software Support & Maintenance - On Premise,DIG - Technical Delivery,Oracle corporation UK Limited,178098,"10,340.28"
"Department for Energy, Security and Net Zero",The Coal Authority,10/04/2024,Software Support & Maintenance - On Premise,ENV - Technical,Aquatic Informatics ULC,178894,"32,082.60"
"Department for Energy, Security and Net Zero",The Coal Authority,01/04/2024,Software Support & Maintenance - SaaS,People & Organisational Development,ITS Software Systems Limited,177365,775
"Department for Energy, Security and Net Zero",The Coal Authority,31/03/2024,Software Support & Maintenance - SaaS,Finance,Bottomline Technologies D/D,178199,196.92
"Department for Energy, Security and Net Zero",The Coal Authority,20/11/2023,Software Support & Maintenance - SaaS,Procurement,Medius Software Limited,178482,"8,777.50"
"Department for Energy, Security and Net Zero",The Coal Authority,20/11/2023,Software Support & Maintenance - SaaS,Procurement,Medius Software Limited,178482,"7,500.00"
"Department for Energy, Security and Net Zero",The Coal Authority,18/04/2024,Software Support & Maintenance - SaaS,ENV - Mine Water Operations,Schneider Electric Systems UK Ltd,178811,"15,924.00"
"Department for Energy, Security and Net Zero",The Coal Authority,29/02/2024,Software Support & Maintenance - SaaS,Procurement,Medius Software Limited,179399,"2,550.00"
"Department for Energy, Security and Net Zero",The Coal Authority,29/02/2024,Software Support & Maintenance - SaaS,Procurement,Medius Software Limited,179399,637.5
"Department for Energy, Security and Net Zero",The Coal Authority,29/02/2024,Software Support & Maintenance - SaaS,Procurement,Medius Software Limited,179399,637.5
"Department for Energy, Security and Net Zero",The Coal Authority,30/04/2024,Software Support & Maintenance - SaaS,Procurement,Medius Software Limited,179401,-637.5
"Department for Energy, Security and Net Zero",The Coal Authority,12/04/2024,Staff Events,Staff Network and Groups,Andrew Pain Ltd,178577,850
"Department for Energy, Security and Net Zero",The Coal Authority,13/02/2024,Staff Events,DIG - Management,Government Procurement Card,179324,140
"Department for Energy, Security and Net Zero",The Coal Authority,22/02/2024,Staff Events,DIG - Management,Government Procurement Card,179324,674.77
"Department for Energy, Security and Net Zero",The Coal Authority,07/03/2024,Staff Events,Incident & Emergency Response,Government Procurement Card,179325,29.18
"Department for Energy, Security and Net Zero",The Coal Authority,07/03/2024,Staff Events,Incident & Emergency Response,Government Procurement Card,179325,27.05
"Department for Energy, Security and Net Zero",The Coal Authority,07/03/2024,Staff Events,Incident & Emergency Response,Government Procurement Card,179325,32.76
"Department for Energy, Security and Net Zero",The Coal Authority,07/03/2024,Staff Events,Incident & Emergency Response,Government Procurement Card,179325,26.43
"Department for Energy, Security and Net Zero",The Coal Authority,07/03/2024,Staff Events,Incident & Emergency Response,Government Procurement Card,179325,2.4
"Department for Energy, Security and Net Zero",The Coal Authority,07/03/2024,Staff Events,Incident & Emergency Response,Government Procurement Card,179325,2.4
"Department for Energy, Security and Net Zero",The Coal Authority,07/03/2024,Staff Events,Incident & Emergency Response,Government Procurement Card,179325,2.4
"Department for Energy, Security and Net Zero",The Coal Authority,07/03/2024,Staff Events,Incident & Emergency Response,Government Procurement Card,179325,2.4
"Department for Energy, Security and Net Zero",The Coal Authority,07/03/2024,Staff Events,Incident & Emergency Response,Government Procurement Card,179325,2.4
"Department for Energy, Security and Net Zero",The Coal Authority,07/03/2024,Staff Events,Incident & Emergency Response,Government Procurement Card,179325,19.2
"Department for Energy, Security and Net Zero",The Coal Authority,11/03/2024,Staff Events,Corporate Programme Office,Government Procurement Card,179325,83.33
"Department for Energy, Security and Net Zero",The Coal Authority,27/03/2024,Staff Events,Board,Government Procurement Card,179325,721.26
"Department for Energy, Security and Net Zero",The Coal Authority,27/03/2024,Staff Events,Corporate Programme Office,Government Procurement Card,179325,9.37
"Department for Energy, Security and Net Zero",The Coal Authority,27/03/2024,Staff Events,Corporate Programme Office,Government Procurement Card,179325,9.37
"Department for Energy, Security and Net Zero",The Coal Authority,27/03/2024,Staff Events,Corporate Programme Office,Government Procurement Card,179325,9.37
"Department for Energy, Security and Net Zero",The Coal Authority,27/03/2024,Staff Events,Corporate Programme Office,Government Procurement Card,179325,9.37
"Department for Energy, Security and Net Zero",The Coal Authority,27/03/2024,Staff Events,Corporate Programme Office,Government Procurement Card,179325,9.37
"Department for Energy, Security and Net Zero",The Coal Authority,27/03/2024,Staff Events,Corporate Programme Office,Government Procurement Card,179325,9.37
"Department for Energy, Security and Net Zero",The Coal Authority,27/03/2024,Staff Events,Corporate Programme Office,Government Procurement Card,179325,9.43
"Department for Energy, Security and Net Zero",The Coal Authority,27/03/2024,Staff Events,Corporate Programme Office,Government Procurement Card,179325,128.13
"Department for Energy, Security and Net Zero",The Coal Authority,15/02/2024,Staff Events,Customer Services & Strategy,Government Procurement Card,179410,245.03
"Department for Energy, Security and Net Zero",The Coal Authority,29/02/2024,Staff Medicals & Wellbeing Support,People & Organisational Development,Bluecrest Health Screening,178120,"4,624.00"
"Department for Energy, Security and Net Zero",The Coal Authority,05/04/2024,Staff Medicals & Wellbeing Support,People & Organisational Development,Bupa UK,178132,480
"Department for Energy, Security and Net Zero",The Coal Authority,11/04/2024,Staff Medicals & Wellbeing Support,People & Organisational Development,Bupa UK,178522,480
"Department for Energy, Security and Net Zero",The Coal Authority,31/03/2024,Staff Medicals & Wellbeing Support,People & Organisational Development,Bluecrest Health Screening,179059,867
"Department for Energy, Security and Net Zero",The Coal Authority,22/04/2024,Staff Medicals & Wellbeing Support,People & Organisational Development,Bupa UK,179127,480
"Department for Energy, Security and Net Zero",The Coal Authority,20/02/2024,Stationery,PS&S - General Claims,Staff Expenses Control,177291,4.17
"Department for Energy, Security and Net Zero",The Coal Authority,05/03/2024,Stationery,PS&S - General Claims,Staff Expenses Control,177291,7.5
"Department for Energy, Security and Net Zero",The Coal Authority,19/03/2024,Stationery,PS&S - General Claims,Staff Expenses Control,177291,9.5
"Department for Energy, Security and Net Zero",The Coal Authority,21/03/2024,Stationery,DEFRA Metal Mine Programme,Staff Expenses Control,178451,10.5
"Department for Energy, Security and Net Zero",The Coal Authority,10/03/2024,Stationery,PS&S - General Claims,Government Procurement Card,179325,4.57
"Department for Energy, Security and Net Zero",The Coal Authority,18/03/2024,Stationery,DEFRA LEP Funding,Government Procurement Card,179325,1.91
"Department for Energy, Security and Net Zero",The Coal Authority,25/03/2024,Stationery,Staff Network and Groups,Government Procurement Card,179325,32.17
"Department for Energy, Security and Net Zero",The Coal Authority,26/03/2024,Stationery,Staff Network and Groups,Government Procurement Card,179325,8.99
"Department for Energy, Security and Net Zero",The Coal Authority,26/03/2024,Stationery,Staff Network and Groups,Government Procurement Card,179325,19.99
"Department for Energy, Security and Net Zero",The Coal Authority,27/03/2024,Stationery,PS&S - General Claims,Government Procurement Card,179325,14
"Department for Energy, Security and Net Zero",The Coal Authority,02/04/2024,Stationery,PS&S - General Claims,Government Procurement Card,179325,19.16
"Department for Energy, Security and Net Zero",The Coal Authority,29/04/2024,Stationery,Customer Services & Strategy,Banner Group Limited,179384,8.3
"Department for Energy, Security and Net Zero",The Coal Authority,29/04/2024,Stationery,Customer Services & Strategy,Banner Group Limited,179384,3.6
"Department for Energy, Security and Net Zero",The Coal Authority,29/04/2024,Stationery,Customer Services & Strategy,Banner Group Limited,179384,90.2
"Department for Energy, Security and Net Zero",The Coal Authority,29/04/2024,Stationery,Customer Services & Strategy,Banner Group Limited,179384,1.12
"Department for Energy, Security and Net Zero",The Coal Authority,29/04/2024,Stationery,Customer Services & Strategy,Banner Group Limited,179384,25.04
"Department for Energy, Security and Net Zero",The Coal Authority,29/04/2024,Stationery,Customer Services & Strategy,Banner Group Limited,179384,40.2
"Department for Energy, Security and Net Zero",The Coal Authority,29/04/2024,Stationery,Customer Services & Strategy,Banner Group Limited,179384,23.6
"Department for Energy, Security and Net Zero",The Coal Authority,26/03/2024,Subsidence - Contractor Costs,PS&S - General Claims,DSI Underground UK Limited,177313,"2,906.59"
"Department for Energy, Security and Net Zero",The Coal Authority,28/03/2024,Subsidence - Contractor Costs,PS&S - General Claims,DSI Underground UK Limited,177314,"6,867.00"
"Department for Energy, Security and Net Zero",The Coal Authority,18/03/2024,Subsidence - Contractor Costs,PS&S - General Claims,SatSense Ltd,177347,"2,216.90"
"Department for Energy, Security and Net Zero",The Coal Authority,28/03/2024,Subsidence - Contractor Costs,PS&S - General Claims,SatSense Ltd,177350,"1,595.70"
"Department for Energy, Security and Net Zero",The Coal Authority,31/03/2024,Subsidence - Contractor Costs,PS&S - General Claims,Alliance Contracting Solutions Ltd,178045,"46,780.34"
"Department for Energy, Security and Net Zero",The Coal Authority,31/03/2024,Subsidence - Contractor Costs,PS&S - General Claims,Sweeting Bros (Land Drainage) Ltd,178433,"7,637.75"
"Department for Energy, Security and Net Zero",The Coal Authority,15/04/2024,Subsidence - Contractor Costs,PS&S - General Claims,Cornerstone  Projects Ltd,178477,291.25
"Department for Energy, Security and Net Zero",The Coal Authority,04/03/2024,Subsidence - Contractor Costs,PS&S - General Claims,Fife Council,178487,"2,948.22"
"Department for Energy, Security and Net Zero",The Coal Authority,04/03/2024,Subsidence - Contractor Costs,PS&S - General Claims,Fife Council,178488,"2,948.22"
"Department for Energy, Security and Net Zero",The Coal Authority,09/02/2024,Subsidence - Contractor Costs,PS&S - General Claims,Geol-Consultants Ltd,178575,"3,000.00"
"Department for Energy, Security and Net Zero",The Coal Authority,16/04/2024,Subsidence - Contractor Costs,PS&S - General Claims,Compensation Payment,178691,175.47
"Department for Energy, Security and Net Zero",The Coal Authority,16/04/2024,Subsidence - Contractor Costs,PS&S - General Claims,McGowan Homes & Property Services,178692,"1,000.00"
"Department for Energy, Security and Net Zero",The Coal Authority,16/04/2024,Subsidence - Contractor Costs,PS&S - General Claims,Interlocks Surveys,178739,733.5
"Department for Energy, Security and Net Zero",The Coal Authority,31/03/2024,Subsidence - Contractor Costs,PS&S - General Claims,Luddon Construction Limited,178782,"1,500.00"
"Department for Energy, Security and Net Zero",The Coal Authority,29/02/2024,Subsidence - Contractor Costs,PS&S - General Claims,Sweeting Bros (Land Drainage) Ltd,178819,"7,238.45"
"Department for Energy, Security and Net Zero",The Coal Authority,19/04/2024,Subsidence - Contractor Costs,PS&S - General Claims,Compensation Payment,178876,65.38
"Department for Energy, Security and Net Zero",The Coal Authority,31/03/2024,Subsidence - Contractor Costs,PS&S - General Claims,Pierrepont Estate Management Ltd,178877,962.5
"Department for Energy, Security and Net Zero",The Coal Authority,23/04/2024,Subsidence - Contractor Costs,PS&S - General Claims,Compensation Payment,178980,"10,338.70"
"Department for Energy, Security and Net Zero",The Coal Authority,24/04/2024,Subsidence - Contractor Costs,PS&S - General Claims,Compensation Payment,179156,955.56
"Department for Energy, Security and Net Zero",The Coal Authority,25/04/2024,Subsidence - Contractor Costs,PS&S - General Claims,Nal Plant Limited,179241,354.75
"Department for Energy, Security and Net Zero",The Coal Authority,25/04/2024,Subsidence - Contractor Costs,PS&S - General Claims,Nal Plant Limited,179243,"4,717.34"
"Department for Energy, Security and Net Zero",The Coal Authority,25/04/2024,Subsidence - Contractor Costs,PS&S - General Claims,Nal Plant Limited,179245,"20,129.84"
"Department for Energy, Security and Net Zero",The Coal Authority,25/04/2024,Subsidence - Contractor Costs,PS&S - General Claims,Nal Plant Limited,179246,"4,650.97"
"Department for Energy, Security and Net Zero",The Coal Authority,25/04/2024,Subsidence - Contractor Costs,PS&S - General Claims,Compensation Payment,179267,283.78
"Department for Energy, Security and Net Zero",The Coal Authority,29/04/2024,Subsidence - Contractor Costs,PS&S - General Claims,Geol-Consultants Ltd,179400,"2,658.52"
"Department for Energy, Security and Net Zero",The Coal Authority,07/03/2024,Subsidence - Equipment,ENV - Mine Water Operations,Government Procurement Card,179325,10
"Department for Energy, Security and Net Zero",The Coal Authority,19/03/2024,Subsidence - Equipment,PS&S - General Claims,Government Procurement Card,179325,17
"Department for Energy, Security and Net Zero",The Coal Authority,25/03/2024,Subsidence - Equipment,PS&S - General Claims,Government Procurement Card,179325,22.49
"Department for Energy, Security and Net Zero",The Coal Authority,29/02/2024,Subsidence Pumping - Management Fees,ENV - Mine Water Operations,Doncaster East I D B,177694,15.17
"Department for Energy, Security and Net Zero",The Coal Authority,29/02/2024,Subsidence Pumping - Management Fees,ENV - Mine Water Operations,Doncaster East I D B,177695,5.84
"Department for Energy, Security and Net Zero",The Coal Authority,29/02/2024,Subsidence Pumping - Management Fees,ENV - Mine Water Operations,Doncaster East I D B,177696,26.92
"Department for Energy, Security and Net Zero",The Coal Authority,29/02/2024,Subsidence Pumping - Management Fees,ENV - Mine Water Operations,Doncaster East I D B,178395,15.61
"Department for Energy, Security and Net Zero",The Coal Authority,29/02/2024,Subsidence Pumping - Management Fees,ENV - Mine Water Operations,Doncaster East I D B,178395,21.7
"Department for Energy, Security and Net Zero",The Coal Authority,29/02/2024,Subsidence Pumping - Management Fees,ENV - Mine Water Operations,Doncaster East I D B,178396,215.51
"Department for Energy, Security and Net Zero",The Coal Authority,29/02/2024,Subsidence Pumping - Management Fees,ENV - Mine Water Operations,Doncaster East I D B,178401,442.49
"Department for Energy, Security and Net Zero",The Coal Authority,29/02/2024,Subsidence Pumping - Management Fees,ENV - Mine Water Operations,Doncaster East I D B,178402,122.8
"Department for Energy, Security and Net Zero",The Coal Authority,29/02/2024,Subsidence Pumping - Management Fees,ENV - Mine Water Operations,Doncaster East I D B,178404,4.37
"Department for Energy, Security and Net Zero",The Coal Authority,29/02/2024,Subsidence Pumping - Management Fees,ENV - Mine Water Operations,Doncaster East I D B,178418,4.69
"Department for Energy, Security and Net Zero",The Coal Authority,29/02/2024,Subsidence Pumping - Management Fees,ENV - Mine Water Operations,Doncaster East I D B,178419,126.66
"Department for Energy, Security and Net Zero",The Coal Authority,29/02/2024,Subsidence Pumping - Management Fees,ENV - Mine Water Operations,Doncaster East I D B,178420,35.37
"Department for Energy, Security and Net Zero",The Coal Authority,29/02/2024,Subsidence Pumping - Management Fees,ENV - Mine Water Operations,Doncaster East I D B,178421,8.74
"Department for Energy, Security and Net Zero",The Coal Authority,29/02/2024,Subsidence Pumping - Management Fees,ENV - Mine Water Operations,Doncaster East I D B,178422,4.76
"Department for Energy, Security and Net Zero",The Coal Authority,29/02/2024,Subsidence Pumping - Management Fees,ENV - Mine Water Operations,Doncaster East I D B,178423,1.06
"Department for Energy, Security and Net Zero",The Coal Authority,29/02/2024,Subsidence Pumping - Management Fees,ENV - Mine Water Operations,Doncaster East I D B,178427,79.73
"Department for Energy, Security and Net Zero",The Coal Authority,31/03/2024,Subsidence Pumping - Management Fees,ENV - Mine Water Operations,Ouse&Derwnt Intern Drainge Brd,178975,"1,760.85"
"Department for Energy, Security and Net Zero",The Coal Authority,31/03/2024,Subsidence Pumping - Management Fees,ENV - Mine Water Operations,Ouse&Derwnt Intern Drainge Brd,178976,974.8
"Department for Energy, Security and Net Zero",The Coal Authority,31/03/2024,Subsidence Pumping - Management Fees,ENV - Mine Water Operations,Doncaster East I D B,179361,33.09
"Department for Energy, Security and Net Zero",The Coal Authority,31/03/2024,Subsidence Pumping - Management Fees,ENV - Mine Water Operations,Doncaster East I D B,179362,191.88
"Department for Energy, Security and Net Zero",The Coal Authority,31/03/2024,Subsidence Pumping - Management Fees,ENV - Mine Water Operations,Doncaster East I D B,179362,33.9
"Department for Energy, Security and Net Zero",The Coal Authority,31/03/2024,Subsidence Pumping - Management Fees,ENV - Mine Water Operations,Doncaster East I D B,179369,106.79
"Department for Energy, Security and Net Zero",The Coal Authority,31/03/2024,Subsidence Pumping - Management Fees,ENV - Mine Water Operations,Doncaster East I D B,179370,2.22
"Department for Energy, Security and Net Zero",The Coal Authority,31/03/2024,Subsidence Pumping - Management Fees,ENV - Mine Water Operations,Doncaster East I D B,179371,19.16
"Department for Energy, Security and Net Zero",The Coal Authority,31/03/2024,Subsidence Pumping - Management Fees,ENV - Mine Water Operations,Doncaster East I D B,179371,40.12
"Department for Energy, Security and Net Zero",The Coal Authority,31/03/2024,Subsidence Pumping - Management Fees,ENV - Mine Water Operations,Doncaster East I D B,179372,7.72
"Department for Energy, Security and Net Zero",The Coal Authority,31/03/2024,Subsidence Pumping - Management Fees,ENV - Mine Water Operations,Doncaster East I D B,179373,9.26
"Department for Energy, Security and Net Zero",The Coal Authority,31/03/2024,Subsidence Pumping - Management Fees,ENV - Mine Water Operations,Doncaster East I D B,179374,77.16
"Department for Energy, Security and Net Zero",The Coal Authority,31/03/2024,Subsidence Pumping - Management Fees,ENV - Mine Water Operations,Doncaster East I D B,179382,6.45
"Department for Energy, Security and Net Zero",The Coal Authority,31/03/2024,Subsidence Pumping - Management Fees,ENV - Mine Water Operations,Doncaster East I D B,179383,278.31
"Department for Energy, Security and Net Zero",The Coal Authority,31/03/2024,Subsidence Pumping - Management Fees,ENV - Mine Water Operations,Doncaster East I D B,179385,12.64
"Department for Energy, Security and Net Zero",The Coal Authority,31/03/2024,Subsidence Pumping - Management Fees,ENV - Mine Water Operations,Doncaster East I D B,179386,23.18
